Local authority department which incurred the expenditure,Service Division,Cost Centre,Summary of the Purpose of Expenditure,Expense Type,Expense Code,Detailed Expense Type,Date of Transaction,Transaction Number,Beneficiary,Merchant Category Number,Merchant Category,Gross Amount,VAT,Net Amount
Children and Young Peoples Services,Head of Education,075021,Youth Employment Initiative,Supplies and Services,336005,Advertising,01-Aug-2017,000006329084371,FACEBK V33D9DATS2,7311,Advertising other than for staff,50.00,0.00,50.00
Transformation and Partnerships,Comms & Information Management,060270,Communications and Marketing,Supplies and Services,336005,Advertising,01-Aug-2017,000006329084681,FACEBK ECCFCC25B2,7311,Advertising other than for staff,404.62,0.00,404.62
Children and Young Peoples Services,Head of Looked After Provision Permanence and Care Leavers,085341,High Etherley Satelite Home,Supplies and Services,324117,Provisions,01-Aug-2017,000006332167891,TESCO STORES 6329,5411,Catering costs - provisions,110.38,0.00,110.38
Regeneration and Local Services,Direct Services,010383,C&G - South Street Cleansing,Supplies and Services,312011,Newspapers Books and Periodicals,01-Aug-2017,000006332167959,C.L.A.S.S,5251,Books-school library,41.04,6.84,34.20
Regeneration and Local Services,Direct Services,021242,Catering - County Hall,Supplies and Services,324117,Provisions,01-Aug-2017,000006332168035,JR HOLLAND FOODSERVICE,5422,Catering costs - provisions,65.36,0.00,65.36
Resources,Digital and Customer Services,065464,Domains,Supplies and Services,372009,Subscriptions,01-Aug-2017,000006332168047,NOMINET UK,7379,Subscriptions,120.00,20.00,100.00
Regeneration and Local Services,Economic Development and Housing,030737,Durham Works Flexible Fund,Transport,235057,Public Transport,01-Aug-2017,000006332168049,ONE STOP 2969,5411,Staff travelling,85.50,0.00,85.50
Regeneration and Local Services,Culture & Sport,054812,Gala Theatre - Catering etc,Supplies and Services,324117,Provisions,01-Aug-2017,000006332168053,JR HOLLAND FOODSERVICE,5422,Catering costs - provisions,24.82,0.00,24.82
Children and Young Peoples Services,Head of Looked After Provision Permanence and Care Leavers,085351,Framwellgate Moor CU,Supplies and Services,324117,Provisions,01-Aug-2017,000006332168089,ASDA HOME SHOPPING,5411,Catering costs - provisions,0.62,0.00,0.62
Children and Young Peoples Services,Head of Looked After Provision Permanence and Care Leavers,085351,Framwellgate Moor CU,Supplies and Services,324117,Provisions,01-Aug-2017,000006332168093,ASDA HOME SHOPPING,5411,Catering costs - provisions,169.66,0.00,169.66
Children and Young Peoples Services,Head of Looked After Provision Permanence and Care Leavers,085333,Coxhoe Satelite Home,Supplies and Services,304259,Equipment and Materials,01-Aug-2017,000006332168099,M and M Direct Ltd,5941,Equipment-purchase and rental,200.72,0.00,200.72
Regeneration and Local Services,Direct Services,010900,Fleet - Meadowfield Fleet,Transport,215013,Running Costs of Vehicles,01-Aug-2017,000006332168109,POST OFFICE COUNTER,9402,Vehicle Excise Duty (VED),247.50,0.00,247.50
Children and Young Peoples Services,Head of Early Help Assessment and Safeguarding,088063,Bishop Auckland 0 - 5,Supplies and Services,324117,Provisions,01-Aug-2017,000006332168111,ASDA HOME SHOPPING,5411,Catering costs - provisions,41.38,0.00,41.38
Regeneration and Local Services,Spatial Policy Planning Assets & Environment,031204,North Pennines Nectarworks,Supplies and Services,312011,Newspapers Books and Periodicals,01-Aug-2017,000006332168119,NHBS LTD,5942,Books-school library,67.47,0.00,67.47
Children and Young Peoples Services,Head of Looked After Provision Permanence and Care Leavers,085957,Secure Management,Supplies and Services,384999,Miscellaneous Expenses,01-Aug-2017,000006332168159,Amazon EU,5969,Other expenses,26.16,0.00,26.16
Children and Young Peoples Services,Head of Looked After Provision Permanence and Care Leavers,085957,Secure Management,Supplies and Services,328041,Clothing Uniforms and Laundry,01-Aug-2017,000006332168163,WWW.FOOTLOCKER.EU,5661,Clothing uniforms and laundry,159.99,0.00,159.99
Children and Young Peoples Services,Head of Looked After Provision Permanence and Care Leavers,085957,Secure Management,Supplies and Services,328041,Clothing Uniforms and Laundry,01-Aug-2017,000006332168165,H & M ONLINE,5691,Clothing uniforms and laundry,80.97,0.00,80.97
Children and Young Peoples Services,Head of Looked After Provision Permanence and Care Leavers,085957,Secure Management,Supplies and Services,328041,Clothing Uniforms and Laundry,01-Aug-2017,000006332168169,WWW.FOOTASYLUM.COM,5941,Clothing uniforms and laundry,284.93,0.00,284.93
Children and Young Peoples Services,Head of Looked After Provision Permanence and Care Leavers,085957,Secure Management,Supplies and Services,328041,Clothing Uniforms and Laundry,01-Aug-2017,000006332168173,M and M Direct Ltd,5941,Clothing uniforms and laundry,164.97,0.00,164.97
Children and Young Peoples Services,Head of Looked After Provision Permanence and Care Leavers,085957,Secure Management,Supplies and Services,328041,Clothing Uniforms and Laundry,01-Aug-2017,000006332168175,VERY.CO.UK,5964,Clothing uniforms and laundry,111.99,0.00,111.99
Regeneration and Local Services,Culture & Sport,011060,Hardwick Park Catering,Supplies and Services,324117,Provisions,01-Aug-2017,000006332168187,JR HOLLAND FOODSERVICE,5422,Catering costs - provisions,9.40,0.00,9.40
Regeneration and Local Services,Culture & Sport,054815,Gala Theatre Stage School,Supplies and Services,328041,Clothing Uniforms and Laundry,01-Aug-2017,000006332168201,H & M ONLINE,5691,Clothing uniforms and laundry,23.98,0.00,23.98
Regeneration and Local Services,Economic Development and Housing,030750,Durham Employment & Skills - General,Employees,040149,Recruitment Instruction and Training,01-Aug-2017,000006332168203,CITB,8220,Training-all costs,30.00,0.00,30.00
Regeneration and Local Services,Economic Development and Housing,030750,Durham Employment & Skills - General,Employees,040149,Recruitment Instruction and Training,01-Aug-2017,000006332168205,CITB,8220,Training-all costs,30.00,0.00,30.00
Regeneration and Local Services,Economic Development and Housing,030750,Durham Employment & Skills - General,Employees,040149,Recruitment Instruction and Training,01-Aug-2017,000006332168209,CITB,8220,Training-all costs,30.00,0.00,30.00
Regeneration and Local Services,Economic Development and Housing,031576,B& B - Temp Accom,Supplies and Services,364320,Grants to Voluntary Organisations,01-Aug-2017,000006332168217,TRAVELODGE,3615,Accommodation assistance,53.00,0.00,53.00
Regeneration and Local Services,Economic Development and Housing,031576,B& B - Temp Accom,Supplies and Services,364320,Grants to Voluntary Organisations,01-Aug-2017,000006332168219,TRAVELODGE,3615,Accommodation assistance,-51.00,0.00,-51.00
Resources,Financial Services,065120,Income,Supplies and Services,304259,Equipment and Materials,01-Aug-2017,000006332168227,AdyenTerminals,5817,Equipment-purchase and rental,24.99,0.00,24.99
Children and Young Peoples Services,Head of Looked After Provision Permanence and Care Leavers,085352,Tow Law CU,Supplies and Services,352001,Conference Expenses,01-Aug-2017,000006332168237,TRAVELODGE,3615,Conferencesseminars fees etc,108.00,18.00,90.00
Children and Young Peoples Services,Head of Looked After Provision Permanence and Care Leavers,085352,Tow Law CU,Supplies and Services,304999,Equipment and Materials,01-Aug-2017,000006332168239,ALTON TOWERS,7991,Misc equipment tools and materials,158.00,26.33,131.67
Regeneration and Local Services,Culture & Sport,011191,Wellbeing4Life,Supplies and Services,304259,Equipment and Materials,01-Aug-2017,000006332168281,SPENNYMOOR SPORTS,5941,Equipment-purchase and rental,33.99,0.00,33.99
Regeneration and Local Services,Culture & Sport,011191,Wellbeing4Life,Supplies and Services,348037,Subsistence,01-Aug-2017,000006332168283,THE BLUE STONE TEA SHO,5812,Subsistence,4.00,0.00,4.00
Adult and Health Services,Head of Adults,055301,Stanley Pathways,Supplies and Services,324117,Provisions,01-Aug-2017,000006332168287,ASDA SUPERSTORE,5411,Catering costs - provisions,0.99,0.00,0.99
Regeneration and Local Services,Direct Services,010301,C&G - North Grounds Maintenance,Supplies and Services,304403,Equipment and Materials,01-Aug-2017,000006332168393,BESCOL,5231,Other consumables,21.35,3.56,17.79
Regeneration and Local Services,Direct Services,010301,C&G - North Grounds Maintenance,Supplies and Services,328041,Clothing Uniforms and Laundry,01-Aug-2017,000006332168397,THOMAS OWEN & SONS /N/,5611,Clothing uniforms and laundry,246.53,41.09,205.44
Children and Young Peoples Services,Head of Early Help Assessment and Safeguarding,088001,Peterlee Locality,Supplies and Services,328041,Clothing Uniforms and Laundry,01-Aug-2017,000006332168439,ARGOS RETAIL GROUP,5310,Clothing uniforms and laundry,19.99,0.00,19.99
Regeneration and Local Services,Direct Services,010301,C&G - North Grounds Maintenance,Supplies and Services,312011,Newspapers Books and Periodicals,01-Aug-2017,000006332168485,GRALANDS WOODWORK SUPP,5251,Books-school library,15.80,2.63,13.17
Children and Young Peoples Services,Head of Looked After Provision Permanence and Care Leavers,085331,New Lea Childrens Home,Supplies and Services,308011,Furniture,01-Aug-2017,000006332168581,SOFOLOGY LIMITED,5712,Furniture repair and replacement,202.00,0.00,202.00
Children and Young Peoples Services,Head of Looked After Provision Permanence and Care Leavers,085331,New Lea Childrens Home,Supplies and Services,308011,Furniture,01-Aug-2017,000006332168585,EDS BEDS LTD,5712,Furniture repair and replacement,440.00,0.00,440.00
Children and Young Peoples Services,Head of Looked After Provision Permanence and Care Leavers,085331,New Lea Childrens Home,Supplies and Services,324117,Provisions,01-Aug-2017,000006332168587,ASDA STORES LTD 4313,5411,Catering costs - provisions,97.00,0.00,97.00
Children and Young Peoples Services,Head of Early Help Assessment and Safeguarding,074000,TTF-Attachment and Results,Supplies and Services,324117,Provisions,01-Aug-2017,000006332168605,ASDA GEORGE COM LEEDS,5411,Catering costs - provisions,116.45,0.00,116.45
Resources,Legal & Democratic Services,067910,Democratic Representation,Supplies and Services,332047,Printing Stationery and Gen Off Exps,01-Aug-2017,000006332168609,Amazon EU,5969,Stationery,16.99,0.00,16.99
Regeneration and Local Services,Economic Development and Housing,030737,Durham Works Flexible Fund,Supplies and Services,328041,Clothing Uniforms and Laundry,01-Aug-2017,000006332168679,MATALAN,5691,Clothing uniforms and laundry,32.05,0.00,32.05
Regeneration and Local Services,Spatial Policy Planning Assets & Environment,031200,North Pennines Core,Supplies and Services,324117,Provisions,01-Aug-2017,000006332168689,SCOTMID CO-OP STANHOPE,5411,Catering costs - provisions,4.74,0.00,4.74
Regeneration and Local Services,Economic Development and Housing,030749,Employability - Youth Contract,Supplies and Services,324001,Provisions,01-Aug-2017,000006332168699,WINE CELLAR,5921,Bar supplies,85.50,0.00,85.50
Regeneration and Local Services,Direct Services,021242,Catering - County Hall,Supplies and Services,324117,Provisions,01-Aug-2017,000006336189245,BATLEYS PERTH,5300,Catering costs - provisions,231.30,38.55,192.75
Regeneration and Local Services,Direct Services,021242,Catering - County Hall,Supplies and Services,324117,Provisions,01-Aug-2017,000006336189245 - 1,BATLEYS PERTH,5300,Catering costs - provisions,124.49,,124.49
Children and Young Peoples Services,Head of Looked After Provision Permanence and Care Leavers,085955,Auckland,Supplies and Services,384999,Miscellaneous Expenses,01-Aug-2017,000006336189353,SPORTSDIRECT.COM,5941,Other expenses,26.76,4.46,22.30
Children and Young Peoples Services,Head of Looked After Provision Permanence and Care Leavers,085957,Secure Management,Supplies and Services,328041,Clothing Uniforms and Laundry,01-Aug-2017,000006336189353 - 1,SPORTSDIRECT.COM,5941,Clothing uniforms and laundry,21.21,,21.21
Children and Young Peoples Services,Head of Looked After Provision Permanence and Care Leavers,085957,Secure Management,Supplies and Services,328041,Clothing Uniforms and Laundry,01-Aug-2017,000006336189359,AMAZON UK RETAIL AMAZO,5999,Clothing uniforms and laundry,55.99,0.00,55.99
Regeneration and Local Services,Direct Services,021234,Catering - Locomotion,Supplies and Services,324117,Provisions,01-Aug-2017,000006336189407,BATLEYS PERTH,5300,Catering costs - provisions,214.62,35.77,178.85
Regeneration and Local Services,Direct Services,021234,Catering - Locomotion,Supplies and Services,324117,Provisions,01-Aug-2017,000006336189407 - 1,BATLEYS PERTH,5300,Catering costs - provisions,39.79,,39.79
Regeneration and Local Services,Economic Development and Housing,031576,B& B - Temp Accom,Supplies and Services,364320,Grants to Voluntary Organisations,01-Aug-2017,000006336189417,PREMIER INN,3811,Accommodation assistance,73.50,0.00,73.50
Regeneration and Local Services,Economic Development and Housing,031576,B& B - Temp Accom,Supplies and Services,364320,Grants to Voluntary Organisations,01-Aug-2017,000006336189419,PREMIER INN,3811,Accommodation assistance,74.50,0.00,74.50
Regeneration and Local Services,Culture & Sport,054235,Bishop Auckland Town Hall Cafe,Supplies and Services,324117,Provisions,01-Aug-2017,000006336189557,BATLEYS PERTH,5300,Catering costs - provisions,64.33,0.00,64.33
Regeneration and Local Services,Direct Services,021324,Catering - Meadowfield,Supplies and Services,324117,Provisions,01-Aug-2017,000006336189569,BATLEYS PERTH,5300,Catering costs - provisions,135.90,22.65,113.25
Regeneration and Local Services,Direct Services,021324,Catering - Meadowfield,Supplies and Services,324117,Provisions,01-Aug-2017,000006336189569 - 1,BATLEYS PERTH,5300,Catering costs - provisions,93.20,,93.20
Children and Young Peoples Services,Head of Looked After Provision Permanence and Care Leavers,085957,Secure Management,Supplies and Services,328041,Clothing Uniforms and Laundry,01-Aug-2017,000006352044843,EMP Merchan,5964,Clothing uniforms and laundry,137.95,0.00,137.95
Regeneration and Local Services,Culture & Sport,011060,Hardwick Park Catering,Supplies and Services,324117,Provisions,01-Aug-2017,000006377957065,BATLEYS PERTH,5300,Catering costs - provisions,385.44,64.24,321.20
Regeneration and Local Services,Culture & Sport,011060,Hardwick Park Catering,Supplies and Services,324117,Provisions,01-Aug-2017,000006377957065 - 1,BATLEYS PERTH,5300,Catering costs - provisions,292.95,,292.95
Resources,Financial Services,065184,Financial Assessments,Supplies and Services,332047,Printing Stationery and Gen Off Exps,02-Aug-2017,000006336189167,Amazon UK Marketplace,5942,Stationery,35.00,0.00,35.00
Children and Young Peoples Services,Head of Looked After Provision Permanence and Care Leavers,085957,Secure Management,Supplies and Services,338057,Services,02-Aug-2017,000006336189177,WWW.WMSPLC.CO.UK,5047,Medical fees,33.52,5.59,27.93
Children and Young Peoples Services,Head of Looked After Provision Permanence and Care Leavers,085957,Secure Management,Supplies and Services,338057,Services,02-Aug-2017,000006336189179,WWW.SAFETYFIRSTAID.CO.,5085,Medical fees,22.44,3.74,18.70
Regeneration and Local Services,Economic Development and Housing,030699,Business Growth and Innovation General,Supplies and Services,304403,Equipment and Materials,02-Aug-2017,000006336189185,ADOBE CREATIVE CLOUD,5734,Other consumables,50.57,0.00,50.57
Regeneration and Local Services,Economic Development and Housing,030699,Business Growth and Innovation General,Supplies and Services,312011,Newspapers Books and Periodicals,02-Aug-2017,000006336189187,FASTHOSTS INTERNET,4816,Books-school library,59.99,10.00,49.99
Children and Young Peoples Services,Head of Looked After Provision Permanence and Care Leavers,085342,9 Cedar Drive Aycliffe,Transport,235057,Public Transport,02-Aug-2017,000006336189201,Trainline,4112,Staff travelling,33.35,0.00,33.35
Children and Young Peoples Services,Head of Early Help Assessment and Safeguarding,071670,Willington Childrens Centre,Supplies and Services,328041,Clothing Uniforms and Laundry,02-Aug-2017,000006336189229,ORIGINAL FACTORY S,5311,Clothing uniforms and laundry,16.00,0.00,16.00
Children and Young Peoples Services,Head of Early Help Assessment and Safeguarding,088096,Newton Aycliffe Teenage Parent Programme,Supplies and Services,324117,Provisions,02-Aug-2017,000006336189233,ASDA HOME SHOPPING,5411,Catering costs - provisions,32.25,0.00,32.25
Regeneration and Local Services,Direct Services,021242,Catering - County Hall,Supplies and Services,324117,Provisions,02-Aug-2017,000006336189237,JR HOLLAND FOODSERVICE,5422,Catering costs - provisions,143.18,0.00,143.18
Regeneration and Local Services,Direct Services,021242,Catering - County Hall,Supplies and Services,324117,Provisions,02-Aug-2017,000006336189241,JR HOLLAND FOODSERVICE,5422,Catering costs - provisions,31.35,0.00,31.35
Children and Young Peoples Services,Head of Early Help Assessment and Safeguarding,085622,Families First Ferryhill,Supplies and Services,338048,Services,02-Aug-2017,000006336189251,DARLINGTON BC INTERNET,9399,Court Costs,12.00,0.00,12.00
Children and Young Peoples Services,Head of Early Help Assessment and Safeguarding,085622,Families First Ferryhill,Supplies and Services,338048,Services,02-Aug-2017,000006336189255,DARLINGTON BC INTERNET,9399,Court Costs,12.00,0.00,12.00
Children and Young Peoples Services,Head of Early Help Assessment and Safeguarding,085622,Families First Ferryhill,Supplies and Services,338048,Services,02-Aug-2017,000006336189257,WWW.DURHAM.GOV.UK,9399,Court Costs,12.00,0.00,12.00
Regeneration and Local Services,Economic Development and Housing,030737,Durham Works Flexible Fund,Supplies and Services,384956,Miscellaneous Expenses,02-Aug-2017,000006336189259,POST OFFICE COUNTER,9402,Licences,220.00,0.00,220.00
Regeneration and Local Services,Economic Development and Housing,030737,Durham Works Flexible Fund,Supplies and Services,384956,Miscellaneous Expenses,02-Aug-2017,000006336189261,POST OFFICE COUNTER,9402,Licences,220.00,0.00,220.00
Children and Young Peoples Services,Head of Looked After Provision Permanence and Care Leavers,085332,Middlestone Moor CU,Supplies and Services,304403,Equipment and Materials,02-Aug-2017,000006336189311,BARGAIN BUYS RETAIL LT,5065,Other consumables,249.99,0.00,249.99
Regeneration and Local Services,Economic Development and Housing,030554,International Relations,Supplies and Services,348037,Subsistence,02-Aug-2017,000006336189315,BELLS FISH AND CHI,5812,Subsistence,52.80,0.00,52.80
Regeneration and Local Services,Economic Development and Housing,030554,International Relations,Transport,235057,Public Transport,02-Aug-2017,000006336189317,NEWCASTLE PARK AND FLY,7523,Staff travelling,5.50,0.92,4.58
Regeneration and Local Services,Economic Development and Housing,030554,International Relations,Transport,235057,Public Transport,02-Aug-2017,000006336189321,PRINCE BISHOP SHOPPING,7523,Staff travelling,3.30,0.00,3.30
Regeneration and Local Services,Economic Development and Housing,030554,International Relations,Employees,040149,Recruitment Instruction and Training,02-Aug-2017,000006336189325,CAFE ON THE GREEN,8220,Training-all costs,9.85,1.64,8.21
Regeneration and Local Services,Economic Development and Housing,030737,Durham Works Flexible Fund,Supplies and Services,348037,Subsistence,02-Aug-2017,000006336189333,WWW.SIMPLYGO.COM,4131,Subsistence,70.00,0.00,70.00
Regeneration and Local Services,Economic Development and Housing,030737,Durham Works Flexible Fund,Supplies and Services,328041,Clothing Uniforms and Laundry,02-Aug-2017,000006336189335,WWW.ASOS.COM,5651,Clothing uniforms and laundry,83.94,0.00,83.94
Regeneration and Local Services,Economic Development and Housing,030737,Durham Works Flexible Fund,Supplies and Services,348037,Subsistence,02-Aug-2017,000006336189339,ARRIVA NORTH EAST,4131,Subsistence,60.00,0.00,60.00
Children and Young Peoples Services,Head of Looked After Provision Permanence and Care Leavers,085955,Auckland,Supplies and Services,304649,Equipment and Materials,02-Aug-2017,000006336189349,Amazon UK Marketplace,5942,Toys,19.75,0.00,19.75
Children and Young Peoples Services,Head of Looked After Provision Permanence and Care Leavers,085955,Auckland,Supplies and Services,324117,Provisions,02-Aug-2017,000006336189357,TESCO STORES 6329,5411,Catering costs - provisions,105.60,0.00,105.60
Regeneration and Local Services,Culture & Sport,054815,Gala Theatre Stage School,Supplies and Services,328041,Clothing Uniforms and Laundry,02-Aug-2017,000006336189383,NEW LOOK 2036,5621,Clothing uniforms and laundry,27.04,0.00,27.04
Regeneration and Local Services,Economic Development and Housing,030750,Durham Employment & Skills - General,Employees,040149,Recruitment Instruction and Training,02-Aug-2017,000006336189387,CITB,8220,Training-all costs,30.00,0.00,30.00
Regeneration and Local Services,Economic Development and Housing,030750,Durham Employment & Skills - General,Employees,040149,Recruitment Instruction and Training,02-Aug-2017,000006336189389,CITB,8220,Training-all costs,30.00,0.00,30.00
Regeneration and Local Services,Economic Development and Housing,030750,Durham Employment & Skills - General,Employees,040149,Recruitment Instruction and Training,02-Aug-2017,000006336189393,CITB,8220,Training-all costs,30.00,0.00,30.00
Regeneration and Local Services,Direct Services,021234,Catering - Locomotion,Supplies and Services,324117,Provisions,02-Aug-2017,000006336189397,JR HOLLAND FOODSERVICE,5422,Catering costs - provisions,52.26,0.00,52.26
Regeneration and Local Services,Direct Services,021234,Catering - Locomotion,Supplies and Services,324117,Provisions,02-Aug-2017,000006336189401,JR HOLLAND FOODSERVICE,5422,Catering costs - provisions,42.62,0.00,42.62
Regeneration and Local Services,Direct Services,021234,Catering - Locomotion,Supplies and Services,324117,Provisions,02-Aug-2017,000006336189403,JR HOLLAND FOODSERVICE,5422,Catering costs - provisions,8.04,0.00,8.04
Regeneration and Local Services,Direct Services,010525,Catering - Green Lane,Supplies and Services,324117,Provisions,02-Aug-2017,000006336189421,JR HOLLAND FOODSERVICE,5422,Catering costs - provisions,41.35,0.00,41.35
Children and Young Peoples Services,Head of Looked After Provision Permanence and Care Leavers,085352,Tow Law CU,Supplies and Services,304259,Equipment and Materials,02-Aug-2017,000006336189439,WWW.SIZE.CO.UK,5941,Equipment-purchase and rental,75.00,0.00,75.00
Children and Young Peoples Services,Head of Looked After Provision Permanence and Care Leavers,085352,Tow Law CU,Supplies and Services,324117,Provisions,02-Aug-2017,000006336189451,TESCO STORES 2371,5411,Catering costs - provisions,223.33,0.00,223.33
Regeneration and Local Services,Economic Development and Housing,030749,Employability - Youth Contract,Employees,040149,Recruitment Instruction and Training,02-Aug-2017,000006336189505,PAYPAL ADVANCETRAI,8244,Training-all costs,275.00,0.00,275.00
Regeneration and Local Services,Culture & Sport,011191,Wellbeing4Life,Supplies and Services,304403,Equipment and Materials,02-Aug-2017,000006336189517,BARNARDOS (55148),5947,Other consumables,6.93,0.00,6.93
Regeneration and Local Services,Culture & Sport,026591,Hardwick Park,Supplies and Services,332047,Printing Stationery and Gen Off Exps,02-Aug-2017,000006336189531,TILLROLLSDIRECT.CO,5111,Stationery,67.44,11.24,56.20
Resources,Financial Services,065166,Finance - Post Entry Training,Employees,040149,Recruitment Instruction and Training,02-Aug-2017,000006336189547,ASSOC OF ACCOUNTING TE,8931,Training-all costs,92.00,0.00,92.00
Regeneration and Local Services,Culture & Sport,054235,Bishop Auckland Town Hall Cafe,Supplies and Services,324117,Provisions,02-Aug-2017,000006336189551,JR HOLLAND FOODSERVICE,5422,Catering costs - provisions,34.78,0.00,34.78
Regeneration and Local Services,Direct Services,021324,Catering - Meadowfield,Supplies and Services,324117,Provisions,02-Aug-2017,000006336189563,JR HOLLAND FOODSERVICE,5422,Catering costs - provisions,34.78,0.00,34.78
Regeneration and Local Services,Direct Services,021324,Catering - Meadowfield,Supplies and Services,324117,Provisions,02-Aug-2017,000006336189567,JR HOLLAND FOODSERVICE,5422,Catering costs - provisions,13.87,0.00,13.87
Children and Young Peoples Services,Head of Looked After Provision Permanence and Care Leavers,085333,Coxhoe Satelite Home,Transport,235057,Public Transport,02-Aug-2017,000006336189577,PGL TRAVEL LIMITED,4722,Staff travelling,220.68,0.00,220.68
Children and Young Peoples Services,Head of Early Help Assessment and Safeguarding,088083,Ferryhill 0 - 5,Supplies and Services,324117,Provisions,02-Aug-2017,000006336189593,CO-OP GROUP 010518,5411,Catering costs - provisions,6.95,0.00,6.95
Transformation and Partnerships,Comms & Information Management,060270,Communications and Marketing,Supplies and Services,372009,Subscriptions,02-Aug-2017,000006336189627,MAILCHIMP MONTHLY,7399,Subscriptions,38.29,0.00,38.29
Regeneration and Local Services,Culture & Sport,010605,Woodhouse Close Leisure Complex,Supplies and Services,324117,Provisions,02-Aug-2017,000006336189641,JR HOLLAND FOODSERVICE,5422,Catering costs - provisions,34.43,0.00,34.43
Regeneration and Local Services,Economic Development and Housing,031576,B& B - Temp Accom,Employees,040149,Recruitment Instruction and Training,02-Aug-2017,000006340572033,PREMIER INN,3811,Training-all costs,74.50,0.00,74.50
Regeneration and Local Services,Economic Development and Housing,031576,B& B - Temp Accom,Employees,040149,Recruitment Instruction and Training,02-Aug-2017,000006340572035,PREMIER INN,3811,Training-all costs,74.50,0.00,74.50
Children and Young Peoples Services,Head of Education,071801,Selby Cottage Childcare Centre,Supplies and Services,324117,Provisions,03-Aug-2017,000006340572029,ASDA HOME SHOPPING,5411,Catering costs - provisions,98.87,0.00,98.87
Children and Young Peoples Services,Head of Education,071801,Selby Cottage Childcare Centre,Supplies and Services,304259,Equipment and Materials,03-Aug-2017,000006340572031,ITUNES.COM/BILL,5735,Equipment-purchase and rental,0.79,0.00,0.79
Resources,Financial Services,065180,Collections,Supplies and Services,338045,Services,03-Aug-2017,000006340572037,HMCOURTS-SERVICE.G,9222,Legal expenses,"6,396.00",0.00,6396.00
Regeneration and Local Services,Culture & Sport,054140,Chester-le-Street Library,Supplies and Services,342033,Computers and Communications,03-Aug-2017,000006340572039,Amazon UK Marketplace,5942,Computer hardware,18.75,0.00,18.75
Adult and Health Services,Head of Adults,055302,Durham Pathways,Supplies and Services,324117,Provisions,03-Aug-2017,000006340572053,LIDL UK,5411,Catering costs - provisions,5.88,0.98,4.90
Adult and Health Services,Head of Adults,055302,Durham Pathways,Supplies and Services,324117,Provisions,03-Aug-2017,000006340572053 - 1,LIDL UK,5411,Catering costs - provisions,4.98,,4.98
Children and Young Peoples Services,Head of Looked After Provision Permanence and Care Leavers,085342,9 Cedar Drive Aycliffe,Supplies and Services,308011,Furniture,03-Aug-2017,000006340572059,DFS,5712,Furniture repair and replacement,"1,700.00",0.00,1700.00
Regeneration and Local Services,Economic Development and Housing,030699,Business Growth and Innovation General,Supplies and Services,342033,Computers and Communications,03-Aug-2017,000006340572061,AdRoll_EMEA,7372,Computer hardware,7.47,0.00,7.47
Adult and Health Services,Head of Adults,051613,OP/PD Easington,Supplies and Services,332047,Printing Stationery and Gen Off Exps,03-Aug-2017,000006340572071,Amazon UK Marketplace,5942,Stationery,2.64,0.00,2.64
Adult and Health Services,Head of Adults,051625,Intermediate Care Plus - South,Supplies and Services,340001,Postages,03-Aug-2017,000006340572073,ROYAL MAIL ONLINE SHOP,9402,Postages,56.00,0.00,56.00
Adult and Health Services,Head of Adults,051603,OP/PD Durham & CLS,Supplies and Services,340001,Postages,03-Aug-2017,000006340572075,ROYAL MAIL ONLINE SHOP,9402,Postages,56.00,0.00,56.00
Regeneration and Local Services,Direct Services,021242,Catering - County Hall,Supplies and Services,324117,Provisions,03-Aug-2017,000006340572077,JR HOLLAND FOODSERVICE,5422,Catering costs - provisions,97.42,0.00,97.42
Regeneration and Local Services,Direct Services,021242,Catering - County Hall,Supplies and Services,324117,Provisions,03-Aug-2017,000006340572079,JR HOLLAND FOODSERVICE,5422,Catering costs - provisions,37.07,0.00,37.07
Regeneration and Local Services,Direct Services,021242,Catering - County Hall,Supplies and Services,324117,Provisions,03-Aug-2017,000006340572081,JR HOLLAND FOODSERVICE,5422,Catering costs - provisions,13.16,0.00,13.16
Children and Young Peoples Services,Head of Early Help Assessment and Safeguarding,085622,Families First Ferryhill,Supplies and Services,338048,Services,03-Aug-2017,000006340572083,STOCKTON BOROUGH COUNC,9399,Court Costs,11.00,0.00,11.00
Children and Young Peoples Services,Head of Early Help Assessment and Safeguarding,071441,Bishop Auckland One Point Hub,Supplies and Services,340001,Postages,03-Aug-2017,000006340572087,WM MORRISON 040,5411,Postages,6.72,0.00,6.72
Resources,Digital and Customer Services,065464,Domains,Supplies and Services,372009,Subscriptions,03-Aug-2017,000006340572089,WEB NETWORKSOLUTIONS,5968,Subscriptions,100.92,16.82,84.10
Resources,Digital and Customer Services,065464,Domains,Supplies and Services,372009,Subscriptions,03-Aug-2017,000006340572089 - 1,WEB NETWORKSOLUTIONS,5968,Subscriptions,8.86,,8.86
Regeneration and Local Services,Economic Development and Housing,030737,Durham Works Flexible Fund,Supplies and Services,328041,Clothing Uniforms and Laundry,03-Aug-2017,000006340572093,H & M ONLINE,5691,Clothing uniforms and laundry,18.98,0.00,18.98
Regeneration and Local Services,Economic Development and Housing,030737,Durham Works Flexible Fund,Transport,235057,Public Transport,03-Aug-2017,000006340572095,ARRIVA NORTH EAST,4131,Staff travelling,14.00,0.00,14.00
Regeneration and Local Services,Culture & Sport,054812,Gala Theatre - Catering etc,Supplies and Services,324117,Provisions,03-Aug-2017,000006340572097,JR HOLLAND FOODSERVICE,5422,Catering costs - provisions,70.89,0.00,70.89
Children and Young Peoples Services,Head of Early Help Assessment and Safeguarding,088033,Durham 0 - 5,Supplies and Services,304999,Equipment and Materials,03-Aug-2017,000006340572113,AMAZON UK PRIME AMZN.C,5968,Misc equipment tools and materials,7.99,0.00,7.99
Regeneration and Local Services,Economic Development and Housing,030749,Employability - Youth Contract,Supplies and Services,372009,Subscriptions,03-Aug-2017,000006340572115,RT DESIGN COMPANY LTD,2741,Subscriptions,45.00,0.00,45.00
Regeneration and Local Services,Economic Development and Housing,030749,Employability - Youth Contract,Transport,235057,Public Transport,03-Aug-2017,000006340572117,WWW.SIMPLYGO.COM,4131,Staff travelling,6.50,0.00,6.50
Regeneration and Local Services,Economic Development and Housing,030749,Employability - Youth Contract,Transport,235057,Public Transport,03-Aug-2017,000006340572119,WWW.SIMPLYGO.COM,4131,Staff travelling,6.50,0.00,6.50
Regeneration and Local Services,Economic Development and Housing,030749,Employability - Youth Contract,Supplies and Services,324117,Provisions,03-Aug-2017,000006340572121,ASDA STORES LTD,5411,Catering costs - provisions,40.05,0.00,40.05
Children and Young Peoples Services,Head of Looked After Provision Permanence and Care Leavers,085341,High Etherley Satelite Home,Supplies and Services,312011,Newspapers Books and Periodicals,03-Aug-2017,000006340572123,Amazon EU,5969,Books-school library,54.49,0.00,54.49
Regeneration and Local Services,Economic Development and Housing,030737,Durham Works Flexible Fund,Supplies and Services,348037,Subsistence,03-Aug-2017,000006340572127,WWW.SIMPLYGO.COM,4131,Subsistence,5.10,0.00,5.10
Children and Young Peoples Services,Head of Looked After Provision Permanence and Care Leavers,085961,Themed Week Activity,Supplies and Services,304649,Equipment and Materials,03-Aug-2017,000006340572129,Amazon UK Marketplace,5942,Toys,11.78,0.00,11.78
Children and Young Peoples Services,Head of Looked After Provision Permanence and Care Leavers,085957,Secure Management,Supplies and Services,328041,Clothing Uniforms and Laundry,03-Aug-2017,000006340572131,RMS EMBROIDERY EMBROID,5655,Clothing uniforms and laundry,450.00,75.00,375.00
Children and Young Peoples Services,Head of Looked After Provision Permanence and Care Leavers,085965,Barnard,Supplies and Services,324117,Provisions,03-Aug-2017,000006340572133,TESCO STORES 6329,5411,Catering costs - provisions,130.66,0.00,130.66
Children and Young Peoples Services,Head of Looked After Provision Permanence and Care Leavers,085957,Secure Management,Supplies and Services,328041,Clothing Uniforms and Laundry,03-Aug-2017,000006340572135,VERY.CO.UK,5964,Clothing uniforms and laundry,118.99,0.00,118.99
Children and Young Peoples Services,Head of Looked After Provision Permanence and Care Leavers,085957,Secure Management,Supplies and Services,328041,Clothing Uniforms and Laundry,03-Aug-2017,000006340572137,WWW.FOOTLOCKER.EU,5661,Clothing uniforms and laundry,-159.99,0.00,-159.99
Regeneration and Local Services,Culture & Sport,011060,Hardwick Park Catering,Supplies and Services,324117,Provisions,03-Aug-2017,000006340572145,JR HOLLAND FOODSERVICE,5422,Catering costs - provisions,27.74,0.00,27.74
Regeneration and Local Services,Culture & Sport,054815,Gala Theatre Stage School,Supplies and Services,384999,Miscellaneous Expenses,03-Aug-2017,000006340572147,MAKING FACES,7230,Other expenses,10.96,0.00,10.96
Regeneration and Local Services,Culture & Sport,054815,Gala Theatre Stage School,Supplies and Services,384999,Miscellaneous Expenses,03-Aug-2017,000006340572149,SALLY SALON SERVIC,7230,Other expenses,17.96,0.00,17.96
Children and Young Peoples Services,Head of Looked After Provision Permanence and Care Leavers,085551,Short Break Services-Park Hse Sher,Supplies and Services,384999,Miscellaneous Expenses,03-Aug-2017,000006340572151,JJ MARTIN MOTO,5046,Other expenses,"1,326.00",221.00,1105.00
Regeneration and Local Services,Direct Services,010367,C&G - South Grounds Maintenance,Supplies and Services,324117,Provisions,03-Aug-2017,000006340572167,J M RAINE,5399,Catering costs - provisions,86.46,14.41,72.05
Regeneration and Local Services,Culture & Sport,011060,Hardwick Park Catering,Supplies and Services,304083,Equipment and Materials,03-Aug-2017,000006340572185,Amazon UK Marketplace,5942,Catering equipment,24.81,0.00,24.81
Regeneration and Local Services,Culture & Sport,026591,Hardwick Park,Supplies and Services,384999,Miscellaneous Expenses,03-Aug-2017,000006340572187,Amazon UK Marketplace,5942,Other expenses,8.70,0.00,8.70
Regeneration and Local Services,Direct Services,019100,Fleet - Strategic Fleet,Employees,040149,Recruitment Instruction and Training,03-Aug-2017,000006340572189,DSA,9399,Training-all costs,"3,000.00",0.00,3000.00
Regeneration and Local Services,Spatial Policy Planning Assets & Environment,031200,North Pennines Core,Transport,235057,Public Transport,03-Aug-2017,000006340572197,STANHOPE TRAVEL,4722,Staff travelling,343.50,0.00,343.50
Resources,Corporate Finance,065109,Pensions,Supplies and Services,384199,Miscellaneous Expenses,03-Aug-2017,000006340572209,SUNDERLAND CC,9399,Other hired and contracted services,10.00,0.00,10.00
Resources,Corporate Finance,065109,Pensions,Supplies and Services,384199,Miscellaneous Expenses,03-Aug-2017,000006340572211,REGISTRARS OFFICE,9399,Other hired and contracted services,22.00,0.00,22.00
Resources,Corporate Finance,065109,Pensions,Supplies and Services,384199,Miscellaneous Expenses,03-Aug-2017,000006340572213,NEWCASTLE CITY COUNCIL,4789,Other hired and contracted services,12.24,0.00,12.24
Adult and Health Services,Head of Adults,055301,Stanley Pathways,Supplies and Services,328041,Clothing Uniforms and Laundry,03-Aug-2017,000006340572215,W BOYES & CO LTD CONSE,5310,Clothing uniforms and laundry,14.93,0.00,14.93
Regeneration and Local Services,Direct Services,010301,C&G - North Grounds Maintenance,Supplies and Services,304259,Equipment and Materials,03-Aug-2017,000006340572221,MACHINE MART LTD,5722,Equipment-purchase and rental,83.99,14.00,69.99
Children and Young Peoples Services,Head of Early Help Assessment and Safeguarding,088083,Ferryhill 0 - 5,Supplies and Services,324117,Provisions,03-Aug-2017,000006340572235,SAINSBURYS LOC4628,5411,Catering costs - provisions,16.25,0.00,16.25
Regeneration and Local Services,Direct Services,021235,Catering - Wharton Park,Supplies and Services,324117,Provisions,03-Aug-2017,000006340572245,JR HOLLAND FOODSERVICE,5422,Catering costs - provisions,32.18,0.00,32.18
Regeneration and Local Services,Economic Development and Housing,031500,Housing Solutions - Core Team,Employees,040149,Recruitment Instruction and Training,03-Aug-2017,000006345726517,PREMIER INN,3811,Training-all costs,66.00,11.00,55.00
Regeneration and Local Services,Economic Development and Housing,031500,Housing Solutions - Core Team,Employees,040149,Recruitment Instruction and Training,03-Aug-2017,000006345726519,PREMIER INN,3811,Training-all costs,65.00,0.00,65.00
Regeneration and Local Services,Direct Services,021242,Catering - County Hall,Supplies and Services,324117,Provisions,03-Aug-2017,000006345726577,BATLEYS PERTH,5300,Catering costs - provisions,28.32,4.72,23.60
Regeneration and Local Services,Direct Services,021242,Catering - County Hall,Supplies and Services,324117,Provisions,03-Aug-2017,000006345726577 - 1,BATLEYS PERTH,5300,Catering costs - provisions,12.87,,12.87
Regeneration and Local Services,Direct Services,021242,Catering - County Hall,Supplies and Services,324117,Provisions,03-Aug-2017,000006345726583,BATLEYS PERTH,5300,Catering costs - provisions,134.04,22.34,111.70
Regeneration and Local Services,Direct Services,021242,Catering - County Hall,Supplies and Services,324117,Provisions,03-Aug-2017,000006345726583 - 1,BATLEYS PERTH,5300,Catering costs - provisions,58.60,,58.60
Regeneration and Local Services,Economic Development and Housing,030737,Durham Works Flexible Fund,Supplies and Services,328041,Clothing Uniforms and Laundry,03-Aug-2017,000006345726597,H & M ONLINE,5691,Clothing uniforms and laundry,138.94,0.00,138.94
Regeneration and Local Services,Economic Development and Housing,030737,Durham Works Flexible Fund,Supplies and Services,328041,Clothing Uniforms and Laundry,03-Aug-2017,000006345726599,WWW.BURTON.CO.UK,5691,Clothing uniforms and laundry,56.80,0.00,56.80
Children and Young Peoples Services,Head of Looked After Provision Permanence and Care Leavers,085957,Secure Management,Supplies and Services,384999,Miscellaneous Expenses,03-Aug-2017,000006345726695,Amazon UK Marketplace,5942,Other expenses,25.67,0.00,25.67
Children and Young Peoples Services,Head of Looked After Provision Permanence and Care Leavers,085961,Themed Week Activity,Supplies and Services,304649,Equipment and Materials,03-Aug-2017,000006345726711,AMAZON.CO.UK,5999,Toys,36.99,0.00,36.99
Regeneration and Local Services,Culture & Sport,011060,Hardwick Park Catering,Supplies and Services,324117,Provisions,03-Aug-2017,000006345726733,BATLEYS PERTH,5300,Catering costs - provisions,422.64,70.44,352.20
Regeneration and Local Services,Culture & Sport,011060,Hardwick Park Catering,Supplies and Services,324117,Provisions,03-Aug-2017,000006345726733 - 1,BATLEYS PERTH,5300,Catering costs - provisions,215.13,,215.13
Regeneration and Local Services,Culture & Sport,011060,Hardwick Park Catering,Supplies and Services,324117,Provisions,03-Aug-2017,000006345726741,BATLEYS PERTH,5300,Catering costs - provisions,11.40,1.90,9.50
Regeneration and Local Services,Culture & Sport,011060,Hardwick Park Catering,Supplies and Services,324117,Provisions,03-Aug-2017,000006345726745,BATLEYS PERTH,5300,Catering costs - provisions,44.57,0.00,44.57
Regeneration and Local Services,Culture & Sport,011060,Hardwick Park Catering,Supplies and Services,324117,Provisions,03-Aug-2017,000006345726747,BATLEYS PERTH,5300,Catering costs - provisions,-6.50,0.00,-6.50
Regeneration and Local Services,Direct Services,021234,Catering - Locomotion,Supplies and Services,324117,Provisions,03-Aug-2017,000006345726785,BATLEYS PERTH,5300,Catering costs - provisions,179.88,29.98,149.90
Regeneration and Local Services,Direct Services,021234,Catering - Locomotion,Supplies and Services,324117,Provisions,03-Aug-2017,000006345726785 - 1,BATLEYS PERTH,5300,Catering costs - provisions,48.06,,48.06
Regeneration and Local Services,Direct Services,021234,Catering - Locomotion,Supplies and Services,324117,Provisions,03-Aug-2017,000006345726793,BATLEYS PERTH,5300,Catering costs - provisions,125.46,20.91,104.55
Regeneration and Local Services,Direct Services,021234,Catering - Locomotion,Supplies and Services,324117,Provisions,03-Aug-2017,000006345726793 - 1,BATLEYS PERTH,5300,Catering costs - provisions,53.50,,53.50
Regeneration and Local Services,Direct Services,021235,Catering - Wharton Park,Supplies and Services,324117,Provisions,03-Aug-2017,000006345727155,BATLEYS PERTH,5300,Catering costs - provisions,134.10,22.35,111.75
Regeneration and Local Services,Direct Services,021235,Catering - Wharton Park,Supplies and Services,324117,Provisions,03-Aug-2017,000006345727155 - 1,BATLEYS PERTH,5300,Catering costs - provisions,37.87,,37.87
Regeneration and Local Services,Economic Development and Housing,030699,Business Growth and Innovation General,Supplies and Services,342033,Computers and Communications,04-Aug-2017,000006340572063,AdRoll_EMEA,7372,Computer hardware,0.21,0.00,0.21
Resources,Digital and Customer Services,065464,Domains,Supplies and Services,372009,Subscriptions,04-Aug-2017,000006340572091,WEB NETWORKSOLUTIONS,5968,Subscriptions,3.02,0.00,3.02
Children and Young Peoples Services,Head of Education,071801,Selby Cottage Childcare Centre,Supplies and Services,324117,Provisions,04-Aug-2017,000006345726513,TESCO STORES 2371,5411,Catering costs - provisions,39.07,0.00,39.07
Resources,Financial Services,065129,Subsidy,Supplies and Services,338045,Services,04-Aug-2017,000006345726515,WWW.MONEYCLAIM.GOV,9399,Legal expenses,70.00,0.00,70.00
Adult and Health Services,Head of Adults,055302,Durham Pathways,Supplies and Services,340001,Postages,04-Aug-2017,000006345726531,POST OFFICE COUNTER,9402,Postages,7.80,0.00,7.80
Regeneration and Local Services,Economic Development and Housing,030699,Business Growth and Innovation General,Supplies and Services,304403,Equipment and Materials,04-Aug-2017,000006345726547,MEETEDGAR MONTHLY,5734,Other consumables,37.58,0.00,37.58
Regeneration and Local Services,Direct Services,021242,Catering - County Hall,Supplies and Services,324117,Provisions,04-Aug-2017,000006345726571,JR HOLLAND FOODSERVICE,5422,Catering costs - provisions,79.25,0.00,79.25
Regeneration and Local Services,Direct Services,021242,Catering - County Hall,Supplies and Services,324117,Provisions,04-Aug-2017,000006345726575,JR HOLLAND FOODSERVICE,5422,Catering costs - provisions,13.16,0.00,13.16
Regeneration and Local Services,Culture & Sport,054233,Bishop Auckland Town Hall Library,Supplies and Services,312011,Newspapers Books and Periodicals,04-Aug-2017,000006345726585,Amazon UK Marketplace,5942,Books-school library,19.44,0.00,19.44
Regeneration and Local Services,Culture & Sport,054233,Bishop Auckland Town Hall Library,Supplies and Services,312011,Newspapers Books and Periodicals,04-Aug-2017,000006345726587,Amazon EU,5969,Books-school library,71.95,0.00,71.95
Regeneration and Local Services,Economic Development and Housing,030737,Durham Works Flexible Fund,Supplies and Services,328041,Clothing Uniforms and Laundry,04-Aug-2017,000006345726593,RIVER ISLAND 400,5691,Clothing uniforms and laundry,85.00,0.00,85.00
Regeneration and Local Services,Economic Development and Housing,030737,Durham Works Flexible Fund,Supplies and Services,328041,Clothing Uniforms and Laundry,04-Aug-2017,000006345726603,WWW.DOROTHYPERKINS,5691,Clothing uniforms and laundry,20.95,0.00,20.95
Regeneration and Local Services,Culture & Sport,011219,Office Services,Supplies and Services,332047,Printing Stationery and Gen Off Exps,04-Aug-2017,000006345726641,LOVE2SHOP.CO.UK,8641,Stationery,126.45,0.00,126.45
Regeneration and Local Services,Economic Development and Housing,030749,Employability - Youth Contract,Supplies and Services,304259,Equipment and Materials,04-Aug-2017,000006345726665,HM PASSPORT OFFICE,9399,Equipment-purchase and rental,72.50,0.00,72.50
Regeneration and Local Services,Economic Development and Housing,030749,Employability - Youth Contract,Transport,235057,Public Transport,04-Aug-2017,000006345726669,WWW.SIMPLYGO.COM,4131,Staff travelling,27.00,0.00,27.00
Children and Young Peoples Services,Head of Looked After Provision Permanence and Care Leavers,085961,Themed Week Activity,Supplies and Services,384871,Miscellaneous Expenses,04-Aug-2017,000006345726699,Amazon UK Marketplace,5942,Training-other activities,24.89,0.00,24.89
Children and Young Peoples Services,Head of Looked After Provision Permanence and Care Leavers,085961,Themed Week Activity,Supplies and Services,384871,Miscellaneous Expenses,04-Aug-2017,000006345726701,Amazon UK Marketplace,5942,Training-other activities,5.49,0.00,5.49
Children and Young Peoples Services,Head of Looked After Provision Permanence and Care Leavers,085956,Lumley,Supplies and Services,324117,Provisions,04-Aug-2017,000006345726707,TESCO STORES 6329,5411,Catering costs - provisions,110.67,0.00,110.67
Children and Young Peoples Services,Head of Looked After Provision Permanence and Care Leavers,085961,Themed Week Activity,Supplies and Services,384871,Miscellaneous Expenses,04-Aug-2017,000006345726713,AMAZON.CO.UK,5999,Training-other activities,22.49,0.00,22.49
Regeneration and Local Services,Direct Services,010367,C&G - South Grounds Maintenance,Third Party Payments,430100,Rendered by Private Contractors,04-Aug-2017,000006345726721,THE RAMP PEOPLE,7399,Payments to sub-contractors,237.60,39.60,198.00
Regeneration and Local Services,Culture & Sport,011060,Hardwick Park Catering,Supplies and Services,324117,Provisions,04-Aug-2017,000006345726729,JR HOLLAND FOODSERVICE,5422,Catering costs - provisions,52.03,0.00,52.03
Regeneration and Local Services,Economic Development and Housing,030750,Durham Employment & Skills - General,Employees,040149,Recruitment Instruction and Training,04-Aug-2017,000006345726777,CITB,8220,Training-all costs,30.00,0.00,30.00
Regeneration and Local Services,Economic Development and Housing,030671,Business Space,Supplies and Services,324117,Provisions,04-Aug-2017,000006345726803,LIDL UK,5411,Catering costs - provisions,42.52,7.09,35.43
Regeneration and Local Services,Direct Services,010525,Catering - Green Lane,Supplies and Services,324117,Provisions,04-Aug-2017,000006345726809,JR HOLLAND FOODSERVICE,5422,Catering costs - provisions,44.54,0.00,44.54
Regeneration and Local Services,Direct Services,010367,C&G - South Grounds Maintenance,Supplies and Services,304999,Equipment and Materials,04-Aug-2017,000006345726825,NEW ROW FARM NURSERIES,5193,Misc equipment tools and materials,114.84,19.14,95.70
Regeneration and Local Services,Direct Services,010367,C&G - South Grounds Maintenance,Third Party Payments,430100,Rendered by Private Contractors,04-Aug-2017,000006345726829,GREEN-TECH LTD,7399,Payments to sub-contractors,154.80,25.80,129.00
Regeneration and Local Services,Direct Services,020073,Bldg Serv - R&M Div 73 - Gas Servicing,Supplies and Services,304221,Equipment and Materials,04-Aug-2017,000006345726849,WWW.CORGI-DIRECT.COM,5211,Direct materials,180.00,30.00,150.00
Children and Young Peoples Services,Head of Looked After Provision Permanence and Care Leavers,085333,Coxhoe Satelite Home,Supplies and Services,304403,Equipment and Materials,04-Aug-2017,000006345726857,PAYPAL NUTTYNATALI,5999,Other consumables,63.00,0.00,63.00
Children and Young Peoples Services,Head of Looked After Provision Permanence and Care Leavers,085333,Coxhoe Satelite Home,Supplies and Services,324117,Provisions,04-Aug-2017,000006345726859,ASDA SUPERSTORE 4987,5411,Catering costs - provisions,138.84,0.00,138.84
Children and Young Peoples Services,Head of Looked After Provision Permanence and Care Leavers,085333,Coxhoe Satelite Home,Supplies and Services,324117,Provisions,04-Aug-2017,000006345726861,ASDA SUPERSTORE 4987,5411,Catering costs - provisions,22.00,0.00,22.00
Regeneration and Local Services,Economic Development and Housing,031576,B& B - Temp Accom,Supplies and Services,364320,Grants to Voluntary Organisations,04-Aug-2017,000006345726907,PREMIER INN,3811,Accommodation assistance,191.50,31.92,159.58
Regeneration and Local Services,Economic Development and Housing,031576,B& B - Temp Accom,Supplies and Services,364320,Grants to Voluntary Organisations,04-Aug-2017,000006345726913,PREMIER INN,3811,Accommodation assistance,184.00,30.67,153.33
Regeneration and Local Services,Direct Services,021324,Catering - Meadowfield,Supplies and Services,324117,Provisions,04-Aug-2017,000006345726991,JR HOLLAND FOODSERVICE,5422,Catering costs - provisions,30.88,0.00,30.88
Regeneration and Local Services,Direct Services,021324,Catering - Meadowfield,Supplies and Services,324117,Provisions,04-Aug-2017,000006345726997,JR HOLLAND FOODSERVICE,5422,Catering costs - provisions,9.87,0.00,9.87
Children and Young Peoples Services,Head of Looked After Provision Permanence and Care Leavers,085333,Coxhoe Satelite Home,Supplies and Services,328041,Clothing Uniforms and Laundry,04-Aug-2017,000006345727003,MATALAN,5691,Clothing uniforms and laundry,32.00,0.00,32.00
Children and Young Peoples Services,Head of Looked After Provision Permanence and Care Leavers,085333,Coxhoe Satelite Home,Supplies and Services,312011,Newspapers Books and Periodicals,04-Aug-2017,000006345727007,HOME BARGAINS,5251,Books-school library,16.44,0.00,16.44
Children and Young Peoples Services,Head of Looked After Provision Permanence and Care Leavers,085333,Coxhoe Satelite Home,Supplies and Services,324117,Provisions,04-Aug-2017,000006345727011,TESCO STORES 2371,5411,Catering costs - provisions,19.71,0.00,19.71
Children and Young Peoples Services,Head of Looked After Provision Permanence and Care Leavers,085333,Coxhoe Satelite Home,Supplies and Services,304259,Equipment and Materials,04-Aug-2017,000006345727013,SPORTSDIRECT 264,5941,Equipment-purchase and rental,11.99,0.00,11.99
Adult and Health Services,Head of Adults,055301,Stanley Pathways,Supplies and Services,324117,Provisions,04-Aug-2017,000006345727019,ASDA SUPERSTORE,5411,Catering costs - provisions,5.98,0.00,5.98
Regeneration and Local Services,Direct Services,010301,C&G - North Grounds Maintenance,Supplies and Services,304221,Equipment and Materials,04-Aug-2017,000006345727107,JG PAXTON & SONS LTD,8911,Direct materials,59.84,9.97,49.87
Adult and Health Services,Head of Adults,055306,Spennymoor Pathways,Supplies and Services,304259,Equipment and Materials,04-Aug-2017,000006345727137,CURRYS ONLINE,5732,Equipment-purchase and rental,299.00,49.83,249.17
Children and Young Peoples Services,Head of Early Help Assessment and Safeguarding,071693,Brandon Childrens Centre,Supplies and Services,324117,Provisions,04-Aug-2017,000006345727187,TESCO STORES 5970,5411,Catering costs - provisions,5.15,0.00,5.15
Regeneration and Local Services,Economic Development and Housing,030554,International Relations,Supplies and Services,384926,Miscellaneous Expenses,04-Aug-2017,000006345727207,E/TUNNEL INTERNET,4789,International visits,347.00,0.00,347.00
Resources,Financial Services,065180,Collections,Supplies and Services,338064,Services,04-Aug-2017,000006345727217,DISCLOSURE SCOT,9399,Disclosure & Barring (DBS) Fees,25.00,0.00,25.00
Regeneration and Local Services,Culture & Sport,011060,Hardwick Park Catering,Supplies and Services,324117,Provisions,04-Aug-2017,000006352044905,BATLEYS PERTH,5300,Catering costs - provisions,191.82,31.97,159.85
Regeneration and Local Services,Culture & Sport,011060,Hardwick Park Catering,Supplies and Services,324117,Provisions,04-Aug-2017,000006352044905 - 1,BATLEYS PERTH,5300,Catering costs - provisions,118.02,,118.02
Regeneration and Local Services,Direct Services,010525,Catering - Green Lane,Supplies and Services,324117,Provisions,04-Aug-2017,000006352044969,BATLEYS PERTH,5300,Catering costs - provisions,232.62,38.77,193.85
Regeneration and Local Services,Direct Services,010525,Catering - Green Lane,Supplies and Services,324117,Provisions,04-Aug-2017,000006352044969 - 1,BATLEYS PERTH,5300,Catering costs - provisions,82.34,,82.34
Regeneration and Local Services,Culture & Sport,010605,Woodhouse Close Leisure Complex,Supplies and Services,324117,Provisions,04-Aug-2017,000006352045215,BATLEYS PERTH,5300,Catering costs - provisions,122.10,20.35,101.75
Regeneration and Local Services,Culture & Sport,010605,Woodhouse Close Leisure Complex,Supplies and Services,324117,Provisions,04-Aug-2017,000006352045215 - 1,BATLEYS PERTH,5300,Catering costs - provisions,89.81,,89.81
Children and Young Peoples Services,Head of Looked After Provision Permanence and Care Leavers,085341,High Etherley Satelite Home,Supplies and Services,324117,Provisions,05-Aug-2017,000006345726493,SAINSBURYS 2082,5411,Catering costs - provisions,59.46,0.00,59.46
Children and Young Peoples Services,Head of Looked After Provision Permanence and Care Leavers,085341,High Etherley Satelite Home,Supplies and Services,328041,Clothing Uniforms and Laundry,05-Aug-2017,000006345726497,MOUNTAIN WAREHOUSE,5691,Clothing uniforms and laundry,22.99,0.00,22.99
Children and Young Peoples Services,Head of Looked After Provision Permanence and Care Leavers,085954,Walworth,Supplies and Services,324117,Provisions,05-Aug-2017,000006345726717,TESCO STORES 6329,5411,Catering costs - provisions,87.93,0.00,87.93
Regeneration and Local Services,Culture & Sport,054815,Gala Theatre Stage School,Supplies and Services,304403,Equipment and Materials,05-Aug-2017,000006345726769,CARD FACTORY,5947,Other consumables,19.99,0.00,19.99
Regeneration and Local Services,Culture & Sport,054815,Gala Theatre Stage School,Supplies and Services,304403,Equipment and Materials,05-Aug-2017,000006345726771,CLINTONS 503,5947,Other consumables,39.98,0.00,39.98
Resources,Resources Management,069000,Resources Management,Supplies and Services,324117,Provisions,05-Aug-2017,000006345726893,SAINSBURYS (2303),5411,Catering costs - provisions,2.00,0.00,2.00
Regeneration and Local Services,Spatial Policy Planning Assets & Environment,031222,North Pennines Allen Valleys Landscape Partnership,Supplies and Services,324117,Provisions,05-Aug-2017,000006345726919,WAITROSE 782,5411,Catering costs - provisions,11.13,0.00,11.13
Resources,Digital and Customer Services,065303,Design & Print - Design,Supplies and Services,372009,Subscriptions,06-Aug-2017,000006345727131,APPY PIE,5734,Subscriptions,48.00,0.00,48.00
Regeneration and Local Services,Economic Development and Housing,030699,Business Growth and Innovation General,Supplies and Services,304403,Equipment and Materials,07-Aug-2017,000006345726549,MEETEDGAR MONTHLY,5734,Other consumables,1.03,0.00,1.03
Children and Young Peoples Services,Head of Education,071801,Selby Cottage Childcare Centre,Supplies and Services,304259,Equipment and Materials,07-Aug-2017,000006352044595,WILKO RETAIL LIMIT,5722,Equipment-purchase and rental,26.50,0.00,26.50
Resources,Legal & Democratic Services,069310,Head of Legal and Democratic Services,Supplies and Services,312011,Newspapers Books and Periodicals,07-Aug-2017,000006352044603,Amazon UK Marketplace,5942,Books-school library,48.94,0.00,48.94
Regeneration and Local Services,Direct Services,010367,C&G - South Grounds Maintenance,Supplies and Services,304259,Equipment and Materials,07-Aug-2017,000006352044639,SCREWFIX,5211,Equipment-purchase and rental,39.99,6.67,33.32
Adult and Health Services,Head of Adults,055302,Durham Pathways,Supplies and Services,324117,Provisions,07-Aug-2017,000006352044645,SAINSBURYS 0776,5411,Catering costs - provisions,35.55,0.00,35.55
Adult and Health Services,Head of Adults,055302,Durham Pathways,Supplies and Services,324117,Provisions,07-Aug-2017,000006352044651,LAKELAND LIMITED,5399,Catering costs - provisions,6.28,0.00,6.28
Adult and Health Services,Head of Adults,055302,Durham Pathways,Supplies and Services,324117,Provisions,07-Aug-2017,000006352044653,LIDL UK,5411,Catering costs - provisions,28.73,0.00,28.73
Adult and Health Services,Head of Adults,055302,Durham Pathways,Supplies and Services,328041,Clothing Uniforms and Laundry,07-Aug-2017,000006352044659,THE WORKS,5310,Clothing uniforms and laundry,4.00,0.00,4.00
Regeneration and Local Services,Direct Services,021242,Catering - County Hall,Supplies and Services,324117,Provisions,07-Aug-2017,000006352044673,WWW.ADELIEFOODS.CO.UK,5499,Catering costs - provisions,151.97,0.00,151.97
Regeneration and Local Services,Direct Services,021242,Catering - County Hall,Supplies and Services,324117,Provisions,07-Aug-2017,000006352044675,WWW.ADELIEFOODS.CO.UK,5499,Catering costs - provisions,75.47,0.00,75.47
Regeneration and Local Services,Direct Services,021242,Catering - County Hall,Supplies and Services,324117,Provisions,07-Aug-2017,000006352044681,WWW.ADELIEFOODS.CO.UK,5499,Catering costs - provisions,67.03,0.00,67.03
Regeneration and Local Services,Direct Services,021242,Catering - County Hall,Supplies and Services,324117,Provisions,07-Aug-2017,000006352044683,WWW.ADELIEFOODS.CO.UK,5499,Catering costs - provisions,59.42,0.00,59.42
Regeneration and Local Services,Direct Services,021242,Catering - County Hall,Supplies and Services,324117,Provisions,07-Aug-2017,000006352044689,WWW.ADELIEFOODS.CO.UK,5499,Catering costs - provisions,56.72,0.00,56.72
Regeneration and Local Services,Direct Services,021242,Catering - County Hall,Supplies and Services,324117,Provisions,07-Aug-2017,000006352044691,FREEMAN CATERING BUTCH,5422,Catering costs - provisions,162.11,0.00,162.11
Regeneration and Local Services,Direct Services,021242,Catering - County Hall,Supplies and Services,324117,Provisions,07-Aug-2017,000006352044697,FREEMAN CATERING BUTCH,5422,Catering costs - provisions,1.60,0.00,1.60
Regeneration and Local Services,Direct Services,021242,Catering - County Hall,Supplies and Services,324117,Provisions,07-Aug-2017,000006352044703,JR HOLLAND FOODSERVICE,5422,Catering costs - provisions,58.20,0.00,58.20
Regeneration and Local Services,Direct Services,021242,Catering - County Hall,Supplies and Services,324117,Provisions,07-Aug-2017,000006352044713,JR HOLLAND FOODSERVICE,5422,Catering costs - provisions,6.94,0.00,6.94
Children and Young Peoples Services,Head of Early Help Assessment and Safeguarding,085622,Families First Ferryhill,Supplies and Services,338048,Services,07-Aug-2017,000006352044717,ASDA HOME SHOPPING,5411,Court Costs,31.49,0.00,31.49
Resources,Digital and Customer Services,065464,Domains,Supplies and Services,372009,Subscriptions,07-Aug-2017,000006352044725,WEB NETWORKSOLUTIONS,5968,Subscriptions,164.04,27.34,136.70
Resources,Digital and Customer Services,065464,Domains,Supplies and Services,372009,Subscriptions,07-Aug-2017,000006352044725 - 1,WEB NETWORKSOLUTIONS,5968,Subscriptions,15.72,,15.72
Regeneration and Local Services,Economic Development and Housing,030737,Durham Works Flexible Fund,Transport,235057,Public Transport,07-Aug-2017,000006352044733,ARRIVA NORTH EAST,4131,Staff travelling,85.50,0.00,85.50
Regeneration and Local Services,Economic Development and Housing,030737,Durham Works Flexible Fund,Transport,235057,Public Transport,07-Aug-2017,000006352044739,CO-OP GROUP 010518,5411,Staff travelling,85.50,0.00,85.50
Regeneration and Local Services,Culture & Sport,054812,Gala Theatre - Catering etc,Supplies and Services,324117,Provisions,07-Aug-2017,000006352044745,FREEMAN CATERING BUTCH,5422,Catering costs - provisions,24.30,0.00,24.30
Regeneration and Local Services,Economic Development and Housing,031576,B& B - Temp Accom,Supplies and Services,364320,Grants to Voluntary Organisations,07-Aug-2017,000006352044753,TRAVELODGE,3615,Accommodation assistance,41.00,6.83,34.17
Regeneration and Local Services,Economic Development and Housing,030749,Employability - Youth Contract,Transport,235057,Public Transport,07-Aug-2017,000006352044759,ARRIVA NORTH EAST,4131,Staff travelling,50.00,0.00,50.00
Regeneration and Local Services,Economic Development and Housing,030737,Durham Works Flexible Fund,Transport,235057,Public Transport,07-Aug-2017,000006352044793,ARRIVA NORTH EAST,4131,Staff travelling,7.00,0.00,7.00
Regeneration and Local Services,Economic Development and Housing,030737,Durham Works Flexible Fund,Supplies and Services,384700,Miscellaneous Expenses,07-Aug-2017,000006352044817,DVLA DRIVER ONLINE,9399,Miscellaneous grants,34.00,0.00,34.00
Children and Young Peoples Services,Head of Looked After Provision Permanence and Care Leavers,085956,Lumley,Supplies and Services,304649,Equipment and Materials,07-Aug-2017,000006352044827,Amazon UK Marketplace,5942,Toys,15.84,0.00,15.84
Children and Young Peoples Services,Head of Looked After Provision Permanence and Care Leavers,085955,Auckland,Supplies and Services,304649,Equipment and Materials,07-Aug-2017,000006352044833,Amazon EU,5969,Toys,5.80,0.00,5.80
Children and Young Peoples Services,Head of Looked After Provision Permanence and Care Leavers,085956,Lumley,Supplies and Services,304649,Equipment and Materials,07-Aug-2017,000006352044835,Amazon UK Marketplace,5942,Toys,27.24,0.00,27.24
Children and Young Peoples Services,Head of Looked After Provision Permanence and Care Leavers,085955,Auckland,Supplies and Services,304649,Equipment and Materials,07-Aug-2017,000006352044841,Amazon EU,5969,Toys,9.81,0.00,9.81
Children and Young Peoples Services,Head of Looked After Provision Permanence and Care Leavers,085957,Secure Management,Supplies and Services,328041,Clothing Uniforms and Laundry,07-Aug-2017,000006352044849,WWW.NIKESTORE.COM,5691,Clothing uniforms and laundry,84.49,14.08,70.41
Regeneration and Local Services,Culture & Sport,011060,Hardwick Park Catering,Supplies and Services,324117,Provisions,07-Aug-2017,000006352044881,FREEMAN CATERING BUTCH,5422,Catering costs - provisions,61.22,0.00,61.22
Regeneration and Local Services,Culture & Sport,011060,Hardwick Park Catering,Supplies and Services,324117,Provisions,07-Aug-2017,000006352044883,FREEMAN CATERING BUTCH,5422,Catering costs - provisions,16.50,0.00,16.50
Regeneration and Local Services,Culture & Sport,011060,Hardwick Park Catering,Supplies and Services,324117,Provisions,07-Aug-2017,000006352044887,FREEMAN CATERING BUTCH,5422,Catering costs - provisions,6.12,0.00,6.12
Regeneration and Local Services,Culture & Sport,011060,Hardwick Park Catering,Supplies and Services,324117,Provisions,07-Aug-2017,000006352044891,JR HOLLAND FOODSERVICE,5422,Catering costs - provisions,56.42,0.00,56.42
Regeneration and Local Services,Culture & Sport,011060,Hardwick Park Catering,Supplies and Services,324117,Provisions,07-Aug-2017,000006352044899,JR HOLLAND FOODSERVICE,5422,Catering costs - provisions,3.96,0.00,3.96
Regeneration and Local Services,Culture & Sport,011060,Hardwick Park Catering,Supplies and Services,324117,Provisions,07-Aug-2017,000006352044917,FREEMAN CATERING BUTCH,5422,Catering costs - provisions,-6.22,0.00,-6.22
Regeneration and Local Services,Direct Services,021234,Catering - Locomotion,Supplies and Services,324117,Provisions,07-Aug-2017,000006352044925,WWW.ADELIEFOODS.CO.UK,5499,Catering costs - provisions,154.08,0.00,154.08
Regeneration and Local Services,Direct Services,021234,Catering - Locomotion,Supplies and Services,324117,Provisions,07-Aug-2017,000006352044927,WWW.ADELIEFOODS.CO.UK,5499,Catering costs - provisions,59.89,0.00,59.89
Regeneration and Local Services,Direct Services,021234,Catering - Locomotion,Supplies and Services,324117,Provisions,07-Aug-2017,000006352044931,WWW.ADELIEFOODS.CO.UK,5499,Catering costs - provisions,59.89,0.00,59.89
Regeneration and Local Services,Direct Services,021234,Catering - Locomotion,Supplies and Services,324117,Provisions,07-Aug-2017,000006352044933,WWW.ADELIEFOODS.CO.UK,5499,Catering costs - provisions,59.89,0.00,59.89
Regeneration and Local Services,Direct Services,021234,Catering - Locomotion,Supplies and Services,324117,Provisions,07-Aug-2017,000006352044937,WWW.ADELIEFOODS.CO.UK,5499,Catering costs - provisions,59.89,0.00,59.89
Regeneration and Local Services,Direct Services,021234,Catering - Locomotion,Supplies and Services,324117,Provisions,07-Aug-2017,000006352044941,JR HOLLAND FOODSERVICE,5422,Catering costs - provisions,22.91,0.00,22.91
Regeneration and Local Services,Direct Services,010525,Catering - Green Lane,Supplies and Services,324117,Provisions,07-Aug-2017,000006352044951,WWW.ADELIEFOODS.CO.UK,5499,Catering costs - provisions,37.20,0.00,37.20
Regeneration and Local Services,Direct Services,010525,Catering - Green Lane,Supplies and Services,324117,Provisions,07-Aug-2017,000006352044957,WWW.ADELIEFOODS.CO.UK,5499,Catering costs - provisions,37.20,0.00,37.20
Regeneration and Local Services,Direct Services,010525,Catering - Green Lane,Supplies and Services,324117,Provisions,07-Aug-2017,000006352044959,WWW.ADELIEFOODS.CO.UK,5499,Catering costs - provisions,20.76,0.00,20.76
Regeneration and Local Services,Direct Services,010525,Catering - Green Lane,Supplies and Services,324117,Provisions,07-Aug-2017,000006352044963,FREEMAN CATERING BUTCH,5422,Catering costs - provisions,38.39,0.00,38.39
Regeneration and Local Services,Culture & Sport,011191,Wellbeing4Life,Supplies and Services,324117,Provisions,07-Aug-2017,000006352045051,ALDI 74 774 S,5411,Catering costs - provisions,30.86,0.00,30.86
Regeneration and Local Services,Culture & Sport,011191,Wellbeing4Life,Supplies and Services,328041,Clothing Uniforms and Laundry,07-Aug-2017,000006352045055,POUNDWORLD,5310,Clothing uniforms and laundry,9.05,0.00,9.05
Regeneration and Local Services,Culture & Sport,054235,Bishop Auckland Town Hall Cafe,Supplies and Services,324117,Provisions,07-Aug-2017,000006352045075,JR HOLLAND FOODSERVICE,5422,Catering costs - provisions,22.10,0.00,22.10
Regeneration and Local Services,Direct Services,021324,Catering - Meadowfield,Supplies and Services,324117,Provisions,07-Aug-2017,000006352045083,WWW.ADELIEFOODS.CO.UK,5499,Catering costs - provisions,46.88,0.00,46.88
Regeneration and Local Services,Direct Services,021324,Catering - Meadowfield,Supplies and Services,324117,Provisions,07-Aug-2017,000006352045089,WWW.ADELIEFOODS.CO.UK,5499,Catering costs - provisions,37.51,0.00,37.51
Regeneration and Local Services,Direct Services,021324,Catering - Meadowfield,Supplies and Services,324117,Provisions,07-Aug-2017,000006352045095,WWW.ADELIEFOODS.CO.UK,5499,Catering costs - provisions,26.52,0.00,26.52
Regeneration and Local Services,Direct Services,021324,Catering - Meadowfield,Supplies and Services,324117,Provisions,07-Aug-2017,000006352045099,FREEMAN CATERING BUTCH,5422,Catering costs - provisions,52.27,0.00,52.27
Regeneration and Local Services,Direct Services,021324,Catering - Meadowfield,Supplies and Services,324117,Provisions,07-Aug-2017,000006352045107,FREEMAN CATERING BUTCH,5422,Catering costs - provisions,51.20,0.00,51.20
Children and Young Peoples Services,Head of Looked After Provision Permanence and Care Leavers,085333,Coxhoe Satelite Home,Transport,235057,Public Transport,07-Aug-2017,000006352045109,PGL TRAVEL LIMITED,4722,Staff travelling,271.63,0.00,271.63
Regeneration and Local Services,Culture & Sport,011086,Positive Futures,Supplies and Services,324117,Provisions,07-Aug-2017,000006352045133,ASDA STORES,5411,Catering costs - provisions,17.53,0.00,17.53
Children and Young Peoples Services,Head of Looked After Provision Permanence and Care Leavers,085380,Operations Manager Adoption & Fostering,Supplies and Services,352001,Conference Expenses,07-Aug-2017,000006352045141,BEAMISH-HALL.CO.UK,7011,Conferencesseminars fees etc,50.00,0.00,50.00
Regeneration and Local Services,Direct Services,021235,Catering - Wharton Park,Supplies and Services,324117,Provisions,07-Aug-2017,000006352045169,WWW.ADELIEFOODS.CO.UK,5499,Catering costs - provisions,79.04,0.00,79.04
Regeneration and Local Services,Direct Services,021235,Catering - Wharton Park,Supplies and Services,324117,Provisions,07-Aug-2017,000006352045177,WWW.ADELIEFOODS.CO.UK,5499,Catering costs - provisions,55.75,0.00,55.75
Regeneration and Local Services,Direct Services,021235,Catering - Wharton Park,Supplies and Services,324117,Provisions,07-Aug-2017,000006352045179,WWW.ADELIEFOODS.CO.UK,5499,Catering costs - provisions,54.70,0.00,54.70
Regeneration and Local Services,Direct Services,021235,Catering - Wharton Park,Supplies and Services,324117,Provisions,07-Aug-2017,000006352045183,JR HOLLAND FOODSERVICE,5422,Catering costs - provisions,14.54,0.00,14.54
Regeneration and Local Services,Direct Services,021235,Catering - Wharton Park,Supplies and Services,324117,Provisions,07-Aug-2017,000006352045193,JR HOLLAND FOODSERVICE,5422,Catering costs - provisions,3.22,0.00,3.22
Regeneration and Local Services,Culture & Sport,010605,Woodhouse Close Leisure Complex,Supplies and Services,324117,Provisions,07-Aug-2017,000006352045197,JR HOLLAND FOODSERVICE,5422,Catering costs - provisions,53.19,0.00,53.19
Adult and Health Services,AWH Redundant Cost Centres,052974,Stanley Education Centre,Supplies and Services,338064,Services,07-Aug-2017,000006352045223,DISCLOSURE SCOT,9399,Disclosure & Barring (DBS) Fees,25.00,0.00,25.00
Children and Young Peoples Services,Head of Early Help Assessment and Safeguarding,071641,Horden Childrens Centre,Supplies and Services,324117,Provisions,07-Aug-2017,000006352045249,LIDL UK,5411,Catering costs - provisions,19.24,0.00,19.24
Regeneration and Local Services,Economic Development and Housing,030737,Durham Works Flexible Fund,Transport,215995,Running Costs of Vehicles,07-Aug-2017,000006352045257,FAMILY SHOPPER 17189,5541,Vehicle running expenses,99.00,0.00,99.00
Regeneration and Local Services,Spatial Policy Planning Assets & Environment,031200,North Pennines Core,Supplies and Services,328041,Clothing Uniforms and Laundry,07-Aug-2017,000006352045261,SP NESTBOX CO LTD,5691,Clothing uniforms and laundry,186.84,31.14,155.70
Resources,Financial Services,065116,Creditors/Purchasing,Supplies and Services,338064,Services,07-Aug-2017,000006352045269,DISCLOSURE SCOT,9399,Disclosure & Barring (DBS) Fees,25.00,0.00,25.00
Regeneration and Local Services,Culture & Sport,054812,Gala Theatre - Catering etc,Supplies and Services,324117,Provisions,07-Aug-2017,000006355075851,BATLEYS PERTH,5300,Catering costs - provisions,35.22,5.87,29.35
Regeneration and Local Services,Culture & Sport,054812,Gala Theatre - Catering etc,Supplies and Services,324117,Provisions,07-Aug-2017,000006355075851 - 1,BATLEYS PERTH,5300,Catering costs - provisions,83.82,,83.82
Regeneration and Local Services,Economic Development and Housing,031576,B& B - Temp Accom,Supplies and Services,364320,Grants to Voluntary Organisations,07-Aug-2017,000006355075885,PREMIER INN,3811,Accommodation assistance,67.02,11.17,55.85
Regeneration and Local Services,Economic Development and Housing,031576,B& B - Temp Accom,Supplies and Services,364320,Grants to Voluntary Organisations,07-Aug-2017,000006355075885 - 1,PREMIER INN,3811,Accommodation assistance,0.48,,0.48
Regeneration and Local Services,Economic Development and Housing,031576,B& B - Temp Accom,Employees,040149,Recruitment Instruction and Training,07-Aug-2017,000006355075889,PREMIER INN,3811,Training-all costs,67.00,11.17,55.83
Children and Young Peoples Services,Head of Looked After Provision Permanence and Care Leavers,085955,Auckland,Supplies and Services,304649,Equipment and Materials,07-Aug-2017,000006355075999,AMAZON UK RETAIL AMAZO,5999,Toys,5.80,0.00,5.80
Children and Young Peoples Services,Head of Looked After Provision Permanence and Care Leavers,085956,Lumley,Supplies and Services,304649,Equipment and Materials,07-Aug-2017,000006355076001,AMAZON.CO.UK,5999,Toys,4.99,0.00,4.99
Children and Young Peoples Services,Head of Looked After Provision Permanence and Care Leavers,085955,Auckland,Supplies and Services,312009,Newspapers Books and Periodicals,07-Aug-2017,000006355076005,AMAZON.CO.UK,5999,Newspapers books and periodicals,13.49,0.00,13.49
Regeneration and Local Services,Direct Services,021235,Catering - Wharton Park,Supplies and Services,324117,Provisions,07-Aug-2017,000006355076195,BATLEYS PERTH,5300,Catering costs - provisions,193.38,32.23,161.15
Regeneration and Local Services,Direct Services,021235,Catering - Wharton Park,Supplies and Services,324117,Provisions,07-Aug-2017,000006355076195 - 1,BATLEYS PERTH,5300,Catering costs - provisions,9.61,,9.61
Resources,Digital and Customer Services,065464,Domains,Supplies and Services,372009,Subscriptions,08-Aug-2017,000006352044727,WEB NETWORKSOLUTIONS,5968,Subscriptions,4.94,0.00,4.94
Children and Young Peoples Services,Head of Education,071801,Selby Cottage Childcare Centre,Supplies and Services,324117,Provisions,08-Aug-2017,000006355075743,ASDA HOME SHOPPING,5411,Catering costs - provisions,161.69,0.00,161.69
Resources,Digital and Customer Services,065482,Data Centres,Supplies and Services,304403,Equipment and Materials,08-Aug-2017,000006355075749,Amazon UK Marketplace,5942,Other consumables,5.99,0.00,5.99
Children and Young Peoples Services,Head of Early Help Assessment and Safeguarding,071441,Bishop Auckland One Point Hub,Supplies and Services,304259,Equipment and Materials,08-Aug-2017,000006355075751,GRO HM PASSPORT OFFICE,9399,Equipment-purchase and rental,9.25,0.00,9.25
Children and Young Peoples Services,Head of Looked After Provision Permanence and Care Leavers,085342,9 Cedar Drive Aycliffe,Supplies and Services,352001,Conference Expenses,08-Aug-2017,000006355075795,ALBANY HOTEL,7011,Conferencesseminars fees etc,45.00,7.50,37.50
Regeneration and Local Services,Direct Services,010367,C&G - South Grounds Maintenance,Supplies and Services,312011,Newspapers Books and Periodicals,08-Aug-2017,000006355075803,JR OLIVER AND SON,5251,Books-school library,18.00,0.00,18.00
Adult and Health Services,Head of Adults,055302,Durham Pathways,Supplies and Services,304259,Equipment and Materials,08-Aug-2017,000006355075807,WILKO DURHAM 426,5722,Equipment-purchase and rental,5.00,0.00,5.00
Adult and Health Services,Head of Adults,055302,Durham Pathways,Supplies and Services,324117,Provisions,08-Aug-2017,000006355075809,ASDA STORES LTD 4313,5411,Catering costs - provisions,2.75,0.00,2.75
Adult and Health Services,Head of Adults,055302,Durham Pathways,Supplies and Services,328041,Clothing Uniforms and Laundry,08-Aug-2017,000006355075813,THE WORKS,5310,Clothing uniforms and laundry,7.05,0.00,7.05
Regeneration and Local Services,Direct Services,021242,Catering - County Hall,Supplies and Services,324117,Provisions,08-Aug-2017,000006355075841,JR HOLLAND FOODSERVICE,5422,Catering costs - provisions,60.02,0.00,60.02
Regeneration and Local Services,Culture & Sport,054812,Gala Theatre - Catering etc,Supplies and Services,324117,Provisions,08-Aug-2017,000006355075847,JR HOLLAND FOODSERVICE,5422,Catering costs - provisions,28.67,0.00,28.67
Children and Young Peoples Services,Head of Education,079599,Psychological-HQ,Supplies and Services,312011,Newspapers Books and Periodicals,08-Aug-2017,000006355075871,Amazon UK Marketplace,5942,Books-school library,3.99,0.00,3.99
Children and Young Peoples Services,Head of Looked After Provision Permanence and Care Leavers,085351,Framwellgate Moor CU,Supplies and Services,324117,Provisions,08-Aug-2017,000006355075877,ASDA HOME SHOPPING,5411,Catering costs - provisions,84.40,0.00,84.40
Children and Young Peoples Services,Head of Looked After Provision Permanence and Care Leavers,085351,Framwellgate Moor CU,Supplies and Services,324117,Provisions,08-Aug-2017,000006355075881,ASDA HOME SHOPPING,5411,Catering costs - provisions,-0.27,0.00,-0.27
Children and Young Peoples Services,Head of Early Help Assessment and Safeguarding,088063,Bishop Auckland 0 - 5,Supplies and Services,324117,Provisions,08-Aug-2017,000006355075907,ASDA HOME SHOPPING,5411,Catering costs - provisions,60.79,0.00,60.79
Regeneration and Local Services,Economic Development and Housing,030749,Employability - Youth Contract,Supplies and Services,304999,Equipment and Materials,08-Aug-2017,000006355075913,LOOKFANTASTIC,7929,Misc equipment tools and materials,158.79,0.00,158.79
Children and Young Peoples Services,Head of Looked After Provision Permanence and Care Leavers,085957,Secure Management,Supplies and Services,328041,Clothing Uniforms and Laundry,08-Aug-2017,000006355075985,M and M Direct Ltd,5941,Clothing uniforms and laundry,125.96,0.00,125.96
Children and Young Peoples Services,Head of Looked After Provision Permanence and Care Leavers,085957,Secure Management,Supplies and Services,328041,Clothing Uniforms and Laundry,08-Aug-2017,000006355075987,SELECT,5691,Clothing uniforms and laundry,23.97,0.00,23.97
Children and Young Peoples Services,Head of Looked After Provision Permanence and Care Leavers,085954,Walworth,Supplies and Services,384999,Miscellaneous Expenses,08-Aug-2017,000006355075991,Amazon UK Marketplace,5942,Other expenses,2.98,0.00,2.98
Children and Young Peoples Services,Head of Looked After Provision Permanence and Care Leavers,085954,Walworth,Supplies and Services,384999,Miscellaneous Expenses,08-Aug-2017,000006355075993,Amazon UK Marketplace,5942,Other expenses,9.99,0.00,9.99
Children and Young Peoples Services,Head of Looked After Provision Permanence and Care Leavers,085957,Secure Management,Supplies and Services,328041,Clothing Uniforms and Laundry,08-Aug-2017,000006355075997,WWW.FOOTASYLUM.COM,5941,Clothing uniforms and laundry,23.94,0.00,23.94
Regeneration and Local Services,Culture & Sport,011060,Hardwick Park Catering,Supplies and Services,324117,Provisions,08-Aug-2017,000006355076015,JR HOLLAND FOODSERVICE,5422,Catering costs - provisions,83.00,0.00,83.00
Regeneration and Local Services,Culture & Sport,011060,Hardwick Park Catering,Supplies and Services,324117,Provisions,08-Aug-2017,000006355076019,JR HOLLAND FOODSERVICE,5422,Catering costs - provisions,71.74,0.00,71.74
Regeneration and Local Services,Culture & Sport,011060,Hardwick Park Catering,Supplies and Services,324117,Provisions,08-Aug-2017,000006355076021,JR HOLLAND FOODSERVICE,5422,Catering costs - provisions,57.27,0.00,57.27
Regeneration and Local Services,Culture & Sport,011060,Hardwick Park Catering,Supplies and Services,324117,Provisions,08-Aug-2017,000006355076025,JR HOLLAND FOODSERVICE,5422,Catering costs - provisions,47.21,0.00,47.21
Regeneration and Local Services,Culture & Sport,011060,Hardwick Park Catering,Supplies and Services,324117,Provisions,08-Aug-2017,000006355076029,JR HOLLAND FOODSERVICE,5422,Catering costs - provisions,17.94,0.00,17.94
Regeneration and Local Services,Culture & Sport,011060,Hardwick Park Catering,Supplies and Services,324117,Provisions,08-Aug-2017,000006355076033,JR HOLLAND FOODSERVICE,5422,Catering costs - provisions,15.96,0.00,15.96
Regeneration and Local Services,Direct Services,021234,Catering - Locomotion,Supplies and Services,324117,Provisions,08-Aug-2017,000006355076037,JR HOLLAND FOODSERVICE,5422,Catering costs - provisions,35.30,0.00,35.30
Regeneration and Local Services,Direct Services,021234,Catering - Locomotion,Supplies and Services,324117,Provisions,08-Aug-2017,000006355076041,JR HOLLAND FOODSERVICE,5422,Catering costs - provisions,14.81,0.00,14.81
Adult and Health Services,Head of Adults,053811,Harbour Lodge Extra Care,Supplies and Services,328041,Clothing Uniforms and Laundry,08-Aug-2017,000006355076043,ARGOS RETAIL GROUP,5310,Clothing uniforms and laundry,69.98,0.00,69.98
Children and Young Peoples Services,Head of Looked After Provision Permanence and Care Leavers,085352,Tow Law CU,Supplies and Services,328041,Clothing Uniforms and Laundry,08-Aug-2017,000006355076049,ARGOS RETAIL GROUP,5310,Clothing uniforms and laundry,105.31,0.00,105.31
Children and Young Peoples Services,Head of Looked After Provision Permanence and Care Leavers,085352,Tow Law CU,Supplies and Services,328041,Clothing Uniforms and Laundry,08-Aug-2017,000006355076051,ARGOS RETAIL GROUP,5310,Clothing uniforms and laundry,63.97,0.00,63.97
Children and Young Peoples Services,Head of Early Help Assessment and Safeguarding,071443,Stanley One Point Hub,Supplies and Services,304999,Equipment and Materials,08-Aug-2017,000006355076065,Amazon Prime,5968,Misc equipment tools and materials,-7.99,0.00,-7.99
Children and Young Peoples Services,Head of Early Help Assessment and Safeguarding,085556,Child Protection Team Stanley,Supplies and Services,304259,Equipment and Materials,08-Aug-2017,000006355076073,WWW.DURHAM.GOV.UK,9399,Equipment-purchase and rental,36.00,0.00,36.00
Children and Young Peoples Services,Head of Looked After Provision Permanence and Care Leavers,085333,Coxhoe Satelite Home,Supplies and Services,324117,Provisions,08-Aug-2017,000006355076075,TESCO STORES 2371,5411,Catering costs - provisions,112.69,0.00,112.69
Regeneration and Local Services,Culture & Sport,011191,Wellbeing4Life,Supplies and Services,324117,Provisions,08-Aug-2017,000006355076079,ALDI 74 774 S,5411,Catering costs - provisions,14.76,0.00,14.76
Regeneration and Local Services,Culture & Sport,011191,Wellbeing4Life,Supplies and Services,304259,Equipment and Materials,08-Aug-2017,000006355076081,WILKO RETAIL LIMIT,5722,Equipment-purchase and rental,30.55,5.09,25.46
Regeneration and Local Services,Direct Services,010301,C&G - North Grounds Maintenance,Supplies and Services,304221,Equipment and Materials,08-Aug-2017,000006355076103,ARCO LTD,5085,Direct materials,74.81,12.47,62.34
Regeneration and Local Services,Direct Services,010301,C&G - North Grounds Maintenance,Supplies and Services,304999,Equipment and Materials,08-Aug-2017,000006355076121,GUSTHARTS CHAINSAW CTR,7699,Misc equipment tools and materials,12.00,2.00,10.00
Regeneration and Local Services,Direct Services,010301,C&G - North Grounds Maintenance,Third Party Payments,430100,Rendered by Private Contractors,08-Aug-2017,000006355076125,JOHN WARREN (ANIMAL BY,7399,Payments to sub-contractors,9.60,1.60,8.00
Children and Young Peoples Services,Head of Early Help Assessment and Safeguarding,074000,TTF-Attachment and Results,Supplies and Services,304259,Equipment and Materials,08-Aug-2017,000006355076173,WILKO.COM,5722,Equipment-purchase and rental,115.85,0.00,115.85
Children and Young Peoples Services,Head of Early Help Assessment and Safeguarding,074000,TTF-Attachment and Results,Supplies and Services,304259,Equipment and Materials,08-Aug-2017,000006355076179,WILKO.COM,5722,Equipment-purchase and rental,15.00,0.00,15.00
Children and Young Peoples Services,Head of Early Help Assessment and Safeguarding,074000,TTF-Attachment and Results,Supplies and Services,304403,Equipment and Materials,08-Aug-2017,000006355076181,TESCO - EDPA,5999,Other consumables,37.98,0.00,37.98
Children and Young Peoples Services,Head of Early Help Assessment and Safeguarding,074000,TTF-Attachment and Results,Supplies and Services,304403,Equipment and Materials,08-Aug-2017,000006355076183,TESCO - Tescopay,5999,Other consumables,50.00,0.00,50.00
Children and Young Peoples Services,Head of Early Help Assessment and Safeguarding,074000,TTF-Attachment and Results,Supplies and Services,304403,Equipment and Materials,08-Aug-2017,000006355076187,TESCO DIRECT,5999,Other consumables,70.49,0.00,70.49
Adult and Health Services,Head of Adults,055306,Spennymoor Pathways,Supplies and Services,324117,Provisions,08-Aug-2017,000006355076193,ASDA SUPERSTORE 4987,5411,Catering costs - provisions,3.50,0.00,3.50
Regeneration and Local Services,Spatial Policy Planning Assets & Environment,031200,North Pennines Core,Supplies and Services,340001,Postages,08-Aug-2017,000006355076221,THE POST OFFICE,9402,Postages,32.50,0.00,32.50
Regeneration and Local Services,Spatial Policy Planning Assets & Environment,031200,North Pennines Core,Supplies and Services,304403,Equipment and Materials,08-Aug-2017,000006355076227,RSPB SALES TRADING,5947,Other consumables,299.99,0.00,299.99
Regeneration and Local Services,Economic Development and Housing,031500,Housing Solutions - Core Team,Employees,040149,Recruitment Instruction and Training,08-Aug-2017,000006359030729,PREMIER INN,3811,Training-all costs,76.50,12.75,63.75
Regeneration and Local Services,Economic Development and Housing,031500,Housing Solutions - Core Team,Employees,040149,Recruitment Instruction and Training,08-Aug-2017,000006359030737,PREMIER INN,3811,Training-all costs,87.00,0.00,87.00
Regeneration and Local Services,Direct Services,021242,Catering - County Hall,Supplies and Services,324117,Provisions,08-Aug-2017,000006359030841,BATLEYS PERTH,5300,Catering costs - provisions,296.16,49.36,246.80
Regeneration and Local Services,Direct Services,021242,Catering - County Hall,Supplies and Services,324117,Provisions,08-Aug-2017,000006359030841 - 1,BATLEYS PERTH,5300,Catering costs - provisions,166.84,,166.84
Children and Young Peoples Services,Head of Looked After Provision Permanence and Care Leavers,085957,Secure Management,Supplies and Services,328041,Clothing Uniforms and Laundry,08-Aug-2017,000006359031087,SPORTSDIRECT.COM,5941,Clothing uniforms and laundry,23.99,0.00,23.99
Regeneration and Local Services,Culture & Sport,011060,Hardwick Park Catering,Supplies and Services,324117,Provisions,08-Aug-2017,000006359031141,BATLEYS PERTH,5300,Catering costs - provisions,183.90,30.65,153.25
Regeneration and Local Services,Culture & Sport,011060,Hardwick Park Catering,Supplies and Services,324117,Provisions,08-Aug-2017,000006359031141 - 1,BATLEYS PERTH,5300,Catering costs - provisions,181.75,,181.75
Regeneration and Local Services,Culture & Sport,054235,Bishop Auckland Town Hall Cafe,Supplies and Services,324117,Provisions,08-Aug-2017,000006359031401,BATLEYS PERTH,5300,Catering costs - provisions,37.35,0.00,37.35
Regeneration and Local Services,Direct Services,021324,Catering - Meadowfield,Supplies and Services,324117,Provisions,08-Aug-2017,000006359031417,BATLEYS PERTH,5300,Catering costs - provisions,126.96,21.16,105.80
Regeneration and Local Services,Direct Services,021324,Catering - Meadowfield,Supplies and Services,324117,Provisions,08-Aug-2017,000006359031417 - 1,BATLEYS PERTH,5300,Catering costs - provisions,78.93,,78.93
Children and Young Peoples Services,Head of Looked After Provision Permanence and Care Leavers,085955,Auckland,Supplies and Services,304649,Equipment and Materials,09-Aug-2017,000006355076007,AMZ KESEV DEALS,5999,Toys,-19.75,0.00,-19.75
Children and Young Peoples Services,Head of Education,071801,Selby Cottage Childcare Centre,Supplies and Services,312011,Newspapers Books and Periodicals,09-Aug-2017,000006359030711,Amazon UK Marketplace,5942,Books-school library,113.98,0.00,113.98
Children and Young Peoples Services,Head of Education,071801,Selby Cottage Childcare Centre,Supplies and Services,312011,Newspapers Books and Periodicals,09-Aug-2017,000006359030717,Amazon UK Marketplace,5942,Books-school library,24.95,0.00,24.95
Children and Young Peoples Services,Head of Education,071801,Selby Cottage Childcare Centre,Supplies and Services,328041,Clothing Uniforms and Laundry,09-Aug-2017,000006359030721,B&M RETAIL,5310,Clothing uniforms and laundry,7.96,0.00,7.96
Children and Young Peoples Services,Head of Education,071801,Selby Cottage Childcare Centre,Supplies and Services,328041,Clothing Uniforms and Laundry,09-Aug-2017,000006359030723,B&M RETAIL,5310,Clothing uniforms and laundry,57.17,0.00,57.17
Children and Young Peoples Services,Head of Looked After Provision Permanence and Care Leavers,085957,Secure Management,Supplies and Services,304245,Equipment and Materials,09-Aug-2017,000006359030743,Amazon UK Marketplace,5942,Materials,35.39,0.00,35.39
Children and Young Peoples Services,Head of Looked After Provision Permanence and Care Leavers,085965,Barnard,Supplies and Services,304245,Equipment and Materials,09-Aug-2017,000006359030745,FAST KEY SERVICES LIMI,7399,Materials,10.23,1.71,8.52
Children and Young Peoples Services,Head of Looked After Provision Permanence and Care Leavers,085342,9 Cedar Drive Aycliffe,Supplies and Services,304259,Equipment and Materials,09-Aug-2017,000006359030761,JD SPORTS 193,5941,Equipment-purchase and rental,70.00,0.00,70.00
Children and Young Peoples Services,Head of Looked After Provision Permanence and Care Leavers,085342,9 Cedar Drive Aycliffe,Supplies and Services,304259,Equipment and Materials,09-Aug-2017,000006359030763,JD SPORTS 193,5941,Equipment-purchase and rental,15.00,0.00,15.00
Children and Young Peoples Services,Head of Looked After Provision Permanence and Care Leavers,085342,9 Cedar Drive Aycliffe,Supplies and Services,324117,Provisions,09-Aug-2017,000006359030767,TESCO STORES 2916,5411,Catering costs - provisions,28.12,0.00,28.12
Children and Young Peoples Services,Head of Looked After Provision Permanence and Care Leavers,085342,9 Cedar Drive Aycliffe,Transport,215995,Running Costs of Vehicles,09-Aug-2017,000006359030773,TESCO PFS 4088,5541,Vehicle running expenses,50.01,0.00,50.01
Children and Young Peoples Services,Head of Looked After Provision Permanence and Care Leavers,085342,9 Cedar Drive Aycliffe,Supplies and Services,328041,Clothing Uniforms and Laundry,09-Aug-2017,000006359030777,TOP SHOP,5691,Clothing uniforms and laundry,40.05,0.00,40.05
Children and Young Peoples Services,Head of Looked After Provision Permanence and Care Leavers,085342,9 Cedar Drive Aycliffe,Supplies and Services,348037,Subsistence,09-Aug-2017,000006359030779,NANDOS METROCENTRE GA,5812,Subsistence,41.85,0.00,41.85
Adult and Health Services,Head of Adults,055302,Durham Pathways,Supplies and Services,328041,Clothing Uniforms and Laundry,09-Aug-2017,000006359030789,POUNDLAND LTD 1330,5310,Clothing uniforms and laundry,12.10,0.00,12.10
Adult and Health Services,Head of Adults,055302,Durham Pathways,Supplies and Services,328041,Clothing Uniforms and Laundry,09-Aug-2017,000006359030793,B&M RETAIL LTD,5310,Clothing uniforms and laundry,12.16,0.00,12.16
Regeneration and Local Services,Direct Services,021242,Catering - County Hall,Supplies and Services,324117,Provisions,09-Aug-2017,000006359030813,JR HOLLAND FOODSERVICE,5422,Catering costs - provisions,109.06,0.00,109.06
Regeneration and Local Services,Direct Services,021242,Catering - County Hall,Supplies and Services,324117,Provisions,09-Aug-2017,000006359030825,JR HOLLAND FOODSERVICE,5422,Catering costs - provisions,49.29,0.00,49.29
Regeneration and Local Services,Direct Services,021242,Catering - County Hall,Supplies and Services,324117,Provisions,09-Aug-2017,000006359030835,JR HOLLAND FOODSERVICE,5422,Catering costs - provisions,31.35,0.00,31.35
Regeneration and Local Services,Culture & Sport,054233,Bishop Auckland Town Hall Library,Supplies and Services,324117,Provisions,09-Aug-2017,000006359030865,ASDA STORES,5411,Catering costs - provisions,46.98,0.00,46.98
Children and Young Peoples Services,Head of Early Help Assessment and Safeguarding,085622,Families First Ferryhill,Supplies and Services,338048,Services,09-Aug-2017,000006359030869,WWW.DURHAM.GOV.UK,9399,Court Costs,12.00,0.00,12.00
Regeneration and Local Services,Economic Development and Housing,030737,Durham Works Flexible Fund,Transport,235057,Public Transport,09-Aug-2017,000006359030875,ARRIVA NORTH EAST,4131,Staff travelling,7.00,0.00,7.00
Regeneration and Local Services,Economic Development and Housing,030737,Durham Works Flexible Fund,Supplies and Services,304639,Equipment and Materials,09-Aug-2017,000006359030883,MACHINE MART LTD,5722,Technicians-supplies,311.98,52.00,259.98
Children and Young Peoples Services,Head of Early Help Assessment and Safeguarding,088063,Bishop Auckland 0 - 5,Supplies and Services,324117,Provisions,09-Aug-2017,000006359030989,SAINSBURYS SACAT 2199,5411,Catering costs - provisions,17.90,0.00,17.90
Children and Young Peoples Services,Head of Looked After Provision Permanence and Care Leavers,085341,High Etherley Satelite Home,Supplies and Services,324117,Provisions,09-Aug-2017,000006359031043,TESCO STORES 6329,5411,Catering costs - provisions,197.46,0.00,197.46
Children and Young Peoples Services,Head of Looked After Provision Permanence and Care Leavers,085955,Auckland,Supplies and Services,384999,Miscellaneous Expenses,09-Aug-2017,000006359031075,Amazon UK Marketplace,5942,Other expenses,5.46,0.00,5.46
Children and Young Peoples Services,Head of Looked After Provision Permanence and Care Leavers,085961,Themed Week Activity,Supplies and Services,304649,Equipment and Materials,09-Aug-2017,000006359031081,Amazon UK Marketplace,5942,Toys,11.94,0.00,11.94
Children and Young Peoples Services,Head of Looked After Provision Permanence and Care Leavers,085965,Barnard,Supplies and Services,384999,Miscellaneous Expenses,09-Aug-2017,000006359031085,Amazon EU,5969,Other expenses,8.50,0.00,8.50
Children and Young Peoples Services,Head of Looked After Provision Permanence and Care Leavers,085955,Auckland,Supplies and Services,324117,Provisions,09-Aug-2017,000006359031091,TESCO STORES 6329,5411,Catering costs - provisions,191.45,31.91,159.54
Children and Young Peoples Services,Head of Looked After Provision Permanence and Care Leavers,085965,Barnard,Supplies and Services,384999,Miscellaneous Expenses,09-Aug-2017,000006359031093,AMAZON.CO.UK,5999,Other expenses,5.68,0.00,5.68
Regeneration and Local Services,Culture & Sport,011060,Hardwick Park Catering,Supplies and Services,324117,Provisions,09-Aug-2017,000006359031115,JR HOLLAND FOODSERVICE,5422,Catering costs - provisions,90.87,0.00,90.87
Regeneration and Local Services,Culture & Sport,011060,Hardwick Park Catering,Supplies and Services,324117,Provisions,09-Aug-2017,000006359031127,JR HOLLAND FOODSERVICE,5422,Catering costs - provisions,75.26,0.00,75.26
Regeneration and Local Services,Culture & Sport,011060,Hardwick Park Catering,Supplies and Services,324117,Provisions,09-Aug-2017,000006359031139,JR HOLLAND FOODSERVICE,5422,Catering costs - provisions,5.82,0.00,5.82
Regeneration and Local Services,Direct Services,021234,Catering - Locomotion,Supplies and Services,324117,Provisions,09-Aug-2017,000006359031169,JR HOLLAND FOODSERVICE,5422,Catering costs - provisions,62.71,0.00,62.71
Regeneration and Local Services,Direct Services,021234,Catering - Locomotion,Supplies and Services,324117,Provisions,09-Aug-2017,000006359031175,JR HOLLAND FOODSERVICE,5422,Catering costs - provisions,38.40,0.00,38.40
Regeneration and Local Services,Direct Services,010525,Catering - Green Lane,Supplies and Services,324117,Provisions,09-Aug-2017,000006359031187,JR HOLLAND FOODSERVICE,5422,Catering costs - provisions,51.93,0.00,51.93
Children and Young Peoples Services,Head of Looked After Provision Permanence and Care Leavers,085352,Tow Law CU,Supplies and Services,352001,Conference Expenses,09-Aug-2017,000006359031201,TRAVELODGE,3615,Conferencesseminars fees etc,68.00,11.33,56.67
Children and Young Peoples Services,Head of Looked After Provision Permanence and Care Leavers,085352,Tow Law CU,Supplies and Services,324117,Provisions,09-Aug-2017,000006359031215,TESCO STORES 2371,5411,Catering costs - provisions,238.47,0.00,238.47
Children and Young Peoples Services,Head of Early Help Assessment and Safeguarding,071443,Stanley One Point Hub,Supplies and Services,304259,Equipment and Materials,09-Aug-2017,000006359031289,WWW.DURHAM.GOV.UK,9399,Equipment-purchase and rental,12.00,0.00,12.00
Regeneration and Local Services,Direct Services,010913,Bldg Serv - Construction General,Employees,040149,Recruitment Instruction and Training,09-Aug-2017,000006359031337,WWW.CSKILLS.ORG,8220,Training-all costs,149.00,0.00,149.00
Adult and Health Services,Head of Adults,053816,Chester View Extra Care,Supplies and Services,324117,Provisions,09-Aug-2017,000006359031355,TESCO STORES 2278,5411,Catering costs - provisions,10.00,1.67,8.33
Regeneration and Local Services,Economic Development and Housing,030737,Durham Works Flexible Fund,Employees,040149,Recruitment Instruction and Training,09-Aug-2017,000006359031373,TEAM VALLEY MOTORCYCLE,8999,Training-all costs,99.00,0.00,99.00
Transformation and Partnerships,Partnerships & Community Engagement Div.,052707,Partnership Team,Supplies and Services,352001,Conference Expenses,09-Aug-2017,000006359031383,WWW.WESTMINSTER-BRIEFI,8244,Conferencesseminars fees etc,294.00,49.00,245.00
Regeneration and Local Services,Culture & Sport,054235,Bishop Auckland Town Hall Cafe,Supplies and Services,324117,Provisions,09-Aug-2017,000006359031389,JR HOLLAND FOODSERVICE,5422,Catering costs - provisions,43.01,0.00,43.01
Regeneration and Local Services,Direct Services,021324,Catering - Meadowfield,Supplies and Services,324117,Provisions,09-Aug-2017,000006359031407,JR HOLLAND FOODSERVICE,5422,Catering costs - provisions,13.87,0.00,13.87
Regeneration and Local Services,Direct Services,021324,Catering - Meadowfield,Supplies and Services,324117,Provisions,09-Aug-2017,000006359031411,JR HOLLAND FOODSERVICE,5422,Catering costs - provisions,12.57,0.00,12.57
Children and Young Peoples Services,Head of Looked After Provision Permanence and Care Leavers,085333,Coxhoe Satelite Home,Transport,235057,Public Transport,09-Aug-2017,000006359031433,PGL TRAVEL LIMITED,4722,Staff travelling,-265.00,0.00,-265.00
Adult and Health Services,Head of Adults,055301,Stanley Pathways,Supplies and Services,324117,Provisions,09-Aug-2017,000006359031439,ASDA SUPERSTORE,5411,Catering costs - provisions,1.98,0.00,1.98
Regeneration and Local Services,Direct Services,010301,C&G - North Grounds Maintenance,Supplies and Services,304259,Equipment and Materials,09-Aug-2017,000006359031449,SCREWFIX,5211,Equipment-purchase and rental,159.98,26.66,133.32
Children and Young Peoples Services,Head of Early Help Assessment and Safeguarding,088083,Ferryhill 0 - 5,Supplies and Services,324117,Provisions,09-Aug-2017,000006359031485,CO-OP GROUP 010518,5411,Catering costs - provisions,5.59,0.00,5.59
Children and Young Peoples Services,Head of Looked After Provision Permanence and Care Leavers,085331,New Lea Childrens Home,Supplies and Services,308011,Furniture,09-Aug-2017,000006359031497,SOFOLOGY LIMITED,5712,Furniture repair and replacement,"1,423.50",0.00,1423.50
Children and Young Peoples Services,Head of Looked After Provision Permanence and Care Leavers,085331,New Lea Childrens Home,Supplies and Services,324117,Provisions,09-Aug-2017,000006359031505,ASDA HOME SHOPPING,5411,Catering costs - provisions,192.83,0.00,192.83
Children and Young Peoples Services,Head of Looked After Provision Permanence and Care Leavers,085331,New Lea Childrens Home,Supplies and Services,324117,Provisions,09-Aug-2017,000006359031507,ASDA HOME SHOPPING,5411,Catering costs - provisions,-0.70,0.00,-0.70
Resources,Legal & Democratic Services,069310,Head of Legal and Democratic Services,Supplies and Services,332047,Printing Stationery and Gen Off Exps,09-Aug-2017,000006359031517,Amazon UK Marketplace,5942,Stationery,19.48,0.00,19.48
Regeneration and Local Services,Direct Services,021235,Catering - Wharton Park,Supplies and Services,324117,Provisions,09-Aug-2017,000006359031525,JR HOLLAND FOODSERVICE,5422,Catering costs - provisions,26.23,0.00,26.23
Regeneration and Local Services,Direct Services,021235,Catering - Wharton Park,Supplies and Services,324117,Provisions,09-Aug-2017,000006359031533,JR HOLLAND FOODSERVICE,5422,Catering costs - provisions,3.22,0.00,3.22
Regeneration and Local Services,Culture & Sport,010605,Woodhouse Close Leisure Complex,Supplies and Services,324117,Provisions,09-Aug-2017,000006359031551,JR HOLLAND FOODSERVICE,5422,Catering costs - provisions,38.33,0.00,38.33
Regeneration and Local Services,Culture & Sport,011230,Operations Locality 2,Supplies and Services,304259,Equipment and Materials,09-Aug-2017,000006359031579,WILKO RETAIL LIMIT,5722,Equipment-purchase and rental,8.00,0.00,8.00
Regeneration and Local Services,Spatial Policy Planning Assets & Environment,031200,North Pennines Core,Third Party Payments,430100,Rendered by Private Contractors,09-Aug-2017,000006359031585,WP-COUNTRYSIDE JOB,7399,Payments to sub-contractors,60.00,10.00,50.00
Children and Young Peoples Services,Head of Education,071801,Selby Cottage Childcare Centre,Supplies and Services,304403,Equipment and Materials,09-Aug-2017,000006363252701,AMAZON.CO.UK,5999,Other consumables,34.65,0.00,34.65
Regeneration and Local Services,Economic Development and Housing,031576,B& B - Temp Accom,Supplies and Services,364320,Grants to Voluntary Organisations,09-Aug-2017,000006363252783,PREMIER INN,3811,Accommodation assistance,82.00,13.67,68.33
Regeneration and Local Services,Economic Development and Housing,031576,B& B - Temp Accom,Supplies and Services,364320,Grants to Voluntary Organisations,09-Aug-2017,000006363252787,PREMIER INN,3811,Accommodation assistance,80.00,13.33,66.67
Children and Young Peoples Services,Head of Looked After Provision Permanence and Care Leavers,085957,Secure Management,Supplies and Services,304259,Equipment and Materials,09-Aug-2017,000006363252829,WWW.ARGOS.CO.UK,5310,Equipment-purchase and rental,16.94,2.82,14.12
Regeneration and Local Services,Direct Services,021235,Catering - Wharton Park,Supplies and Services,324117,Provisions,09-Aug-2017,000006368407927,BATLEYS PERTH,5300,Catering costs - provisions,-11.02,-1.84,-9.18
Children and Young Peoples Services,Head of Looked After Provision Permanence and Care Leavers,085957,Secure Management,Supplies and Services,328041,Clothing Uniforms and Laundry,09-Aug-2017,000006374919223,EMP Merchan,5964,Clothing uniforms and laundry,19.94,0.00,19.94
Children and Young Peoples Services,Head of Looked After Provision Permanence and Care Leavers,085341,High Etherley Satelite Home,Supplies and Services,332047,Printing Stationery and Gen Off Exps,10-Aug-2017,000006363252693,RYMAN,5943,Stationery,1.99,0.33,1.66
Children and Young Peoples Services,Head of Education,071801,Selby Cottage Childcare Centre,Supplies and Services,324117,Provisions,10-Aug-2017,000006363252697,TESCO STORES 2278,5411,Catering costs - provisions,8.96,0.00,8.96
Children and Young Peoples Services,Head of Early Help Assessment and Safeguarding,071441,Bishop Auckland One Point Hub,Supplies and Services,304259,Equipment and Materials,10-Aug-2017,000006363252713,GRO HM PASSPORT OFFICE,9399,Equipment-purchase and rental,9.25,0.00,9.25
Adult and Health Services,Head of Adults,055302,Durham Pathways,Supplies and Services,324117,Provisions,10-Aug-2017,000006363252717,ASDA STORES LTD 4313,5411,Catering costs - provisions,13.00,0.00,13.00
Adult and Health Services,Head of Adults,055302,Durham Pathways,Supplies and Services,324117,Provisions,10-Aug-2017,000006363252721,MARKS&SPENCER PLC SACA,5411,Catering costs - provisions,3.87,0.00,3.87
Regeneration and Local Services,Economic Development and Housing,030699,Business Growth and Innovation General,Supplies and Services,342033,Computers and Communications,10-Aug-2017,000006363252731,AdRoll_EMEA,7372,Computer hardware,7.16,0.00,7.16
Regeneration and Local Services,Direct Services,010367,C&G - South Grounds Maintenance,Supplies and Services,304259,Equipment and Materials,10-Aug-2017,000006363252747,MKM PETERLEE,5211,Equipment-purchase and rental,5.18,0.86,4.32
Regeneration and Local Services,Direct Services,021242,Catering - County Hall,Supplies and Services,324117,Provisions,10-Aug-2017,000006363252759,JR HOLLAND FOODSERVICE,5422,Catering costs - provisions,122.23,0.00,122.23
Regeneration and Local Services,Direct Services,021242,Catering - County Hall,Supplies and Services,324117,Provisions,10-Aug-2017,000006363252765,JR HOLLAND FOODSERVICE,5422,Catering costs - provisions,13.16,0.00,13.16
Regeneration and Local Services,Economic Development and Housing,030554,International Relations,Supplies and Services,384926,Miscellaneous Expenses,10-Aug-2017,000006363252769,MOVIE PARK,7996,International visits,435.50,0.00,435.50
Regeneration and Local Services,Culture & Sport,054812,Gala Theatre - Catering etc,Supplies and Services,324117,Provisions,10-Aug-2017,000006363252777,JR HOLLAND FOODSERVICE,5422,Catering costs - provisions,58.77,0.00,58.77
Children and Young Peoples Services,Head of Looked After Provision Permanence and Care Leavers,085332,Middlestone Moor CU,Supplies and Services,324117,Provisions,10-Aug-2017,000006363252807,TESCO STORES 2371,5411,Catering costs - provisions,141.10,0.00,141.10
Children and Young Peoples Services,Head of Looked After Provision Permanence and Care Leavers,085957,Secure Management,Supplies and Services,328041,Clothing Uniforms and Laundry,10-Aug-2017,000006363252817,M and M Direct Ltd,5941,Clothing uniforms and laundry,29.99,0.00,29.99
Children and Young Peoples Services,Head of Looked After Provision Permanence and Care Leavers,085955,Auckland,Supplies and Services,312011,Newspapers Books and Periodicals,10-Aug-2017,000006363252819,Amazon UK Marketplace,5942,Books-school library,7.98,0.00,7.98
Children and Young Peoples Services,Head of Looked After Provision Permanence and Care Leavers,085955,Auckland,Supplies and Services,312011,Newspapers Books and Periodicals,10-Aug-2017,000006363252823,Amazon UK Marketplace,5942,Books-school library,27.76,4.63,23.13
Children and Young Peoples Services,Head of Looked After Provision Permanence and Care Leavers,085965,Barnard,Supplies and Services,384999,Miscellaneous Expenses,10-Aug-2017,000006363252825,Amazon EU,5969,Other expenses,23.76,0.00,23.76
Children and Young Peoples Services,Head of Looked After Provision Permanence and Care Leavers,085965,Barnard,Supplies and Services,324117,Provisions,10-Aug-2017,000006363252833,TESCO STORES 6329,5411,Catering costs - provisions,72.72,0.00,72.72
Children and Young Peoples Services,Head of Looked After Provision Permanence and Care Leavers,085957,Secure Management,Supplies and Services,328041,Clothing Uniforms and Laundry,10-Aug-2017,000006363252835,SELECT,5691,Clothing uniforms and laundry,-8.99,0.00,-8.99
Regeneration and Local Services,Culture & Sport,011210,Parks & Countryside,Supplies and Services,304259,Equipment and Materials,10-Aug-2017,000006363252843,SCREWFIX DIRECT,5211,Equipment-purchase and rental,76.44,12.74,63.70
Regeneration and Local Services,Culture & Sport,011060,Hardwick Park Catering,Supplies and Services,324117,Provisions,10-Aug-2017,000006363252859,JR HOLLAND FOODSERVICE,5422,Catering costs - provisions,49.98,0.00,49.98
Children and Young Peoples Services,Head of Early Help Assessment and Safeguarding,071443,Stanley One Point Hub,Supplies and Services,304259,Equipment and Materials,10-Aug-2017,000006363252877,WWW.DURHAM.GOV.UK,9399,Equipment-purchase and rental,12.00,0.00,12.00
Children and Young Peoples Services,Head of Early Help Assessment and Safeguarding,085556,Child Protection Team Stanley,Supplies and Services,304259,Equipment and Materials,10-Aug-2017,000006363252885,HM PASSPORT,9399,Equipment-purchase and rental,174.00,0.00,174.00
Children and Young Peoples Services,Head of Looked After Provision Permanence and Care Leavers,085333,Coxhoe Satelite Home,Supplies and Services,324117,Provisions,10-Aug-2017,000006363252889,TESCO STORES 2371,5411,Catering costs - provisions,83.21,0.00,83.21
Regeneration and Local Services,Culture & Sport,011191,Wellbeing4Life,Supplies and Services,324117,Provisions,10-Aug-2017,000006363252891,ASDA STORES,5411,Catering costs - provisions,13.85,0.00,13.85
Regeneration and Local Services,Direct Services,010900,Fleet - Meadowfield Fleet,Supplies and Services,384999,Miscellaneous Expenses,10-Aug-2017,000006363252897,DVSA MOT COMP 2,9399,Other expenses,410.00,0.00,410.00
Children and Young Peoples Services,Head of Early Help Assessment and Safeguarding,085555,Child Protection Team Peterlee,Supplies and Services,384199,Miscellaneous Expenses,10-Aug-2017,000006363252911,PARKDEAN HOLIDAY P,7033,Other hired and contracted services,212.14,0.00,212.14
Adult and Health Services,Head of Adults,056601,Substance Misuse,Supplies and Services,338045,Services,10-Aug-2017,000006363252915,HMCOURTS-SERVICE.G,9222,Legal expenses,75.00,0.00,75.00
Adult and Health Services,Head of Adults,056601,Substance Misuse,Supplies and Services,384199,Miscellaneous Expenses,10-Aug-2017,000006363252917,EB SEE ME RATHER THAN,7399,Other hired and contracted services,25.00,0.00,25.00
Children and Young Peoples Services,Head of Early Help Assessment and Safeguarding,074000,TTF-Attachment and Results,Supplies and Services,308011,Furniture,10-Aug-2017,000006363252955,FRANKS FACTORY FLOORIN,5713,Furniture repair and replacement,150.00,0.00,150.00
Transformation and Partnerships,Strategy,060120,Research,Supplies and Services,372009,Subscriptions,10-Aug-2017,000006363252959,SurveyMonkey,7372,Subscriptions,299.00,0.00,299.00
Regeneration and Local Services,Direct Services,021235,Catering - Wharton Park,Supplies and Services,324117,Provisions,10-Aug-2017,000006363252965,JR HOLLAND FOODSERVICE,5422,Catering costs - provisions,34.66,0.00,34.66
Children and Young Peoples Services,Head of Early Help Assessment and Safeguarding,071641,Horden Childrens Centre,Supplies and Services,324117,Provisions,10-Aug-2017,000006363252981,LIDL UK,5411,Catering costs - provisions,12.54,0.00,12.54
Regeneration and Local Services,Direct Services,021242,Catering - County Hall,Supplies and Services,324117,Provisions,10-Aug-2017,000006368407485,BATLEYS PERTH,5300,Catering costs - provisions,380.64,63.44,317.20
Regeneration and Local Services,Direct Services,021242,Catering - County Hall,Supplies and Services,324117,Provisions,10-Aug-2017,000006368407485 - 1,BATLEYS PERTH,5300,Catering costs - provisions,175.69,,175.69
Regeneration and Local Services,Direct Services,021242,Catering - County Hall,Supplies and Services,324117,Provisions,10-Aug-2017,000006368407495,BATLEYS PERTH,5300,Catering costs - provisions,-5.74,0.00,-5.74
Regeneration and Local Services,Direct Services,011067,Nei.Prot - Pest Control,Supplies and Services,304403,Equipment and Materials,10-Aug-2017,000006368407565,POLYBAGS LTD,5099,Other consumables,84.15,14.03,70.12
Regeneration and Local Services,Culture & Sport,011060,Hardwick Park Catering,Supplies and Services,324117,Provisions,10-Aug-2017,000006368407617,BATLEYS PERTH,5300,Catering costs - provisions,372.66,62.11,310.55
Regeneration and Local Services,Culture & Sport,011060,Hardwick Park Catering,Supplies and Services,324117,Provisions,10-Aug-2017,000006368407617 - 1,BATLEYS PERTH,5300,Catering costs - provisions,155.65,,155.65
Regeneration and Local Services,Culture & Sport,011060,Hardwick Park Catering,Supplies and Services,324117,Provisions,10-Aug-2017,000006368407631,BATLEYS PERTH,5300,Catering costs - provisions,72.00,12.00,60.00
Regeneration and Local Services,Culture & Sport,011060,Hardwick Park Catering,Supplies and Services,324117,Provisions,10-Aug-2017,000006368407631 - 1,BATLEYS PERTH,5300,Catering costs - provisions,2.79,,2.79
Regeneration and Local Services,Culture & Sport,011060,Hardwick Park Catering,Supplies and Services,324117,Provisions,10-Aug-2017,000006368407639,BATLEYS PERTH,5300,Catering costs - provisions,32.64,5.44,27.20
Regeneration and Local Services,Direct Services,021234,Catering - Locomotion,Supplies and Services,324117,Provisions,10-Aug-2017,000006368407653,BATLEYS PERTH,5300,Catering costs - provisions,401.16,66.86,334.30
Regeneration and Local Services,Direct Services,021234,Catering - Locomotion,Supplies and Services,324117,Provisions,10-Aug-2017,000006368407653 - 1,BATLEYS PERTH,5300,Catering costs - provisions,68.35,,68.35
Regeneration and Local Services,Economic Development and Housing,031576,B& B - Temp Accom,Supplies and Services,364320,Grants to Voluntary Organisations,10-Aug-2017,000006368407853,PREMIER INN,3811,Accommodation assistance,63.00,0.00,63.00
Regeneration and Local Services,Economic Development and Housing,031576,B& B - Temp Accom,Supplies and Services,364320,Grants to Voluntary Organisations,10-Aug-2017,000006368407855,PREMIER INN,3811,Accommodation assistance,66.00,0.00,66.00
Regeneration and Local Services,Economic Development and Housing,031576,B& B - Temp Accom,Supplies and Services,364320,Grants to Voluntary Organisations,10-Aug-2017,000006368407857,PREMIER INN,3811,Accommodation assistance,69.00,11.50,57.50
Regeneration and Local Services,Direct Services,021235,Catering - Wharton Park,Supplies and Services,324117,Provisions,10-Aug-2017,000006368407919,BATLEYS PERTH,5300,Catering costs - provisions,110.40,18.40,92.00
Regeneration and Local Services,Direct Services,021235,Catering - Wharton Park,Supplies and Services,324117,Provisions,10-Aug-2017,000006368407919 - 1,BATLEYS PERTH,5300,Catering costs - provisions,38.00,,38.00
Children and Young Peoples Services,Head of Early Help Assessment and Safeguarding,071441,Bishop Auckland One Point Hub,Supplies and Services,304259,Equipment and Materials,10-Aug-2017,000006459361873,GRO HM PASSPORT OFFICE,9399,Equipment-purchase and rental,-9.25,0.00,-9.25
Regeneration and Local Services,Economic Development and Housing,030699,Business Growth and Innovation General,Supplies and Services,342033,Computers and Communications,11-Aug-2017,000006363252735,AdRoll_EMEA,7372,Computer hardware,0.20,0.00,0.20
Regeneration and Local Services,Economic Development and Housing,030554,International Relations,Supplies and Services,384926,Miscellaneous Expenses,11-Aug-2017,000006363252773,MOVIE PARK,7996,International visits,11.98,0.00,11.98
Children and Young Peoples Services,Head of Education,071801,Selby Cottage Childcare Centre,Supplies and Services,324117,Provisions,11-Aug-2017,000006368407367,TESCO STORES 2278,5411,Catering costs - provisions,25.88,0.00,25.88
Regeneration and Local Services,Transport and Contracted Services,032061,Traffic,Supplies and Services,304403,Equipment and Materials,11-Aug-2017,000006368407369,WWW.TOWSURE.COM,5533,Other consumables,-14.70,-2.45,-12.25
Regeneration and Local Services,Direct Services,010383,C&G - South Street Cleansing,Supplies and Services,304403,Equipment and Materials,11-Aug-2017,000006368407407,SUMUP T JUNCTION,5999,Other consumables,77.00,12.83,64.17
Regeneration and Local Services,Direct Services,010383,C&G - South Street Cleansing,Transport,215995,Running Costs of Vehicles,11-Aug-2017,000006368407413,SNOWBALLS (RAILWAY,5533,Vehicle running expenses,23.22,3.87,19.35
Children and Young Peoples Services,Head of Looked After Provision Permanence and Care Leavers,085957,Secure Management,Supplies and Services,384999,Miscellaneous Expenses,11-Aug-2017,000006368407421,WWW.NISBETS.COM,5964,Other expenses,-50.33,0.00,-50.33
Regeneration and Local Services,Direct Services,010367,C&G - South Grounds Maintenance,Supplies and Services,304259,Equipment and Materials,11-Aug-2017,000006368407497,HARELAW SAWMILL,5211,Equipment-purchase and rental,187.92,31.32,156.60
Regeneration and Local Services,Economic Development and Housing,030749,Employability - Youth Contract,Supplies and Services,312011,Newspapers Books and Periodicals,11-Aug-2017,000006368407509,Amazon UK Marketplace,5942,Books-school library,122.66,0.00,122.66
Regeneration and Local Services,Economic Development and Housing,030749,Employability - Youth Contract,Transport,235057,Public Transport,11-Aug-2017,000006368407515,WWW.SIMPLYGO.COM,4131,Staff travelling,27.00,0.00,27.00
Regeneration and Local Services,Economic Development and Housing,030749,Employability - Youth Contract,Transport,235057,Public Transport,11-Aug-2017,000006368407519,ARRIVA NORTH EAST,4131,Staff travelling,62.00,0.00,62.00
Regeneration and Local Services,Economic Development and Housing,030749,Employability - Youth Contract,Transport,235057,Public Transport,11-Aug-2017,000006368407523,ARRIVA NORTH EAST,4131,Staff travelling,62.00,0.00,62.00
Regeneration and Local Services,Economic Development and Housing,030749,Employability - Youth Contract,Transport,235057,Public Transport,11-Aug-2017,000006368407527,ARRIVA NORTH EAST,4131,Staff travelling,85.50,0.00,85.50
Regeneration and Local Services,Economic Development and Housing,030749,Employability - Youth Contract,Transport,235057,Public Transport,11-Aug-2017,000006368407533,ARRIVA NORTH EAST,4131,Staff travelling,62.00,0.00,62.00
Regeneration and Local Services,Economic Development and Housing,030749,Employability - Youth Contract,Supplies and Services,304403,Equipment and Materials,11-Aug-2017,000006368407535,AMAZON UK RETAIL AMAZO,5999,Other consumables,27.58,0.00,27.58
Regeneration and Local Services,Economic Development and Housing,030737,Durham Works Flexible Fund,Transport,235057,Public Transport,11-Aug-2017,000006368407555,ARRIVA NORTH EAST,4131,Staff travelling,7.00,0.00,7.00
Regeneration and Local Services,Economic Development and Housing,030737,Durham Works Flexible Fund,Supplies and Services,348037,Subsistence,11-Aug-2017,000006368407587,ARRIVA NORTH EAST,4131,Subsistence,23.00,0.00,23.00
Children and Young Peoples Services,Head of Looked After Provision Permanence and Care Leavers,085955,Auckland,Supplies and Services,312011,Newspapers Books and Periodicals,11-Aug-2017,000006368407603,Amazon UK Marketplace,5942,Books-school library,10.43,0.00,10.43
Children and Young Peoples Services,Head of Looked After Provision Permanence and Care Leavers,085956,Lumley,Supplies and Services,324117,Provisions,11-Aug-2017,000006368407607,TESCO STORES 6329,5411,Catering costs - provisions,85.65,0.00,85.65
Children and Young Peoples Services,Head of Early Help Assessment and Safeguarding,071443,Stanley One Point Hub,Supplies and Services,304259,Equipment and Materials,11-Aug-2017,000006368407703,WWW.DURHAM.GOV.UK,9399,Equipment-purchase and rental,20.00,0.00,20.00
Regeneration and Local Services,Direct Services,019100,Fleet - Strategic Fleet,Premises,115125,Repairs to Grounds,11-Aug-2017,000006368407753,JAUPT,9399,General maintenance,252.00,0.00,252.00
Regeneration and Local Services,Economic Development and Housing,031576,B& B - Temp Accom,Supplies and Services,364320,Grants to Voluntary Organisations,11-Aug-2017,000006368407771,PREMIER INN,3811,Accommodation assistance,179.00,29.83,149.17
Regeneration and Local Services,Economic Development and Housing,031576,B& B - Temp Accom,Supplies and Services,364320,Grants to Voluntary Organisations,11-Aug-2017,000006368407777,PREMIER INN,3811,Accommodation assistance,179.00,29.83,149.17
Regeneration and Local Services,Economic Development and Housing,031576,B& B - Temp Accom,Supplies and Services,364320,Grants to Voluntary Organisations,11-Aug-2017,000006368407783,PREMIER INN,3811,Accommodation assistance,178.00,29.67,148.33
Regeneration and Local Services,Direct Services,010301,C&G - North Grounds Maintenance,Supplies and Services,304999,Equipment and Materials,11-Aug-2017,000006368407805,NEW ROW FARM NURSERIES,5193,Misc equipment tools and materials,499.00,83.17,415.83
Dedicated Schools Grant,Dedicated Schools Grant,079040,SENSS-HQ,Employees,040149,Recruitment Instruction and Training,11-Aug-2017,000006368407827,BC.BASECAMP 3 3795171,8699,Training-all costs,385.50,0.00,385.50
Resources,Corporate Finance,065109,Pensions,Supplies and Services,384999,Miscellaneous Expenses,11-Aug-2017,000006368407905,STOCKTON BOROUGH COUNC,9399,Other expenses,21.00,0.00,21.00
Regeneration and Local Services,Economic Development and Housing,030747,Employability - Welfare Reform Performance,Supplies and Services,340001,Postages,11-Aug-2017,000006368407931,POST OFFICE COUNTER,9402,Postages,220.00,0.00,220.00
Children and Young Peoples Services,Head of Early Help Assessment and Safeguarding,085801,CDYOS - Support,Supplies and Services,312011,Newspapers Books and Periodicals,11-Aug-2017,000006368407953,Amazon UK Marketplace,5942,Books-school library,25.89,0.00,25.89
Regeneration and Local Services,Direct Services,021242,Catering - County Hall,Supplies and Services,324117,Provisions,11-Aug-2017,000006374919159,JR HOLLAND FOODSERVICE,5422,Catering costs - provisions,50.70,0.00,50.70
Regeneration and Local Services,Direct Services,021242,Catering - County Hall,Supplies and Services,324117,Provisions,11-Aug-2017,000006374919161,JR HOLLAND FOODSERVICE,5422,Catering costs - provisions,13.16,0.00,13.16
Regeneration and Local Services,Culture & Sport,011060,Hardwick Park Catering,Supplies and Services,324117,Provisions,11-Aug-2017,000006374919225,JR HOLLAND FOODSERVICE,5422,Catering costs - provisions,40.88,0.00,40.88
Regeneration and Local Services,Culture & Sport,011060,Hardwick Park Catering,Supplies and Services,324117,Provisions,11-Aug-2017,000006374919231,BATLEYS PERTH,5300,Catering costs - provisions,227.64,37.94,189.70
Regeneration and Local Services,Culture & Sport,011060,Hardwick Park Catering,Supplies and Services,324117,Provisions,11-Aug-2017,000006374919231 - 1,BATLEYS PERTH,5300,Catering costs - provisions,211.67,,211.67
Regeneration and Local Services,Direct Services,010525,Catering - Green Lane,Supplies and Services,324117,Provisions,11-Aug-2017,000006374919237,JR HOLLAND FOODSERVICE,5422,Catering costs - provisions,25.09,0.00,25.09
Regeneration and Local Services,Direct Services,021324,Catering - Meadowfield,Supplies and Services,324117,Provisions,11-Aug-2017,000006374919267,JR HOLLAND FOODSERVICE,5422,Catering costs - provisions,9.87,0.00,9.87
Regeneration and Local Services,Culture & Sport,010605,Woodhouse Close Leisure Complex,Supplies and Services,324117,Provisions,11-Aug-2017,000006374919283,BATLEYS PERTH,5300,Catering costs - provisions,49.32,8.22,41.10
Regeneration and Local Services,Culture & Sport,010605,Woodhouse Close Leisure Complex,Supplies and Services,324117,Provisions,11-Aug-2017,000006374919283 - 1,BATLEYS PERTH,5300,Catering costs - provisions,81.61,,81.61
Children and Young Peoples Services,Head of Looked After Provision Permanence and Care Leavers,085342,9 Cedar Drive Aycliffe,Supplies and Services,328041,Clothing Uniforms and Laundry,12-Aug-2017,000006368407441,PRIMARK,5651,Clothing uniforms and laundry,44.00,0.00,44.00
Children and Young Peoples Services,Head of Looked After Provision Permanence and Care Leavers,085342,9 Cedar Drive Aycliffe,Supplies and Services,348037,Subsistence,12-Aug-2017,000006368407443,COSTA COFFEE,5814,Subsistence,8.05,0.00,8.05
Children and Young Peoples Services,Head of Looked After Provision Permanence and Care Leavers,085954,Walworth,Supplies and Services,324117,Provisions,12-Aug-2017,000006368407609,TESCO STORES 6329,5411,Catering costs - provisions,105.10,0.00,105.10
Children and Young Peoples Services,Head of Early Help Assessment and Safeguarding,071443,Stanley One Point Hub,Supplies and Services,312011,Newspapers Books and Periodicals,12-Aug-2017,000006368407693,Amazon EU,5969,Books-school library,31.72,0.00,31.72
Transformation and Partnerships,Comms & Information Management,060270,Communications and Marketing,Supplies and Services,336005,Advertising,12-Aug-2017,000006368407907,GOOGLE ADWS8772529636,5968,Advertising other than for staff,50.00,0.00,50.00
Children and Young Peoples Services,Head of Looked After Provision Permanence and Care Leavers,085342,9 Cedar Drive Aycliffe,Supplies and Services,312011,Newspapers Books and Periodicals,14-Aug-2017,000006368407465,Amazon UK Marketplace,5942,Books-school library,29.94,0.00,29.94
Dedicated Schools Grant,Dedicated Schools Grant,079040,SENSS-HQ,Employees,040149,Recruitment Instruction and Training,14-Aug-2017,000006368407831,BC.BASECAMP 3 3795171,8699,Training-all costs,10.60,0.00,10.60
Children and Young Peoples Services,Head of Looked After Provision Permanence and Care Leavers,085341,High Etherley Satelite Home,Supplies and Services,304999,Equipment and Materials,14-Aug-2017,000006374919125,BOOTS 6023,5912,Misc equipment tools and materials,13.13,0.00,13.13
Children and Young Peoples Services,Head of Looked After Provision Permanence and Care Leavers,085341,High Etherley Satelite Home,Supplies and Services,324117,Provisions,14-Aug-2017,000006374919127,TESCO STORES 6329,5411,Catering costs - provisions,26.59,0.00,26.59
Children and Young Peoples Services,Head of Looked After Provision Permanence and Care Leavers,085341,High Etherley Satelite Home,Supplies and Services,324117,Provisions,14-Aug-2017,000006374919129,TESCO STORES 6329,5411,Catering costs - provisions,6.25,0.00,6.25
Children and Young Peoples Services,Head of Education,071801,Selby Cottage Childcare Centre,Supplies and Services,304259,Equipment and Materials,14-Aug-2017,000006374919133,ITUNES.COM/BILL,5735,Equipment-purchase and rental,0.79,0.00,0.79
Adult and Health Services,Head of Adults,055302,Durham Pathways,Supplies and Services,324117,Provisions,14-Aug-2017,000006374919141,LIDL UK,5411,Catering costs - provisions,5.28,0.00,5.28
Children and Young Peoples Services,Head of Looked After Provision Permanence and Care Leavers,085957,Secure Management,Supplies and Services,384999,Miscellaneous Expenses,14-Aug-2017,000006374919143,Amazon UK Marketplace,5942,Other expenses,14.00,0.00,14.00
Resources,Financial Services,065180,Collections,Supplies and Services,338048,Services,14-Aug-2017,000006374919147,HMCOURT-SERVICES.G,9222,Court Costs,110.00,0.00,110.00
Resources,Financial Services,065180,Collections,Supplies and Services,304259,Equipment and Materials,14-Aug-2017,000006374919149,WWW.MONEYCLAIM.GOV,9399,Equipment-purchase and rental,60.00,0.00,60.00
Children and Young Peoples Services,Head of Looked After Provision Permanence and Care Leavers,085342,9 Cedar Drive Aycliffe,Supplies and Services,328041,Clothing Uniforms and Laundry,14-Aug-2017,000006374919151,WWW.SWI.CO.UK,5655,Clothing uniforms and laundry,29.64,0.00,29.64
Regeneration and Local Services,Direct Services,021242,Catering - County Hall,Supplies and Services,324117,Provisions,14-Aug-2017,000006374919163,FREEMAN CATERING BUTCH,5422,Catering costs - provisions,142.09,0.00,142.09
Regeneration and Local Services,Direct Services,021242,Catering - County Hall,Supplies and Services,324117,Provisions,14-Aug-2017,000006374919165,FREEMAN CATERING BUTCH,5422,Catering costs - provisions,118.50,0.00,118.50
Regeneration and Local Services,Direct Services,021242,Catering - County Hall,Supplies and Services,324117,Provisions,14-Aug-2017,000006374919167,FREEMAN CATERING BUTCH,5422,Catering costs - provisions,12.72,0.00,12.72
Regeneration and Local Services,Direct Services,021242,Catering - County Hall,Supplies and Services,324117,Provisions,14-Aug-2017,000006374919169,FREEMAN CATERING BUTCH,5422,Catering costs - provisions,9.98,0.00,9.98
Children and Young Peoples Services,Head of Early Help Assessment and Safeguarding,088096,Newton Aycliffe Teenage Parent Programme,Supplies and Services,384999,Miscellaneous Expenses,14-Aug-2017,000006374919173,ASDA HOME SHOPPING,5411,Other expenses,31.49,0.00,31.49
Regeneration and Local Services,Direct Services,010367,C&G - South Grounds Maintenance,Supplies and Services,304221,Equipment and Materials,14-Aug-2017,000006374919175,R DEFTY,5200,Direct materials,10.00,1.67,8.33
Regeneration and Local Services,Culture & Sport,054812,Gala Theatre - Catering etc,Supplies and Services,324117,Provisions,14-Aug-2017,000006374919177,FREEMAN CATERING BUTCH,5422,Catering costs - provisions,55.91,0.00,55.91
Regeneration and Local Services,Culture & Sport,054812,Gala Theatre - Catering etc,Supplies and Services,324117,Provisions,14-Aug-2017,000006374919179,FREEMAN CATERING BUTCH,5422,Catering costs - provisions,12.46,0.00,12.46
Regeneration and Local Services,Economic Development and Housing,030725,Community Economic Development,Supplies and Services,384700,Miscellaneous Expenses,14-Aug-2017,000006374919181,ARRIVA NORTH EAST,4131,Miscellaneous grants,25.00,0.00,25.00
Children and Young Peoples Services,Head of Early Help Assessment and Safeguarding,088033,Durham 0 - 5,Supplies and Services,304999,Equipment and Materials,14-Aug-2017,000006374919185,AMAZON UK PRIME AMZN.C,5968,Misc equipment tools and materials,-7.99,0.00,-7.99
Regeneration and Local Services,Economic Development and Housing,030749,Employability - Youth Contract,Supplies and Services,328041,Clothing Uniforms and Laundry,14-Aug-2017,000006374919189,WWW.DICKIESSTORE.CO.UK,5691,Clothing uniforms and laundry,30.99,0.00,30.99
Regeneration and Local Services,Economic Development and Housing,030749,Employability - Youth Contract,Supplies and Services,304259,Equipment and Materials,14-Aug-2017,000006374919191,SCREWFIX DIRECT,5211,Equipment-purchase and rental,95.96,0.00,95.96
Regeneration and Local Services,Economic Development and Housing,030749,Employability - Youth Contract,Supplies and Services,304259,Equipment and Materials,14-Aug-2017,000006374919193,SCREWFIX,5211,Equipment-purchase and rental,79.98,0.00,79.98
Regeneration and Local Services,Economic Development and Housing,030749,Employability - Youth Contract,Supplies and Services,304999,Equipment and Materials,14-Aug-2017,000006374919195,LOOKFANTASTIC,7929,Misc equipment tools and materials,35.00,0.00,35.00
Regeneration and Local Services,Economic Development and Housing,030749,Employability - Youth Contract,Transport,235057,Public Transport,14-Aug-2017,000006374919197,ARRIVA NORTH EAST,4131,Staff travelling,25.00,0.00,25.00
Regeneration and Local Services,Economic Development and Housing,030749,Employability - Youth Contract,Transport,235057,Public Transport,14-Aug-2017,000006374919199,ARRIVA NORTH EAST,4131,Staff travelling,80.00,0.00,80.00
Regeneration and Local Services,Economic Development and Housing,030737,Durham Works Flexible Fund,Supplies and Services,304259,Equipment and Materials,14-Aug-2017,000006374919219,SCREWFIX DIRECT,5211,Equipment-purchase and rental,133.80,22.30,111.50
Regeneration and Local Services,Economic Development and Housing,030737,Durham Works Flexible Fund,Supplies and Services,304259,Equipment and Materials,14-Aug-2017,000006374919219 - 1,SCREWFIX DIRECT,5211,Equipment-purchase and rental,30.14,,30.14
Regeneration and Local Services,Culture & Sport,011060,Hardwick Park Catering,Supplies and Services,324117,Provisions,14-Aug-2017,000006374919227,FREEMAN CATERING BUTCH,5422,Catering costs - provisions,53.74,0.00,53.74
Regeneration and Local Services,Culture & Sport,011060,Hardwick Park Catering,Supplies and Services,324117,Provisions,14-Aug-2017,000006374919229,FREEMAN CATERING BUTCH,5422,Catering costs - provisions,28.76,0.00,28.76
Regeneration and Local Services,Culture & Sport,054815,Gala Theatre Stage School,Supplies and Services,328041,Clothing Uniforms and Laundry,14-Aug-2017,000006374919233,H&M 869 DURHAM,5691,Clothing uniforms and laundry,85.97,0.00,85.97
Regeneration and Local Services,Direct Services,010525,Catering - Green Lane,Supplies and Services,324117,Provisions,14-Aug-2017,000006374919239,FREEMAN CATERING BUTCH,5422,Catering costs - provisions,30.42,0.00,30.42
Children and Young Peoples Services,Head of Education,075021,Youth Employment Initiative,Supplies and Services,384999,Miscellaneous Expenses,14-Aug-2017,000006374919241,Amazon EU,5969,Other expenses,4.56,0.00,4.56
Children and Young Peoples Services,Head of Education,075021,Youth Employment Initiative,Supplies and Services,312011,Newspapers Books and Periodicals,14-Aug-2017,000006374919243,Amazon EU,5969,Books-school library,37.53,0.00,37.53
Children and Young Peoples Services,Head of Looked After Provision Permanence and Care Leavers,085333,Coxhoe Satelite Home,Supplies and Services,324117,Provisions,14-Aug-2017,000006374919249,ASDA SUPERSTORE 4987,5411,Catering costs - provisions,108.09,0.00,108.09
Regeneration and Local Services,Culture & Sport,011191,Wellbeing4Life,Supplies and Services,324117,Provisions,14-Aug-2017,000006374919251,ALDI 74 774 S,5411,Catering costs - provisions,35.08,0.00,35.08
Regeneration and Local Services,Culture & Sport,011191,Wellbeing4Life,Supplies and Services,328041,Clothing Uniforms and Laundry,14-Aug-2017,000006374919253,POUNDWORLD,5310,Clothing uniforms and laundry,15.00,0.00,15.00
Adult and Health Services,Head of Adults,055301,Stanley Pathways,Supplies and Services,324117,Provisions,14-Aug-2017,000006374919255,ASDA SUPERSTORE,5411,Catering costs - provisions,1.98,0.00,1.98
Regeneration and Local Services,Direct Services,010301,C&G - North Grounds Maintenance,Supplies and Services,304221,Equipment and Materials,14-Aug-2017,000006374919257,WWW.ARCO.CO.UK,5085,Direct materials,46.14,7.69,38.45
Children and Young Peoples Services,Head of Early Help Assessment and Safeguarding,088001,Peterlee Locality,Supplies and Services,304259,Equipment and Materials,14-Aug-2017,000006374919259,HARTLEPOOL BC CNP,9399,Equipment-purchase and rental,14.21,0.00,14.21
Regeneration and Local Services,Direct Services,021324,Catering - Meadowfield,Supplies and Services,324117,Provisions,14-Aug-2017,000006374919269,FREEMAN CATERING BUTCH,5422,Catering costs - provisions,55.56,0.00,55.56
Regeneration and Local Services,Direct Services,021324,Catering - Meadowfield,Supplies and Services,324117,Provisions,14-Aug-2017,000006374919271,FREEMAN CATERING BUTCH,5422,Catering costs - provisions,52.67,0.00,52.67
Regeneration and Local Services,Culture & Sport,011086,Positive Futures,Supplies and Services,324117,Provisions,14-Aug-2017,000006374919273,CO-OP GROUP 010490,5411,Catering costs - provisions,16.48,0.00,16.48
Resources,Legal & Democratic Services,067910,Democratic Representation,Supplies and Services,336005,Advertising,14-Aug-2017,000006374919279,WEARDALE PUBLISHING &,5192,Advertising other than for staff,56.94,0.00,56.94
Regeneration and Local Services,Economic Development and Housing,030737,Durham Works Flexible Fund,Supplies and Services,332047,Printing Stationery and Gen Off Exps,14-Aug-2017,000006374919285,LONDON GRAPHIC CENTRE,5943,Stationery,24.98,0.00,24.98
Regeneration and Local Services,Spatial Policy Planning Assets & Environment,031200,North Pennines Core,Supplies and Services,312011,Newspapers Books and Periodicals,14-Aug-2017,000006374919287,Amazon UK Marketplace,5942,Books-school library,42.86,0.00,42.86
Children and Young Peoples Services,Head of Looked After Provision Permanence and Care Leavers,085341,High Etherley Satelite Home,Supplies and Services,328041,Clothing Uniforms and Laundry,14-Aug-2017,000006377956557,BLACKPOOL PLEASURE BEA,7996,Clothing uniforms and laundry,72.00,0.00,72.00
Regeneration and Local Services,Economic Development and Housing,030699,Business Growth and Innovation General,Supplies and Services,342033,Computers and Communications,14-Aug-2017,000006377956603,WATCHFULPAYPAL,7379,Computer hardware,15.43,0.00,15.43
Regeneration and Local Services,Culture & Sport,054812,Gala Theatre - Catering etc,Supplies and Services,324117,Provisions,14-Aug-2017,000006377956723,BATLEYS PERTH,5300,Catering costs - provisions,89.56,0.00,89.56
Regeneration and Local Services,Economic Development and Housing,031576,B& B - Temp Accom,Supplies and Services,364320,Grants to Voluntary Organisations,14-Aug-2017,000006377956731,PREMIER INN,3811,Accommodation assistance,68.50,11.42,57.08
Regeneration and Local Services,Economic Development and Housing,031576,B& B - Temp Accom,Supplies and Services,364320,Grants to Voluntary Organisations,14-Aug-2017,000006377956735,PREMIER INN,3811,Accommodation assistance,74.00,12.33,61.67
Regeneration and Local Services,Economic Development and Housing,031576,B& B - Temp Accom,Supplies and Services,364320,Grants to Voluntary Organisations,14-Aug-2017,000006377956737,PREMIER INN,3811,Accommodation assistance,66.00,11.00,55.00
Regeneration and Local Services,Culture & Sport,054813,Gala Theatre - Technical,Supplies and Services,304403,Equipment and Materials,14-Aug-2017,000006377956929,AMAZON.CO.UK,5999,Other consumables,22.99,0.00,22.99
Regeneration and Local Services,Direct Services,021235,Catering - Wharton Park,Supplies and Services,324117,Provisions,14-Aug-2017,000006377957261,BATLEYS PERTH,5300,Catering costs - provisions,248.28,41.38,206.90
Regeneration and Local Services,Direct Services,021235,Catering - Wharton Park,Supplies and Services,324117,Provisions,14-Aug-2017,000006377957261 - 1,BATLEYS PERTH,5300,Catering costs - provisions,5.96,,5.96
Children and Young Peoples Services,Head of Looked After Provision Permanence and Care Leavers,085341,High Etherley Satelite Home,Supplies and Services,304999,Equipment and Materials,15-Aug-2017,000006377956559,ACTIVITYBOOKERCOM,7032,Misc equipment tools and materials,98.97,0.00,98.97
Children and Young Peoples Services,Head of Education,071801,Selby Cottage Childcare Centre,Supplies and Services,324117,Provisions,15-Aug-2017,000006377956561,ASDA HOME SHOPPING,5411,Catering costs - provisions,138.40,0.00,138.40
Children and Young Peoples Services,Head of Education,071801,Selby Cottage Childcare Centre,Supplies and Services,324117,Provisions,15-Aug-2017,000006377956565,ASDA HOME SHOPPING,5411,Catering costs - provisions,5.00,0.00,5.00
Children and Young Peoples Services,Head of Education,071801,Selby Cottage Childcare Centre,Supplies and Services,324117,Provisions,15-Aug-2017,000006377956567,ASDA HOME SHOPPING,5411,Catering costs - provisions,-0.36,0.00,-0.36
Regeneration and Local Services,Direct Services,010301,C&G - North Grounds Maintenance,Supplies and Services,304403,Equipment and Materials,15-Aug-2017,000006377956571,BESCOL,5231,Other consumables,13.20,2.20,11.00
Adult and Health Services,Head of Adults,052733,Sensory Support - County Wide,Supplies and Services,344033,Telephones,15-Aug-2017,000006377956575,"Amazon Svcs Europe,SAR",5942,Telephones general-all costs,11.14,0.00,11.14
Resources,Digital and Customer Services,065321,Operations - Digital & Customer Services,Employees,040149,Recruitment Instruction and Training,15-Aug-2017,000006377956577,WWW.BCS.ORG,8999,Training-all costs,360.00,0.00,360.00
Resources,Financial Services,065120,Income,Supplies and Services,340001,Postages,15-Aug-2017,000006377956633,ROYAL MAIL CHARGES,9402,Postages,1.50,0.00,1.50
Regeneration and Local Services,Direct Services,021242,Catering - County Hall,Supplies and Services,324117,Provisions,15-Aug-2017,000006377956635,HOPWELLS LTD,5811,Catering costs - provisions,116.88,19.48,97.40
Regeneration and Local Services,Direct Services,021242,Catering - County Hall,Supplies and Services,324117,Provisions,15-Aug-2017,000006377956635 - 1,HOPWELLS LTD,5811,Catering costs - provisions,236.10,,236.10
Regeneration and Local Services,Direct Services,021242,Catering - County Hall,Supplies and Services,324117,Provisions,15-Aug-2017,000006377956643,HOPWELLS LTD,5811,Catering costs - provisions,314.39,0.00,314.39
Regeneration and Local Services,Direct Services,021242,Catering - County Hall,Supplies and Services,324117,Provisions,15-Aug-2017,000006377956649,HOPWELLS LTD,5811,Catering costs - provisions,188.02,0.00,188.02
Regeneration and Local Services,Direct Services,021242,Catering - County Hall,Supplies and Services,324117,Provisions,15-Aug-2017,000006377956651,HOPWELLS LTD,5811,Catering costs - provisions,165.48,0.00,165.48
Regeneration and Local Services,Direct Services,021242,Catering - County Hall,Supplies and Services,324117,Provisions,15-Aug-2017,000006377956653,HOPWELLS LTD,5811,Catering costs - provisions,160.68,0.00,160.68
Regeneration and Local Services,Direct Services,021242,Catering - County Hall,Supplies and Services,324117,Provisions,15-Aug-2017,000006377956659,HOPWELLS LTD,5811,Catering costs - provisions,58.60,0.00,58.60
Regeneration and Local Services,Direct Services,021242,Catering - County Hall,Supplies and Services,324117,Provisions,15-Aug-2017,000006377956661,HOPWELLS LTD,5811,Catering costs - provisions,39.19,0.00,39.19
Regeneration and Local Services,Direct Services,021242,Catering - County Hall,Supplies and Services,324117,Provisions,15-Aug-2017,000006377956663,JR HOLLAND FOODSERVICE,5422,Catering costs - provisions,53.03,0.00,53.03
Regeneration and Local Services,Direct Services,021242,Catering - County Hall,Supplies and Services,324117,Provisions,15-Aug-2017,000006377956671,JR HOLLAND FOODSERVICE,5422,Catering costs - provisions,41.35,0.00,41.35
Regeneration and Local Services,Direct Services,021242,Catering - County Hall,Supplies and Services,324117,Provisions,15-Aug-2017,000006377956675,JR HOLLAND FOODSERVICE,5422,Catering costs - provisions,6.94,0.00,6.94
Regeneration and Local Services,Direct Services,021242,Catering - County Hall,Supplies and Services,324117,Provisions,15-Aug-2017,000006377956677,HOPWELLS LTD,5811,Catering costs - provisions,-9.13,0.00,-9.13
Regeneration and Local Services,Direct Services,021242,Catering - County Hall,Supplies and Services,324117,Provisions,15-Aug-2017,000006377956681,HOPWELLS LTD,5811,Catering costs - provisions,-9.13,0.00,-9.13
Regeneration and Local Services,Direct Services,021242,Catering - County Hall,Supplies and Services,324117,Provisions,15-Aug-2017,000006377956685,HOPWELLS LTD,5811,Catering costs - provisions,-18.26,0.00,-18.26
Children and Young Peoples Services,Head of Education,070169,Durham SSP,Supplies and Services,384199,Miscellaneous Expenses,15-Aug-2017,000006377956687,Amazon UK Marketplace,5942,Other hired and contracted services,47.25,0.00,47.25
Children and Young Peoples Services,Head of Education,070169,Durham SSP,Supplies and Services,384199,Miscellaneous Expenses,15-Aug-2017,000006377956691,Amazon UK Marketplace,5942,Other hired and contracted services,97.80,0.00,97.80
Regeneration and Local Services,Direct Services,010367,C&G - South Grounds Maintenance,Supplies and Services,304221,Equipment and Materials,15-Aug-2017,000006377956693,R DEFTY,5200,Direct materials,15.00,2.50,12.50
Regeneration and Local Services,Culture & Sport,054812,Gala Theatre - Catering etc,Supplies and Services,324117,Provisions,15-Aug-2017,000006377956697,HOPWELLS LTD,5811,Catering costs - provisions,110.96,0.00,110.96
Regeneration and Local Services,Culture & Sport,054812,Gala Theatre - Catering etc,Supplies and Services,324117,Provisions,15-Aug-2017,000006377956699,HOPWELLS LTD,5811,Catering costs - provisions,94.55,0.00,94.55
Regeneration and Local Services,Culture & Sport,054812,Gala Theatre - Catering etc,Supplies and Services,324117,Provisions,15-Aug-2017,000006377956703,HOPWELLS LTD,5811,Catering costs - provisions,50.61,0.00,50.61
Regeneration and Local Services,Culture & Sport,054812,Gala Theatre - Catering etc,Supplies and Services,324117,Provisions,15-Aug-2017,000006377956707,HOPWELLS LTD,5811,Catering costs - provisions,26.17,0.00,26.17
Regeneration and Local Services,Culture & Sport,054812,Gala Theatre - Catering etc,Supplies and Services,324117,Provisions,15-Aug-2017,000006377956711,HOPWELLS LTD,5811,Catering costs - provisions,12.65,0.00,12.65
Regeneration and Local Services,Culture & Sport,054812,Gala Theatre - Catering etc,Supplies and Services,324117,Provisions,15-Aug-2017,000006377956713,JR HOLLAND FOODSERVICE,5422,Catering costs - provisions,27.56,0.00,27.56
Regeneration and Local Services,Culture & Sport,054812,Gala Theatre - Catering etc,Supplies and Services,324117,Provisions,15-Aug-2017,000006377956719,JR HOLLAND FOODSERVICE,5422,Catering costs - provisions,12.75,0.00,12.75
Children and Young Peoples Services,Head of Looked After Provision Permanence and Care Leavers,085333,Coxhoe Satelite Home,Supplies and Services,324117,Provisions,15-Aug-2017,000006377956763,SAINSBURYS SACAT (2303,5411,Catering costs - provisions,23.25,0.00,23.25
Regeneration and Local Services,Direct Services,010900,Fleet - Meadowfield Fleet,Transport,215013,Running Costs of Vehicles,15-Aug-2017,000006377956785,DVLA VEHICLE TAX,9399,Vehicle Excise Duty (VED),167.50,0.00,167.50
Regeneration and Local Services,Direct Services,010900,Fleet - Meadowfield Fleet,Transport,215013,Running Costs of Vehicles,15-Aug-2017,000006377956795,DVLA VEHICLE TAX,9399,Vehicle Excise Duty (VED),167.50,0.00,167.50
Regeneration and Local Services,Direct Services,010900,Fleet - Meadowfield Fleet,Transport,215013,Running Costs of Vehicles,15-Aug-2017,000006377956797,DVLA VEHICLE TAX,9399,Vehicle Excise Duty (VED),152.50,0.00,152.50
Regeneration and Local Services,Direct Services,010551,Fleet - Chilton Fleet,Transport,215013,Running Costs of Vehicles,15-Aug-2017,000006377956799,DVLA VEHICLE TAX,9399,Vehicle Excise Duty (VED),192.50,0.00,192.50
Regeneration and Local Services,Direct Services,010864,Fleet - Hackworth Road Fleet,Transport,215013,Running Costs of Vehicles,15-Aug-2017,000006377956803,DVLA VEHICLE TAX,9399,Vehicle Excise Duty (VED),167.50,0.00,167.50
Regeneration and Local Services,Direct Services,010900,Fleet - Meadowfield Fleet,Transport,215013,Running Costs of Vehicles,15-Aug-2017,000006377956805,DVLA VEHICLE TAX,9399,Vehicle Excise Duty (VED),242.50,0.00,242.50
Regeneration and Local Services,Direct Services,010900,Fleet - Meadowfield Fleet,Transport,215013,Running Costs of Vehicles,15-Aug-2017,000006377956809,DVLA VEHICLE TAX,9399,Vehicle Excise Duty (VED),242.50,0.00,242.50
Regeneration and Local Services,Direct Services,010900,Fleet - Meadowfield Fleet,Transport,215013,Running Costs of Vehicles,15-Aug-2017,000006377956811,DVLA VEHICLE TAX,9399,Vehicle Excise Duty (VED),242.50,0.00,242.50
Regeneration and Local Services,Direct Services,010900,Fleet - Meadowfield Fleet,Transport,215013,Running Costs of Vehicles,15-Aug-2017,000006377956813,DVLA VEHICLE TAX,9399,Vehicle Excise Duty (VED),242.50,0.00,242.50
Regeneration and Local Services,Direct Services,010551,Fleet - Chilton Fleet,Transport,215013,Running Costs of Vehicles,15-Aug-2017,000006377956817,DVLA VEHICLE TAX,9399,Vehicle Excise Duty (VED),652.50,0.00,652.50
Regeneration and Local Services,Direct Services,010900,Fleet - Meadowfield Fleet,Transport,215013,Running Costs of Vehicles,15-Aug-2017,000006377956819,DVLA VEHICLE TAX,9399,Vehicle Excise Duty (VED),242.50,0.00,242.50
Regeneration and Local Services,Direct Services,010551,Fleet - Chilton Fleet,Transport,215013,Running Costs of Vehicles,15-Aug-2017,000006377956821,DVLA VEHICLE TAX,9399,Vehicle Excise Duty (VED),242.50,0.00,242.50
Regeneration and Local Services,Direct Services,010900,Fleet - Meadowfield Fleet,Transport,215013,Running Costs of Vehicles,15-Aug-2017,000006377956823,DVLA VEHICLE TAX,9399,Vehicle Excise Duty (VED),242.50,0.00,242.50
Regeneration and Local Services,Direct Services,010900,Fleet - Meadowfield Fleet,Transport,215013,Running Costs of Vehicles,15-Aug-2017,000006377956825,DVLA VEHICLE TAX,9399,Vehicle Excise Duty (VED),652.50,0.00,652.50
Regeneration and Local Services,Direct Services,010551,Fleet - Chilton Fleet,Transport,215013,Running Costs of Vehicles,15-Aug-2017,000006377956829,DVLA VEHICLE TAX,9399,Vehicle Excise Duty (VED),242.50,0.00,242.50
Regeneration and Local Services,Direct Services,010900,Fleet - Meadowfield Fleet,Transport,215013,Running Costs of Vehicles,15-Aug-2017,000006377956831,DVLA VEHICLE TAX,9399,Vehicle Excise Duty (VED),242.50,0.00,242.50
Regeneration and Local Services,Direct Services,010561,Fleet - Morrison Busty Fleet,Transport,215013,Running Costs of Vehicles,15-Aug-2017,000006377956833,DVLA VEHICLE TAX,9399,Vehicle Excise Duty (VED),242.50,0.00,242.50
Regeneration and Local Services,Direct Services,010900,Fleet - Meadowfield Fleet,Transport,215013,Running Costs of Vehicles,15-Aug-2017,000006377956837,DVLA VEHICLE TAX,9399,Vehicle Excise Duty (VED),242.50,0.00,242.50
Regeneration and Local Services,Direct Services,010561,Fleet - Morrison Busty Fleet,Transport,215013,Running Costs of Vehicles,15-Aug-2017,000006377956839,DVLA VEHICLE TAX,9399,Vehicle Excise Duty (VED),242.50,0.00,242.50
Regeneration and Local Services,Direct Services,010551,Fleet - Chilton Fleet,Transport,215013,Running Costs of Vehicles,15-Aug-2017,000006377956843,DVLA VEHICLE TAX,9399,Vehicle Excise Duty (VED),652.50,0.00,652.50
Regeneration and Local Services,Direct Services,010864,Fleet - Hackworth Road Fleet,Transport,215013,Running Costs of Vehicles,15-Aug-2017,000006377956845,DVLA VEHICLE TAX,9399,Vehicle Excise Duty (VED),212.50,0.00,212.50
Regeneration and Local Services,Direct Services,010900,Fleet - Meadowfield Fleet,Transport,215013,Running Costs of Vehicles,15-Aug-2017,000006377956847,DVLA VEHICLE TAX,9399,Vehicle Excise Duty (VED),242.50,0.00,242.50
Regeneration and Local Services,Direct Services,010900,Fleet - Meadowfield Fleet,Transport,215013,Running Costs of Vehicles,15-Aug-2017,000006377956851,DVLA VEHICLE TAX,9399,Vehicle Excise Duty (VED),242.50,0.00,242.50
Regeneration and Local Services,Direct Services,010900,Fleet - Meadowfield Fleet,Transport,215013,Running Costs of Vehicles,15-Aug-2017,000006377956853,DVLA VEHICLE TAX,9399,Vehicle Excise Duty (VED),242.50,0.00,242.50
Regeneration and Local Services,Direct Services,010864,Fleet - Hackworth Road Fleet,Transport,215013,Running Costs of Vehicles,15-Aug-2017,000006377956857,DVLA VEHICLE TAX,9399,Vehicle Excise Duty (VED),652.50,0.00,652.50
Regeneration and Local Services,Direct Services,010900,Fleet - Meadowfield Fleet,Transport,215013,Running Costs of Vehicles,15-Aug-2017,000006377956861,DVLA VEHICLE TAX,9399,Vehicle Excise Duty (VED),242.50,0.00,242.50
Regeneration and Local Services,Direct Services,010561,Fleet - Morrison Busty Fleet,Transport,215013,Running Costs of Vehicles,15-Aug-2017,000006377956863,DVLA VEHICLE TAX,9399,Vehicle Excise Duty (VED),242.50,0.00,242.50
Regeneration and Local Services,Direct Services,010900,Fleet - Meadowfield Fleet,Transport,215013,Running Costs of Vehicles,15-Aug-2017,000006377956867,DVLA VEHICLE TAX,9399,Vehicle Excise Duty (VED),242.50,0.00,242.50
Regeneration and Local Services,Direct Services,010900,Fleet - Meadowfield Fleet,Transport,215013,Running Costs of Vehicles,15-Aug-2017,000006377956869,DVLA VEHICLE TAX,9399,Vehicle Excise Duty (VED),242.50,0.00,242.50
Regeneration and Local Services,Direct Services,010864,Fleet - Hackworth Road Fleet,Transport,215013,Running Costs of Vehicles,15-Aug-2017,000006377956871,DVLA VEHICLE TAX,9399,Vehicle Excise Duty (VED),242.50,0.00,242.50
Regeneration and Local Services,Direct Services,010900,Fleet - Meadowfield Fleet,Transport,215013,Running Costs of Vehicles,15-Aug-2017,000006377956873,DVLA VEHICLE TAX,9399,Vehicle Excise Duty (VED),242.50,0.00,242.50
Regeneration and Local Services,Direct Services,010551,Fleet - Chilton Fleet,Transport,215013,Running Costs of Vehicles,15-Aug-2017,000006377956877,DVLA VEHICLE TAX,9399,Vehicle Excise Duty (VED),242.50,0.00,242.50
Regeneration and Local Services,Direct Services,010900,Fleet - Meadowfield Fleet,Transport,215013,Running Costs of Vehicles,15-Aug-2017,000006377956879,DVLA VEHICLE TAX,9399,Vehicle Excise Duty (VED),242.50,0.00,242.50
Regeneration and Local Services,Direct Services,010900,Fleet - Meadowfield Fleet,Transport,215013,Running Costs of Vehicles,15-Aug-2017,000006377956883,DVLA VEHICLE TAX,9399,Vehicle Excise Duty (VED),242.50,0.00,242.50
Regeneration and Local Services,Economic Development and Housing,030749,Employability - Youth Contract,Supplies and Services,312011,Newspapers Books and Periodicals,15-Aug-2017,000006377956905,Amazon UK Marketplace,5942,Books-school library,22.99,0.00,22.99
Regeneration and Local Services,Economic Development and Housing,030749,Employability - Youth Contract,Supplies and Services,328041,Clothing Uniforms and Laundry,15-Aug-2017,000006377956909,WWW.BOOHOO.COM,5691,Clothing uniforms and laundry,118.19,0.00,118.19
Regeneration and Local Services,Economic Development and Housing,030749,Employability - Youth Contract,Transport,235057,Public Transport,15-Aug-2017,000006377956911,WWW.SIMPLYGO.COM,4131,Staff travelling,70.00,0.00,70.00
Regeneration and Local Services,Economic Development and Housing,030749,Employability - Youth Contract,Supplies and Services,328041,Clothing Uniforms and Laundry,15-Aug-2017,000006377956915,NEW LOOK INTERNET,5621,Clothing uniforms and laundry,92.92,0.00,92.92
Regeneration and Local Services,Economic Development and Housing,030749,Employability - Youth Contract,Supplies and Services,342033,Computers and Communications,15-Aug-2017,000006377956917,everything5pounds.com,5964,Computer hardware,36.55,0.00,36.55
Children and Young Peoples Services,Head of Early Help Assessment and Safeguarding,071448,Newton Aycliffe One Point Hub,Supplies and Services,304999,Equipment and Materials,15-Aug-2017,000006377956953,Amazon Prime,5968,Misc equipment tools and materials,-7.99,0.00,-7.99
Regeneration and Local Services,Economic Development and Housing,030737,Durham Works Flexible Fund,Supplies and Services,304259,Equipment and Materials,15-Aug-2017,000006377956955,SCREWFIX DIRECT,5211,Equipment-purchase and rental,47.98,8.00,39.98
Regeneration and Local Services,Economic Development and Housing,030737,Durham Works Flexible Fund,Supplies and Services,384999,Miscellaneous Expenses,15-Aug-2017,000006377956959,SALLY SALON SERVIC,7230,Other expenses,590.38,98.40,491.98
Children and Young Peoples Services,Head of Looked After Provision Permanence and Care Leavers,085965,Barnard,Supplies and Services,384999,Miscellaneous Expenses,15-Aug-2017,000006377956963,Amazon UK Marketplace,5942,Other expenses,20.90,0.00,20.90
Children and Young Peoples Services,Head of Looked After Provision Permanence and Care Leavers,085957,Secure Management,Supplies and Services,328041,Clothing Uniforms and Laundry,15-Aug-2017,000006377956967,WWW.FOOTASYLUM.COM,5941,Clothing uniforms and laundry,89.98,0.00,89.98
Children and Young Peoples Services,Head of Looked After Provision Permanence and Care Leavers,085957,Secure Management,Supplies and Services,328041,Clothing Uniforms and Laundry,15-Aug-2017,000006377956971,VERY.CO.UK,5964,Clothing uniforms and laundry,172.99,0.00,172.99
Regeneration and Local Services,Culture & Sport,011060,Hardwick Park Catering,Supplies and Services,324117,Provisions,15-Aug-2017,000006377956983,HOPWELLS LTD,5811,Catering costs - provisions,626.16,104.36,521.80
Regeneration and Local Services,Culture & Sport,011060,Hardwick Park Catering,Supplies and Services,324117,Provisions,15-Aug-2017,000006377956983 - 1,HOPWELLS LTD,5811,Catering costs - provisions,95.00,,95.00
Regeneration and Local Services,Culture & Sport,011060,Hardwick Park Catering,Supplies and Services,324117,Provisions,15-Aug-2017,000006377956989,HOPWELLS LTD,5811,Catering costs - provisions,533.70,88.95,444.75
Regeneration and Local Services,Culture & Sport,011060,Hardwick Park Catering,Supplies and Services,324117,Provisions,15-Aug-2017,000006377956989 - 1,HOPWELLS LTD,5811,Catering costs - provisions,83.80,,83.80
Regeneration and Local Services,Culture & Sport,011060,Hardwick Park Catering,Supplies and Services,324117,Provisions,15-Aug-2017,000006377956993,HOPWELLS LTD,5811,Catering costs - provisions,490.80,81.80,409.00
Regeneration and Local Services,Culture & Sport,011060,Hardwick Park Catering,Supplies and Services,324117,Provisions,15-Aug-2017,000006377956993 - 1,HOPWELLS LTD,5811,Catering costs - provisions,86.04,,86.04
Regeneration and Local Services,Culture & Sport,011060,Hardwick Park Catering,Supplies and Services,324117,Provisions,15-Aug-2017,000006377956997,HOPWELLS LTD,5811,Catering costs - provisions,337.68,56.28,281.40
Regeneration and Local Services,Culture & Sport,011060,Hardwick Park Catering,Supplies and Services,324117,Provisions,15-Aug-2017,000006377956997 - 1,HOPWELLS LTD,5811,Catering costs - provisions,155.19,,155.19
Regeneration and Local Services,Culture & Sport,011060,Hardwick Park Catering,Supplies and Services,324117,Provisions,15-Aug-2017,000006377957001,HOPWELLS LTD,5811,Catering costs - provisions,344.52,57.42,287.10
Regeneration and Local Services,Culture & Sport,011060,Hardwick Park Catering,Supplies and Services,324117,Provisions,15-Aug-2017,000006377957001 - 1,HOPWELLS LTD,5811,Catering costs - provisions,32.09,,32.09
Regeneration and Local Services,Culture & Sport,011060,Hardwick Park Catering,Supplies and Services,324117,Provisions,15-Aug-2017,000006377957005,HOPWELLS LTD,5811,Catering costs - provisions,340.20,56.70,283.50
Regeneration and Local Services,Culture & Sport,011060,Hardwick Park Catering,Supplies and Services,324117,Provisions,15-Aug-2017,000006377957005 - 1,HOPWELLS LTD,5811,Catering costs - provisions,23.17,,23.17
Regeneration and Local Services,Culture & Sport,011060,Hardwick Park Catering,Supplies and Services,324117,Provisions,15-Aug-2017,000006377957009,HOPWELLS LTD,5811,Catering costs - provisions,220.50,36.75,183.75
Regeneration and Local Services,Culture & Sport,011060,Hardwick Park Catering,Supplies and Services,324117,Provisions,15-Aug-2017,000006377957009 - 1,HOPWELLS LTD,5811,Catering costs - provisions,123.77,,123.77
Regeneration and Local Services,Culture & Sport,011060,Hardwick Park Catering,Supplies and Services,324117,Provisions,15-Aug-2017,000006377957013,HOPWELLS LTD,5811,Catering costs - provisions,237.36,39.56,197.80
Regeneration and Local Services,Culture & Sport,011060,Hardwick Park Catering,Supplies and Services,324117,Provisions,15-Aug-2017,000006377957013 - 1,HOPWELLS LTD,5811,Catering costs - provisions,39.19,,39.19
Regeneration and Local Services,Culture & Sport,011060,Hardwick Park Catering,Supplies and Services,324117,Provisions,15-Aug-2017,000006377957017,HOPWELLS LTD,5811,Catering costs - provisions,146.04,24.34,121.70
Regeneration and Local Services,Culture & Sport,011060,Hardwick Park Catering,Supplies and Services,324117,Provisions,15-Aug-2017,000006377957017 - 1,HOPWELLS LTD,5811,Catering costs - provisions,75.77,,75.77
Regeneration and Local Services,Culture & Sport,011060,Hardwick Park Catering,Supplies and Services,324117,Provisions,15-Aug-2017,000006377957021,HOPWELLS LTD,5811,Catering costs - provisions,145.92,24.32,121.60
Regeneration and Local Services,Culture & Sport,011060,Hardwick Park Catering,Supplies and Services,324117,Provisions,15-Aug-2017,000006377957021 - 1,HOPWELLS LTD,5811,Catering costs - provisions,44.44,,44.44
Regeneration and Local Services,Culture & Sport,011060,Hardwick Park Catering,Supplies and Services,324117,Provisions,15-Aug-2017,000006377957025,JR HOLLAND FOODSERVICE,5422,Catering costs - provisions,71.93,0.00,71.93
Regeneration and Local Services,Culture & Sport,011060,Hardwick Park Catering,Supplies and Services,324117,Provisions,15-Aug-2017,000006377957027,JR HOLLAND FOODSERVICE,5422,Catering costs - provisions,24.09,0.00,24.09
Regeneration and Local Services,Culture & Sport,011060,Hardwick Park Catering,Supplies and Services,324117,Provisions,15-Aug-2017,000006377957077,HOPWELLS LTD,5811,Catering costs - provisions,-1.58,-0.26,-1.32
Regeneration and Local Services,Culture & Sport,011060,Hardwick Park Catering,Supplies and Services,324117,Provisions,15-Aug-2017,000006377957079,HOPWELLS LTD,5811,Catering costs - provisions,-11.50,-1.92,-9.58
Regeneration and Local Services,Culture & Sport,011060,Hardwick Park Catering,Supplies and Services,324117,Provisions,15-Aug-2017,000006377957081,HOPWELLS LTD,5811,Catering costs - provisions,-16.28,-2.71,-13.57
Regeneration and Local Services,Culture & Sport,011060,Hardwick Park Catering,Supplies and Services,324117,Provisions,15-Aug-2017,000006377957083,HOPWELLS LTD,5811,Catering costs - provisions,-19.08,-3.18,-15.90
Regeneration and Local Services,Culture & Sport,011060,Hardwick Park Catering,Supplies and Services,324117,Provisions,15-Aug-2017,000006377957085,HOPWELLS LTD,5811,Catering costs - provisions,-57.78,-9.63,-48.15
Regeneration and Local Services,Direct Services,021234,Catering - Locomotion,Supplies and Services,324117,Provisions,15-Aug-2017,000006377957091,HOPWELLS LTD,5811,Catering costs - provisions,217.26,36.21,181.05
Regeneration and Local Services,Direct Services,021234,Catering - Locomotion,Supplies and Services,324117,Provisions,15-Aug-2017,000006377957091 - 1,HOPWELLS LTD,5811,Catering costs - provisions,164.35,,164.35
Regeneration and Local Services,Direct Services,021234,Catering - Locomotion,Supplies and Services,324117,Provisions,15-Aug-2017,000006377957095,HOPWELLS LTD,5811,Catering costs - provisions,75.72,12.62,63.10
Regeneration and Local Services,Direct Services,021234,Catering - Locomotion,Supplies and Services,324117,Provisions,15-Aug-2017,000006377957095 - 1,HOPWELLS LTD,5811,Catering costs - provisions,119.27,,119.27
Regeneration and Local Services,Direct Services,021234,Catering - Locomotion,Supplies and Services,324117,Provisions,15-Aug-2017,000006377957099,HOPWELLS LTD,5811,Catering costs - provisions,29.04,4.84,24.20
Regeneration and Local Services,Direct Services,021234,Catering - Locomotion,Supplies and Services,324117,Provisions,15-Aug-2017,000006377957099 - 1,HOPWELLS LTD,5811,Catering costs - provisions,124.86,,124.86
Regeneration and Local Services,Direct Services,021234,Catering - Locomotion,Supplies and Services,324117,Provisions,15-Aug-2017,000006377957101,HOPWELLS LTD,5811,Catering costs - provisions,77.46,12.91,64.55
Regeneration and Local Services,Direct Services,021234,Catering - Locomotion,Supplies and Services,324117,Provisions,15-Aug-2017,000006377957101 - 1,HOPWELLS LTD,5811,Catering costs - provisions,74.86,,74.86
Regeneration and Local Services,Direct Services,021234,Catering - Locomotion,Supplies and Services,324117,Provisions,15-Aug-2017,000006377957105,HOPWELLS LTD,5811,Catering costs - provisions,18.30,3.05,15.25
Regeneration and Local Services,Direct Services,021234,Catering - Locomotion,Supplies and Services,324117,Provisions,15-Aug-2017,000006377957105 - 1,HOPWELLS LTD,5811,Catering costs - provisions,107.03,,107.03
Regeneration and Local Services,Direct Services,021234,Catering - Locomotion,Supplies and Services,324117,Provisions,15-Aug-2017,000006377957109,HOPWELLS LTD,5811,Catering costs - provisions,87.64,0.00,87.64
Regeneration and Local Services,Direct Services,021234,Catering - Locomotion,Supplies and Services,324117,Provisions,15-Aug-2017,000006377957113,JR HOLLAND FOODSERVICE,5422,Catering costs - provisions,24.76,0.00,24.76
Transformation and Partnerships,Comms & Information Management,060131,County Records,Supplies and Services,304259,Equipment and Materials,15-Aug-2017,000006377957115,INSTRUMENT SALES,5732,Equipment-purchase and rental,99.48,16.58,82.90
Regeneration and Local Services,Direct Services,010525,Catering - Green Lane,Supplies and Services,324117,Provisions,15-Aug-2017,000006377957119,HOPWELLS LTD,5811,Catering costs - provisions,92.56,0.00,92.56
Regeneration and Local Services,Direct Services,010525,Catering - Green Lane,Supplies and Services,324117,Provisions,15-Aug-2017,000006377957123,HOPWELLS LTD,5811,Catering costs - provisions,62.30,0.00,62.30
Regeneration and Local Services,Direct Services,010525,Catering - Green Lane,Supplies and Services,324117,Provisions,15-Aug-2017,000006377957125,HOPWELLS LTD,5811,Catering costs - provisions,54.74,0.00,54.74
Regeneration and Local Services,Direct Services,010525,Catering - Green Lane,Supplies and Services,324117,Provisions,15-Aug-2017,000006377957127,HOPWELLS LTD,5811,Catering costs - provisions,-10.93,0.00,-10.93
Children and Young Peoples Services,Head of Education,075021,Youth Employment Initiative,Supplies and Services,384999,Miscellaneous Expenses,15-Aug-2017,000006377957131,Amazon EU,5969,Other expenses,27.02,0.00,27.02
Regeneration and Local Services,Culture & Sport,011191,Wellbeing4Life,Supplies and Services,324117,Provisions,15-Aug-2017,000006377957139,ALDI 74 774 S,5411,Catering costs - provisions,10.26,0.00,10.26
Regeneration and Local Services,Culture & Sport,011191,Wellbeing4Life,Supplies and Services,328041,Clothing Uniforms and Laundry,15-Aug-2017,000006377957141,POUNDWORLD,5310,Clothing uniforms and laundry,14.00,0.00,14.00
Adult and Health Services,Head of Adults,055301,Stanley Pathways,Supplies and Services,324117,Provisions,15-Aug-2017,000006377957145,ASDA SUPERSTORE,5411,Catering costs - provisions,5.40,0.00,5.40
Regeneration and Local Services,Spatial Policy Planning Assets & Environment,031200,North Pennines Core,Supplies and Services,304403,Equipment and Materials,15-Aug-2017,000006377957151,W E & J ROWLE,5947,Other consumables,16.97,0.00,16.97
Regeneration and Local Services,Direct Services,010301,C&G - North Grounds Maintenance,Supplies and Services,312011,Newspapers Books and Periodicals,15-Aug-2017,000006377957157,GRALANDS WOODWORK SUPP,5251,Books-school library,109.32,0.00,109.32
Children and Young Peoples Services,Head of Early Help Assessment and Safeguarding,088001,Peterlee Locality,Supplies and Services,304259,Equipment and Materials,15-Aug-2017,000006377957167,SUNDERLAND CC,9399,Equipment-purchase and rental,10.00,0.00,10.00
Children and Young Peoples Services,Head of Early Help Assessment and Safeguarding,088001,Peterlee Locality,Supplies and Services,304259,Equipment and Materials,15-Aug-2017,000006377957169,NEWCASTLE CC INET,9399,Equipment-purchase and rental,12.24,0.00,12.24
Regeneration and Local Services,Culture & Sport,054235,Bishop Auckland Town Hall Cafe,Supplies and Services,324117,Provisions,15-Aug-2017,000006377957181,HOPWELLS LTD,5811,Catering costs - provisions,64.76,0.00,64.76
Regeneration and Local Services,Culture & Sport,054235,Bishop Auckland Town Hall Cafe,Supplies and Services,324117,Provisions,15-Aug-2017,000006377957183,JR HOLLAND FOODSERVICE,5422,Catering costs - provisions,23.39,0.00,23.39
Regeneration and Local Services,Direct Services,021324,Catering - Meadowfield,Supplies and Services,324117,Provisions,15-Aug-2017,000006377957187,HOPWELLS LTD,5811,Catering costs - provisions,44.73,0.00,44.73
Regeneration and Local Services,Direct Services,021324,Catering - Meadowfield,Supplies and Services,324117,Provisions,15-Aug-2017,000006377957189,HOPWELLS LTD,5811,Catering costs - provisions,37.27,0.00,37.27
Regeneration and Local Services,Direct Services,021324,Catering - Meadowfield,Supplies and Services,324117,Provisions,15-Aug-2017,000006377957191,HOPWELLS LTD,5811,Catering costs - provisions,37.01,0.00,37.01
Regeneration and Local Services,Direct Services,021324,Catering - Meadowfield,Supplies and Services,324117,Provisions,15-Aug-2017,000006377957195,HOPWELLS LTD,5811,Catering costs - provisions,22.20,0.00,22.20
Regeneration and Local Services,Direct Services,021324,Catering - Meadowfield,Supplies and Services,324117,Provisions,15-Aug-2017,000006377957197,JR HOLLAND FOODSERVICE,5422,Catering costs - provisions,18.24,0.00,18.24
Children and Young Peoples Services,Head of Early Help Assessment and Safeguarding,074000,TTF-Attachment and Results,Supplies and Services,304259,Equipment and Materials,15-Aug-2017,000006377957217,WILKO.COM,5722,Equipment-purchase and rental,93.50,15.58,77.92
Regeneration and Local Services,Direct Services,021235,Catering - Wharton Park,Supplies and Services,324117,Provisions,15-Aug-2017,000006377957223,HOPWELLS LTD,5811,Catering costs - provisions,275.40,45.90,229.50
Regeneration and Local Services,Direct Services,021235,Catering - Wharton Park,Supplies and Services,324117,Provisions,15-Aug-2017,000006377957223 - 1,HOPWELLS LTD,5811,Catering costs - provisions,25.41,,25.41
Regeneration and Local Services,Direct Services,021235,Catering - Wharton Park,Supplies and Services,324117,Provisions,15-Aug-2017,000006377957225,HOPWELLS LTD,5811,Catering costs - provisions,214.86,35.81,179.05
Regeneration and Local Services,Direct Services,021235,Catering - Wharton Park,Supplies and Services,324117,Provisions,15-Aug-2017,000006377957225 - 1,HOPWELLS LTD,5811,Catering costs - provisions,61.20,,61.20
Regeneration and Local Services,Direct Services,021235,Catering - Wharton Park,Supplies and Services,324117,Provisions,15-Aug-2017,000006377957233,HOPWELLS LTD,5811,Catering costs - provisions,173.82,28.97,144.85
Regeneration and Local Services,Direct Services,021235,Catering - Wharton Park,Supplies and Services,324117,Provisions,15-Aug-2017,000006377957233 - 1,HOPWELLS LTD,5811,Catering costs - provisions,58.54,,58.54
Regeneration and Local Services,Direct Services,021235,Catering - Wharton Park,Supplies and Services,324117,Provisions,15-Aug-2017,000006377957239,HOPWELLS LTD,5811,Catering costs - provisions,149.82,24.97,124.85
Regeneration and Local Services,Direct Services,021235,Catering - Wharton Park,Supplies and Services,324117,Provisions,15-Aug-2017,000006377957239 - 1,HOPWELLS LTD,5811,Catering costs - provisions,40.26,,40.26
Regeneration and Local Services,Direct Services,021235,Catering - Wharton Park,Supplies and Services,324117,Provisions,15-Aug-2017,000006377957243,HOPWELLS LTD,5811,Catering costs - provisions,133.02,22.17,110.85
Regeneration and Local Services,Direct Services,021235,Catering - Wharton Park,Supplies and Services,324117,Provisions,15-Aug-2017,000006377957243 - 1,HOPWELLS LTD,5811,Catering costs - provisions,37.07,,37.07
Regeneration and Local Services,Direct Services,021235,Catering - Wharton Park,Supplies and Services,324117,Provisions,15-Aug-2017,000006377957249,HOPWELLS LTD,5811,Catering costs - provisions,94.86,15.81,79.05
Regeneration and Local Services,Direct Services,021235,Catering - Wharton Park,Supplies and Services,324117,Provisions,15-Aug-2017,000006377957249 - 1,HOPWELLS LTD,5811,Catering costs - provisions,48.77,,48.77
Regeneration and Local Services,Direct Services,021235,Catering - Wharton Park,Supplies and Services,324117,Provisions,15-Aug-2017,000006377957251,HOPWELLS LTD,5811,Catering costs - provisions,71.34,11.89,59.45
Regeneration and Local Services,Direct Services,021235,Catering - Wharton Park,Supplies and Services,324117,Provisions,15-Aug-2017,000006377957251 - 1,HOPWELLS LTD,5811,Catering costs - provisions,14.78,,14.78
Regeneration and Local Services,Direct Services,021235,Catering - Wharton Park,Supplies and Services,324117,Provisions,15-Aug-2017,000006377957257,JR HOLLAND FOODSERVICE,5422,Catering costs - provisions,34.92,0.00,34.92
Adult and Health Services,Head of Adults,055309,Peterlee Pathways,Supplies and Services,324117,Provisions,15-Aug-2017,000006377957267,LIDL UK,5411,Catering costs - provisions,1.34,0.00,1.34
Regeneration and Local Services,Economic Development and Housing,030747,Employability - Welfare Reform Performance,Supplies and Services,328041,Clothing Uniforms and Laundry,15-Aug-2017,000006377957269,ARGOS LTD,5310,Clothing uniforms and laundry,39.99,0.00,39.99
Regeneration and Local Services,Culture & Sport,010605,Woodhouse Close Leisure Complex,Supplies and Services,324117,Provisions,15-Aug-2017,000006377957273,HOPWELLS LTD,5811,Catering costs - provisions,135.13,0.00,135.13
Regeneration and Local Services,Culture & Sport,010605,Woodhouse Close Leisure Complex,Supplies and Services,324117,Provisions,15-Aug-2017,000006377957277,HOPWELLS LTD,5811,Catering costs - provisions,93.22,0.00,93.22
Regeneration and Local Services,Culture & Sport,010605,Woodhouse Close Leisure Complex,Supplies and Services,324117,Provisions,15-Aug-2017,000006377957283,HOPWELLS LTD,5811,Catering costs - provisions,69.26,0.00,69.26
Regeneration and Local Services,Culture & Sport,010605,Woodhouse Close Leisure Complex,Supplies and Services,324117,Provisions,15-Aug-2017,000006377957285,HOPWELLS LTD,5811,Catering costs - provisions,60.73,0.00,60.73
Regeneration and Local Services,Culture & Sport,010605,Woodhouse Close Leisure Complex,Supplies and Services,324117,Provisions,15-Aug-2017,000006377957287,HOPWELLS LTD,5811,Catering costs - provisions,59.76,0.00,59.76
Regeneration and Local Services,Culture & Sport,010605,Woodhouse Close Leisure Complex,Supplies and Services,324117,Provisions,15-Aug-2017,000006377957289,HOPWELLS LTD,5811,Catering costs - provisions,55.26,0.00,55.26
Regeneration and Local Services,Culture & Sport,010605,Woodhouse Close Leisure Complex,Supplies and Services,324117,Provisions,15-Aug-2017,000006377957293,HOPWELLS LTD,5811,Catering costs - provisions,51.99,0.00,51.99
Regeneration and Local Services,Culture & Sport,010605,Woodhouse Close Leisure Complex,Supplies and Services,324117,Provisions,15-Aug-2017,000006377957297,HOPWELLS LTD,5811,Catering costs - provisions,33.96,0.00,33.96
Regeneration and Local Services,Culture & Sport,010605,Woodhouse Close Leisure Complex,Supplies and Services,324117,Provisions,15-Aug-2017,000006377957299,JR HOLLAND FOODSERVICE,5422,Catering costs - provisions,25.36,0.00,25.36
Regeneration and Local Services,Culture & Sport,010605,Woodhouse Close Leisure Complex,Supplies and Services,324117,Provisions,15-Aug-2017,000006377957303,HOPWELLS LTD,5811,Catering costs - provisions,-5.79,0.00,-5.79
Regeneration and Local Services,Culture & Sport,010605,Woodhouse Close Leisure Complex,Supplies and Services,324117,Provisions,15-Aug-2017,000006377957305,HOPWELLS LTD,5811,Catering costs - provisions,-9.68,0.00,-9.68
Regeneration and Local Services,Culture & Sport,010605,Woodhouse Close Leisure Complex,Supplies and Services,324117,Provisions,15-Aug-2017,000006377957307,HOPWELLS LTD,5811,Catering costs - provisions,-21.30,0.00,-21.30
Children and Young Peoples Services,Head of Early Help Assessment and Safeguarding,071441,Bishop Auckland One Point Hub,Supplies and Services,304403,Equipment and Materials,15-Aug-2017,000006381978641,AMAZON UK RETAIL AMAZO,5999,Other consumables,34.37,0.00,34.37
Regeneration and Local Services,Economic Development and Housing,031576,B& B - Temp Accom,Supplies and Services,364320,Grants to Voluntary Organisations,15-Aug-2017,000006381978745,PREMIER INN,3811,Accommodation assistance,74.50,12.42,62.08
Regeneration and Local Services,Economic Development and Housing,031576,B& B - Temp Accom,Supplies and Services,364320,Grants to Voluntary Organisations,15-Aug-2017,000006381978747,PREMIER INN,3811,Accommodation assistance,75.50,12.58,62.92
Regeneration and Local Services,Economic Development and Housing,031576,B& B - Temp Accom,Supplies and Services,364320,Grants to Voluntary Organisations,15-Aug-2017,000006381978749,PREMIER INN,3811,Accommodation assistance,73.50,12.25,61.25
Children and Young Peoples Services,Head of Looked After Provision Permanence and Care Leavers,085957,Secure Management,Supplies and Services,328041,Clothing Uniforms and Laundry,15-Aug-2017,000006381978795,REPUBLIC.COM RETAI,5941,Clothing uniforms and laundry,39.99,6.67,33.32
Children and Young Peoples Services,Head of Looked After Provision Permanence and Care Leavers,085957,Secure Management,Supplies and Services,328041,Clothing Uniforms and Laundry,15-Aug-2017,000006381978799,SPORTSDIRECT.COM,5941,Clothing uniforms and laundry,74.98,12.50,62.48
Children and Young Peoples Services,Head of Looked After Provision Permanence and Care Leavers,085957,Secure Management,Supplies and Services,328041,Clothing Uniforms and Laundry,15-Aug-2017,000006381978803,NEW LOOK INTERNET,5621,Clothing uniforms and laundry,55.97,0.00,55.97
Regeneration and Local Services,Culture & Sport,011060,Hardwick Park Catering,Supplies and Services,324117,Provisions,15-Aug-2017,000006381978829,BATLEYS PERTH,5300,Catering costs - provisions,143.04,23.84,119.20
Regeneration and Local Services,Culture & Sport,011060,Hardwick Park Catering,Supplies and Services,324117,Provisions,15-Aug-2017,000006381978829 - 1,BATLEYS PERTH,5300,Catering costs - provisions,87.70,,87.70
Regeneration and Local Services,Direct Services,021234,Catering - Locomotion,Supplies and Services,324117,Provisions,15-Aug-2017,000006381978843,BATLEYS PERTH,5300,Catering costs - provisions,225.90,37.65,188.25
Regeneration and Local Services,Direct Services,021234,Catering - Locomotion,Supplies and Services,324117,Provisions,15-Aug-2017,000006381978843 - 1,BATLEYS PERTH,5300,Catering costs - provisions,87.32,,87.32
Regeneration and Local Services,Direct Services,010525,Catering - Green Lane,Supplies and Services,324117,Provisions,15-Aug-2017,000006381978851,BATLEYS PERTH,5300,Catering costs - provisions,19.92,3.32,16.60
Regeneration and Local Services,Direct Services,010525,Catering - Green Lane,Supplies and Services,324117,Provisions,15-Aug-2017,000006381978851 - 1,BATLEYS PERTH,5300,Catering costs - provisions,31.05,,31.05
Regeneration and Local Services,Culture & Sport,054235,Bishop Auckland Town Hall Cafe,Supplies and Services,324117,Provisions,15-Aug-2017,000006381978965,BATLEYS PERTH,5300,Catering costs - provisions,44.88,7.48,37.40
Regeneration and Local Services,Culture & Sport,054235,Bishop Auckland Town Hall Cafe,Supplies and Services,324117,Provisions,15-Aug-2017,000006381978965 - 1,BATLEYS PERTH,5300,Catering costs - provisions,50.12,,50.12
Regeneration and Local Services,Direct Services,021324,Catering - Meadowfield,Supplies and Services,324117,Provisions,15-Aug-2017,000006381978981,BATLEYS PERTH,5300,Catering costs - provisions,117.18,19.53,97.65
Regeneration and Local Services,Direct Services,021324,Catering - Meadowfield,Supplies and Services,324117,Provisions,15-Aug-2017,000006381978981 - 1,BATLEYS PERTH,5300,Catering costs - provisions,57.84,,57.84
Regeneration and Local Services,Economic Development and Housing,030749,Employability - Youth Contract,Supplies and Services,328041,Clothing Uniforms and Laundry,15-Aug-2017,000006386372571,WWW.DOROTHYPERKINS,5691,Clothing uniforms and laundry,61.00,0.00,61.00
Children and Young Peoples Services,Head of Looked After Provision Permanence and Care Leavers,085957,Secure Management,Supplies and Services,328041,Clothing Uniforms and Laundry,15-Aug-2017,000006386372615,EMP Merchan,5964,Clothing uniforms and laundry,2.54,0.42,2.12
Regeneration and Local Services,Culture & Sport,011060,Hardwick Park Catering,Supplies and Services,324117,Provisions,15-Aug-2017,000006546041069,BATLEYS PERTH,5300,Catering costs - provisions,108.36,18.06,90.30
Regeneration and Local Services,Culture & Sport,011060,Hardwick Park Catering,Supplies and Services,324117,Provisions,15-Aug-2017,000006546041069 - 1,BATLEYS PERTH,5300,Catering costs - provisions,21.28,,21.28
Regeneration and Local Services,Economic Development and Housing,030699,Business Growth and Innovation General,Supplies and Services,342033,Computers and Communications,16-Aug-2017,000006377956607,WATCHFULPAYPAL,7379,Computer hardware,0.42,0.00,0.42
Children and Young Peoples Services,Head of Education,071801,Selby Cottage Childcare Centre,Supplies and Services,324117,Provisions,16-Aug-2017,000006381978629,TESCO STORES 2278,5411,Catering costs - provisions,69.20,0.00,69.20
Resources,Digital and Customer Services,065481,Technical Services,Supplies and Services,342033,Computers and Communications,16-Aug-2017,000006381978633,Amazon UK Marketplace,5942,Computer hardware,7.86,0.00,7.86
Adult and Health Services,Head of Adults,052733,Sensory Support - County Wide,Supplies and Services,344033,Telephones,16-Aug-2017,000006381978637,Amazon UK Marketplace,5942,Telephones general-all costs,16.77,0.00,16.77
Children and Young Peoples Services,Head of Looked After Provision Permanence and Care Leavers,085957,Secure Management,Supplies and Services,384999,Miscellaneous Expenses,16-Aug-2017,000006381978685,Amazon UK Marketplace,5942,Other expenses,14.00,0.00,14.00
Children and Young Peoples Services,Head of Looked After Provision Permanence and Care Leavers,085342,9 Cedar Drive Aycliffe,Supplies and Services,304999,Equipment and Materials,16-Aug-2017,000006381978699,TOWER EYE ZEUS,7991,Misc equipment tools and materials,59.00,0.00,59.00
Regeneration and Local Services,Direct Services,021242,Catering - County Hall,Supplies and Services,324117,Provisions,16-Aug-2017,000006381978719,JR HOLLAND FOODSERVICE,5422,Catering costs - provisions,143.81,0.00,143.81
Regeneration and Local Services,Direct Services,021242,Catering - County Hall,Supplies and Services,324117,Provisions,16-Aug-2017,000006381978721,JR HOLLAND FOODSERVICE,5422,Catering costs - provisions,86.81,0.00,86.81
Regeneration and Local Services,Direct Services,021242,Catering - County Hall,Supplies and Services,324117,Provisions,16-Aug-2017,000006381978727,JR HOLLAND FOODSERVICE,5422,Catering costs - provisions,31.35,0.00,31.35
Children and Young Peoples Services,Head of Education,079599,Psychological-HQ,Supplies and Services,312011,Newspapers Books and Periodicals,16-Aug-2017,000006381978735,Amazon EU,5969,Books-school library,35.94,0.00,35.94
Regeneration and Local Services,Culture & Sport,011219,Office Services,Supplies and Services,304403,Equipment and Materials,16-Aug-2017,000006381978741,WWW.DISCOUNTDISPLAYS.C,5999,Other consumables,263.40,43.90,219.50
Children and Young Peoples Services,Head of Looked After Provision Permanence and Care Leavers,085965,Barnard,Supplies and Services,384999,Miscellaneous Expenses,16-Aug-2017,000006381978777,PAYPAL FACTORY1STE,7399,Other expenses,31.74,0.00,31.74
Children and Young Peoples Services,Head of Looked After Provision Permanence and Care Leavers,085954,Walworth,Supplies and Services,384999,Miscellaneous Expenses,16-Aug-2017,000006381978781,Amazon UK Marketplace,5942,Other expenses,8.99,0.00,8.99
Children and Young Peoples Services,Head of Looked After Provision Permanence and Care Leavers,085957,Secure Management,Supplies and Services,332047,Printing Stationery and Gen Off Exps,16-Aug-2017,000006381978787,Amazon UK Marketplace,5942,Stationery,22.99,0.00,22.99
Children and Young Peoples Services,Head of Looked After Provision Permanence and Care Leavers,085965,Barnard,Supplies and Services,304259,Equipment and Materials,16-Aug-2017,000006381978789,WWW.ARGOS.CO.UK,5310,Equipment-purchase and rental,33.94,0.00,33.94
Children and Young Peoples Services,Head of Looked After Provision Permanence and Care Leavers,085957,Secure Management,Supplies and Services,328041,Clothing Uniforms and Laundry,16-Aug-2017,000006381978791,WWW.ASOS.COM,5651,Clothing uniforms and laundry,60.00,0.00,60.00
Children and Young Peoples Services,Head of Looked After Provision Permanence and Care Leavers,085965,Barnard,Supplies and Services,384999,Miscellaneous Expenses,16-Aug-2017,000006381978805,HOME BARGAINS ONLINE,5251,Other expenses,45.98,0.00,45.98
Children and Young Peoples Services,Head of Looked After Provision Permanence and Care Leavers,085955,Auckland,Supplies and Services,324117,Provisions,16-Aug-2017,000006381978809,TESCO STORES 6329,5411,Catering costs - provisions,93.53,0.00,93.53
Children and Young Peoples Services,Head of Looked After Provision Permanence and Care Leavers,085957,Secure Management,Supplies and Services,328041,Clothing Uniforms and Laundry,16-Aug-2017,000006381978813,WWW.FOOTASYLUM.COM,5941,Clothing uniforms and laundry,-82.49,0.00,-82.49
Children and Young Peoples Services,Head of Early Help Assessment and Safeguarding,071444,Consett One Point Hub,Supplies and Services,372009,Subscriptions,16-Aug-2017,000006381978815,VITAL CERTIFICATES LTD,8111,Subscriptions,33.54,0.00,33.54
Regeneration and Local Services,Culture & Sport,011060,Hardwick Park Catering,Supplies and Services,324117,Provisions,16-Aug-2017,000006381978823,JR HOLLAND FOODSERVICE,5422,Catering costs - provisions,85.90,0.00,85.90
Regeneration and Local Services,Culture & Sport,011060,Hardwick Park Catering,Supplies and Services,324117,Provisions,16-Aug-2017,000006381978825,JR HOLLAND FOODSERVICE,5422,Catering costs - provisions,45.48,0.00,45.48
Regeneration and Local Services,Culture & Sport,011060,Hardwick Park Catering,Supplies and Services,324117,Provisions,16-Aug-2017,000006381978827,JR HOLLAND FOODSERVICE,5422,Catering costs - provisions,15.86,0.00,15.86
Regeneration and Local Services,Direct Services,021234,Catering - Locomotion,Supplies and Services,324117,Provisions,16-Aug-2017,000006381978833,JR HOLLAND FOODSERVICE,5422,Catering costs - provisions,34.66,0.00,34.66
Regeneration and Local Services,Direct Services,021234,Catering - Locomotion,Supplies and Services,324117,Provisions,16-Aug-2017,000006381978837,JR HOLLAND FOODSERVICE,5422,Catering costs - provisions,19.74,0.00,19.74
Regeneration and Local Services,Direct Services,010525,Catering - Green Lane,Supplies and Services,324117,Provisions,16-Aug-2017,000006381978847,JR HOLLAND FOODSERVICE,5422,Catering costs - provisions,52.32,0.00,52.32
Resources,Financial Services,065135,Revs and Bens Training,Employees,040149,Recruitment Instruction and Training,16-Aug-2017,000006381978863,WWW.IRRV.ORG.UK,2741,Training-all costs,384.00,0.00,384.00
Children and Young Peoples Services,Head of Looked After Provision Permanence and Care Leavers,085352,Tow Law CU,Supplies and Services,324117,Provisions,16-Aug-2017,000006381978875,TESCO STORES 2371,5411,Catering costs - provisions,244.15,0.00,244.15
Children and Young Peoples Services,Head of Looked After Provision Permanence and Care Leavers,085333,Coxhoe Satelite Home,Supplies and Services,324117,Provisions,16-Aug-2017,000006381978901,TESCO STORES 2371,5411,Catering costs - provisions,85.36,0.00,85.36
Children and Young Peoples Services,Head of Looked After Provision Permanence and Care Leavers,085333,Coxhoe Satelite Home,Supplies and Services,324117,Provisions,16-Aug-2017,000006381978907,TESCO STORES 2371,5411,Catering costs - provisions,33.95,0.00,33.95
Regeneration and Local Services,Economic Development and Housing,030737,Durham Works Flexible Fund,Employees,040149,Recruitment Instruction and Training,16-Aug-2017,000006381978909,DERWENTSIDE COLLEGE,8220,Training-all costs,250.00,0.00,250.00
Regeneration and Local Services,Economic Development and Housing,030737,Durham Works Flexible Fund,Transport,235057,Public Transport,16-Aug-2017,000006381978911,WWW.SIMPLYGO.COM,4131,Staff travelling,92.00,0.00,92.00
Dedicated Schools Grant,Dedicated Schools Grant,079040,SENSS-HQ,Supplies and Services,324117,Provisions,16-Aug-2017,000006381978945,ASDA HOME SHOPPING,5411,Catering costs - provisions,48.96,0.00,48.96
Dedicated Schools Grant,Dedicated Schools Grant,079040,SENSS-HQ,Supplies and Services,324117,Provisions,16-Aug-2017,000006381978947,ASDA HOME SHOPPING,5411,Catering costs - provisions,-1.00,0.00,-1.00
Regeneration and Local Services,Culture & Sport,054235,Bishop Auckland Town Hall Cafe,Supplies and Services,324117,Provisions,16-Aug-2017,000006381978959,JR HOLLAND FOODSERVICE,5422,Catering costs - provisions,21.33,0.00,21.33
Regeneration and Local Services,Direct Services,021324,Catering - Meadowfield,Supplies and Services,324117,Provisions,16-Aug-2017,000006381978975,JR HOLLAND FOODSERVICE,5422,Catering costs - provisions,41.05,0.00,41.05
Regeneration and Local Services,Direct Services,021324,Catering - Meadowfield,Supplies and Services,324117,Provisions,16-Aug-2017,000006381978979,JR HOLLAND FOODSERVICE,5422,Catering costs - provisions,13.87,0.00,13.87
Adult and Health Services,Head of Adults,055301,Stanley Pathways,Supplies and Services,324117,Provisions,16-Aug-2017,000006381978983,ASDA SUPERSTORE,5411,Catering costs - provisions,2.73,0.00,2.73
Children and Young Peoples Services,Head of Early Help Assessment and Safeguarding,088083,Ferryhill 0 - 5,Supplies and Services,324117,Provisions,16-Aug-2017,000006381979005,CO-OP GROUP 010518,5411,Catering costs - provisions,1.32,0.00,1.32
Children and Young Peoples Services,Head of Early Help Assessment and Safeguarding,074000,TTF-Attachment and Results,Supplies and Services,308011,Furniture,16-Aug-2017,000006381979017,MAGUIRES,5713,Furniture repair and replacement,149.00,24.83,124.17
Children and Young Peoples Services,Head of Early Help Assessment and Safeguarding,074000,TTF-Attachment and Results,Supplies and Services,304259,Equipment and Materials,16-Aug-2017,000006381979021,WILKO.COM,5722,Equipment-purchase and rental,144.00,24.00,120.00
Children and Young Peoples Services,Head of Early Help Assessment and Safeguarding,074000,TTF-Attachment and Results,Supplies and Services,324117,Provisions,16-Aug-2017,000006381979023,ASDA GEORGE COM LEEDS,5411,Catering costs - provisions,148.95,24.83,124.12
Children and Young Peoples Services,Head of Early Help Assessment and Safeguarding,074000,TTF-Attachment and Results,Supplies and Services,324117,Provisions,16-Aug-2017,000006381979025,ASDA GEORGE COM LEEDS,5411,Catering costs - provisions,80.50,0.00,80.50
Children and Young Peoples Services,Head of Early Help Assessment and Safeguarding,074000,TTF-Attachment and Results,Supplies and Services,324117,Provisions,16-Aug-2017,000006381979027,ASDA GEORGE COM LEEDS,5411,Catering costs - provisions,29.95,4.99,24.96
Children and Young Peoples Services,Head of Early Help Assessment and Safeguarding,074000,TTF-Attachment and Results,Supplies and Services,304403,Equipment and Materials,16-Aug-2017,000006381979029,TESCO - Safetots Limit,5999,Other consumables,105.80,0.00,105.80
Children and Young Peoples Services,Head of Early Help Assessment and Safeguarding,074000,TTF-Attachment and Results,Supplies and Services,304403,Equipment and Materials,16-Aug-2017,000006381979031,TESCO - Seller_IST_1_2,5999,Other consumables,31.99,5.33,26.66
Children and Young Peoples Services,Head of Early Help Assessment and Safeguarding,074000,TTF-Attachment and Results,Supplies and Services,304403,Equipment and Materials,16-Aug-2017,000006381979033,TESCO - Seller_IST_1_2,5999,Other consumables,10.99,0.00,10.99
Resources,Digital and Customer Services,065431,Applications and Development,Supplies and Services,338064,Services,16-Aug-2017,000006381979037,DISCLOSURE SCOT,9399,Disclosure & Barring (DBS) Fees,25.00,0.00,25.00
Regeneration and Local Services,Economic Development and Housing,030747,Employability - Welfare Reform Performance,Transport,235057,Public Transport,16-Aug-2017,000006381979039,WWW.SIMPLYGO.COM,4131,Staff travelling,6.50,0.00,6.50
Regeneration and Local Services,Culture & Sport,010605,Woodhouse Close Leisure Complex,Supplies and Services,324117,Provisions,16-Aug-2017,000006381979041,JR HOLLAND FOODSERVICE,5422,Catering costs - provisions,25.30,0.00,25.30
Children and Young Peoples Services,Head of Early Help Assessment and Safeguarding,071641,Horden Childrens Centre,Supplies and Services,324117,Provisions,16-Aug-2017,000006381979053,LIDL UK,5411,Catering costs - provisions,14.69,0.00,14.69
Regeneration and Local Services,Spatial Policy Planning Assets & Environment,031200,North Pennines Core,Supplies and Services,304999,Equipment and Materials,16-Aug-2017,000006381979063,AMAZON UK PRIME AMZN.C,5968,Misc equipment tools and materials,7.99,0.00,7.99
Regeneration and Local Services,Economic Development and Housing,031576,B& B - Temp Accom,Employees,040149,Recruitment Instruction and Training,16-Aug-2017,000006386372473,PREMIER INN,3811,Training-all costs,74.50,0.00,74.50
Regeneration and Local Services,Economic Development and Housing,031576,B& B - Temp Accom,Employees,040149,Recruitment Instruction and Training,16-Aug-2017,000006386372479,PREMIER INN,3811,Training-all costs,75.50,0.00,75.50
Children and Young Peoples Services,Head of Early Help Assessment and Safeguarding,088083,Ferryhill 0 - 5,Supplies and Services,328041,Clothing Uniforms and Laundry,16-Aug-2017,000006386372705,B&M RETAIL LTD,5310,Clothing uniforms and laundry,3.82,0.00,3.82
Resources,Financial Services,065135,Revs and Bens Training,Employees,040149,Recruitment Instruction and Training,16-Aug-2017,000006446616297,WWW.IRRV.ORG.UK,2741,Training-all costs,-384.00,0.00,-384.00
Regeneration and Local Services,Economic Development and Housing,030699,Business Growth and Innovation General,Supplies and Services,342033,Computers and Communications,17-Aug-2017,000006381978693,AdRoll_EMEA,7372,Computer hardware,6.71,0.00,6.71
Regeneration and Local Services,Economic Development and Housing,030699,Business Growth and Innovation General,Supplies and Services,342033,Computers and Communications,17-Aug-2017,000006381978697,AdRoll_EMEA,7372,Computer hardware,0.18,0.00,0.18
Children and Young Peoples Services,Head of Looked After Provision Permanence and Care Leavers,085341,High Etherley Satelite Home,Supplies and Services,348037,Subsistence,17-Aug-2017,000006386372435,THE PINK GERANIUM CAFE,5814,Subsistence,21.80,0.00,21.80
Children and Young Peoples Services,Head of Looked After Provision Permanence and Care Leavers,085341,High Etherley Satelite Home,Supplies and Services,384237,Miscellaneous Expenses,17-Aug-2017,000006386372439,GRAFFITI GOLF,7999,Recreational exps outings parties,28.00,0.00,28.00
Children and Young Peoples Services,Head of Looked After Provision Permanence and Care Leavers,085341,High Etherley Satelite Home,Supplies and Services,384237,Miscellaneous Expenses,17-Aug-2017,000006386372441,PLEASURE BEACH,7999,Recreational exps outings parties,6.00,0.00,6.00
Children and Young Peoples Services,Head of Looked After Provision Permanence and Care Leavers,085341,High Etherley Satelite Home,Supplies and Services,328041,Clothing Uniforms and Laundry,17-Aug-2017,000006386372445,PLEASURE BEACH,7996,Clothing uniforms and laundry,44.00,0.00,44.00
Children and Young Peoples Services,Head of Looked After Provision Permanence and Care Leavers,085341,High Etherley Satelite Home,Supplies and Services,328041,Clothing Uniforms and Laundry,17-Aug-2017,000006386372447,PLEASURE BEACH,7996,Clothing uniforms and laundry,10.00,0.00,10.00
Children and Young Peoples Services,Head of Looked After Provision Permanence and Care Leavers,085341,High Etherley Satelite Home,Supplies and Services,328041,Clothing Uniforms and Laundry,17-Aug-2017,000006386372451,PLEASURE BEACH,7996,Clothing uniforms and laundry,10.00,0.00,10.00
Children and Young Peoples Services,Head of Education,054640,Durham Learning Resources,Employees,040149,Recruitment Instruction and Training,17-Aug-2017,000006386372469,SCHOOL LIBRARY ASSOCIA,8299,Training-all costs,89.00,0.00,89.00
Regeneration and Local Services,Direct Services,010301,C&G - North Grounds Maintenance,Supplies and Services,304403,Equipment and Materials,17-Aug-2017,000006386372481,BESCOL,5231,Other consumables,17.95,2.99,14.96
Regeneration and Local Services,Direct Services,010301,C&G - North Grounds Maintenance,Supplies and Services,304259,Equipment and Materials,17-Aug-2017,000006386372485,HARELAW SAWMILL,5211,Equipment-purchase and rental,150.35,25.06,125.29
Regeneration and Local Services,Technical Services,018300,Highways Operations - East,Supplies and Services,344033,Telephones,17-Aug-2017,000006386372489,Amazon UK Marketplace,5942,Telephones general-all costs,12.48,0.00,12.48
Regeneration and Local Services,Direct Services,010383,C&G - South Street Cleansing,Supplies and Services,304221,Equipment and Materials,17-Aug-2017,000006386372497,AZTEC CHEMICALS LTD,5169,Direct materials,277.03,46.17,230.86
Regeneration and Local Services,Economic Development and Housing,030699,Business Growth and Innovation General,Supplies and Services,312011,Newspapers Books and Periodicals,17-Aug-2017,000006386372511,FASTHOSTS INTERNET,4816,Books-school library,15.58,2.60,12.98
Children and Young Peoples Services,Head of Early Help Assessment and Safeguarding,085624,Families First Crook,Supplies and Services,328041,Clothing Uniforms and Laundry,17-Aug-2017,000006386372527,ARGOS RETAIL GROUP,5310,Clothing uniforms and laundry,184.99,0.00,184.99
Regeneration and Local Services,Economic Development and Housing,030737,Durham Works Flexible Fund,Supplies and Services,328041,Clothing Uniforms and Laundry,17-Aug-2017,000006386372531,NEW LOOK 4001,5621,Clothing uniforms and laundry,60.97,0.00,60.97
Regeneration and Local Services,Direct Services,021242,Catering - County Hall,Supplies and Services,324117,Provisions,17-Aug-2017,000006386372535,JR HOLLAND FOODSERVICE,5422,Catering costs - provisions,92.54,0.00,92.54
Regeneration and Local Services,Direct Services,021242,Catering - County Hall,Supplies and Services,324117,Provisions,17-Aug-2017,000006386372537,JR HOLLAND FOODSERVICE,5422,Catering costs - provisions,13.16,0.00,13.16
Regeneration and Local Services,Culture & Sport,054812,Gala Theatre - Catering etc,Supplies and Services,324117,Provisions,17-Aug-2017,000006386372539,JR HOLLAND FOODSERVICE,5422,Catering costs - provisions,58.69,0.00,58.69
Regeneration and Local Services,Direct Services,010367,C&G - South Grounds Maintenance,Supplies and Services,304259,Equipment and Materials,17-Aug-2017,000006386372565,JEWSON LTD,5211,Equipment-purchase and rental,93.25,15.54,77.71
Regeneration and Local Services,Economic Development and Housing,030749,Employability - Youth Contract,Transport,235057,Public Transport,17-Aug-2017,000006386372567,ARRIVA NORTH EAST,4131,Staff travelling,62.00,0.00,62.00
Regeneration and Local Services,Culture & Sport,054813,Gala Theatre - Technical,Supplies and Services,304259,Equipment and Materials,17-Aug-2017,000006386372579,SCREWFIX,5211,Equipment-purchase and rental,30.87,5.15,25.72
Regeneration and Local Services,Culture & Sport,011223,Operations Locality 1,Supplies and Services,304259,Equipment and Materials,17-Aug-2017,000006386372583,B & Q 1120,5211,Equipment-purchase and rental,52.00,0.00,52.00
Adult and Health Services,Head of Adults,055807,Newton Aycliffe Pathways,Supplies and Services,324117,Provisions,17-Aug-2017,000006386372589,TESCO STORES 2916,5411,Catering costs - provisions,24.20,0.00,24.20
Regeneration and Local Services,Economic Development and Housing,030737,Durham Works Flexible Fund,Supplies and Services,348037,Subsistence,17-Aug-2017,000006386372599,WWW.SIMPLYGO.COM,4131,Subsistence,21.00,0.00,21.00
Regeneration and Local Services,Economic Development and Housing,030737,Durham Works Flexible Fund,Supplies and Services,344033,Telephones,17-Aug-2017,000006386372603,VODAFONE,4814,Telephones general-all costs,15.00,2.50,12.50
Regeneration and Local Services,Economic Development and Housing,030737,Durham Works Flexible Fund,Supplies and Services,344033,Telephones,17-Aug-2017,000006386372603 - 1,VODAFONE,4814,Telephones general-all costs,10.00,,10.00
Regeneration and Local Services,Economic Development and Housing,030737,Durham Works Flexible Fund,Supplies and Services,304259,Equipment and Materials,17-Aug-2017,000006386372605,SPORTSDIRECT 387,5941,Equipment-purchase and rental,27.04,0.00,27.04
Children and Young Peoples Services,Head of Looked After Provision Permanence and Care Leavers,085956,Lumley,Supplies and Services,304649,Equipment and Materials,17-Aug-2017,000006386372609,Amazon EU,5969,Toys,6.93,0.00,6.93
Children and Young Peoples Services,Head of Looked After Provision Permanence and Care Leavers,085957,Secure Management,Supplies and Services,328041,Clothing Uniforms and Laundry,17-Aug-2017,000006386372619,WWW.FOOTASYLUM.COM,5941,Clothing uniforms and laundry,74.98,0.00,74.98
Children and Young Peoples Services,Head of Looked After Provision Permanence and Care Leavers,085965,Barnard,Supplies and Services,324117,Provisions,17-Aug-2017,000006386372621,TESCO STORES 6329,5411,Catering costs - provisions,108.89,0.00,108.89
Children and Young Peoples Services,Head of Looked After Provision Permanence and Care Leavers,085965,Barnard,Supplies and Services,304403,Equipment and Materials,17-Aug-2017,000006386372625,AMAZON.CO.UK,5999,Other consumables,13.17,0.00,13.17
Regeneration and Local Services,Technical Services,010984,Training and Development,Employees,040149,Recruitment Instruction and Training,17-Aug-2017,000006386372639,BIIAB,8699,Training-all costs,21.60,0.00,21.60
